{"text_format":"1","workbook":"xlsx","n_sheets":5,"sheets":["Январь","Февраль","Март","ТС","Сотрудники"],"not_rendered":{"charts":0,"images":0,"macros":1,"external_links":1,"defined_names":6,"comments":0,"pivot_tables":0},"unopened":[],"bounds":{"document_bytes":16777216,"sheet_cells":100000,"rows_first":2000,"rows_last":500,"rows_between":2000,"halvings":0,"cell_chars":16384,"cell_head_chars":4096},"cells_cut":0,"cells_raw":0,"read":"whole","date_system":"1900"}

{"sheet":"Январь","index":0,"n_rows":40,"n_cols":26,"rows_kept":40,"cut":false,"hidden":false,"merged":[[1,0,1,15],[2,0,2,15],[3,14,3,15]]}
[null,null,null,null,null,null,null,null,null,null,null,null,null,null,null,"Январь",null,null,null,null,null,null,null,"Экономия","Базовая норма расхода на 100 км","Базовая норма расхода на 1 мото/час"]
["Общество с ограниченной ответственностью  \"Втормет Царицыно\"",null,null,null,null,null,null,null,null,null,null,null,null,null,null,null,null,"1-я пол.",{"$f":"A7","v":"2018-01-01"},"2018-01-18",{"$f":"ТС!E5","v":500},{"$f":"SUMIFS(Январь[Выдано топливо, литр],Январь[Дата],\">=\"&$S$2,Январь[Дата],\"<=\"&$T$2)+IF(MONTH(T2)<>MONTH(S2),INDIRECT(TEXT(A7-1,\"ММММ\")&\"!F38\")-SUM(INDIRECT(TEXT(A7-1,\"ММММ\")&\"!V1:V2\")))+SUMIFS($U$7:$U$37,Январь[Дата],\">=\"&$S$2,Январь[Дата],\"<=\"&$T$2)+IF(MONTH(T2)<>MONTH(S2),INDIRECT(TEXT(A7-1,\"ММММ\")&\"!F38\")-SUM(INDIRECT(TEXT(A7-1,\"ММММ\")&\"!V1:V2\")))","v":330},{"$f":"IF(V2=0,0,(SUMIFS($N$7:$N$37,$A$7:$A$37,\">=\"&$S$2,$A$7:$A$37,\"<=\"&$T$2))/(V2-U2+G7))","v":1.0985000000000003},{"$f":"SUMIFS(Январь[Отклонение от нормы (Перерасход(+), экономия(-)), литр],Январь[Дата],\">=\"&$S$2,Январь[Дата],\"<=\"&$T$2)","v":-32.50500000000001},{"$f":"IF(Y4=\"Зима\",VLOOKUP(Z4,Расчет[[Номер гос.регистрации / Заводской номер]:[Итога норма а/м \"ЛЕТО\"]],8,FALSE),VLOOKUP(Z4,Расчет[[Номер гос.регистрации / Заводской номер]:[Итога норма а/м \"ЛЕТО\"]],9,FALSE))","v":51.546000000000006},{"$f":"IF(Y4=\"Зима\",VLOOKUP(Z4,Расчет[[Номер гос.регистрации / Заводской номер]:[Итога норма а/м \"ЛЕТО\"]],13,FALSE),VLOOKUP(Z4,Расчет[[Номер гос.регистрации / Заводской номер]:[Итога норма а/м \"ЛЕТО\"]],14,FALSE))","v":6.0500000000000007}]
["Отчет водителя ломовоза с манипулятором",null,null,null,null,null,null,null,null,null,null,null,null,null,null,null,null,"2-я пол.",{"$f":"T2+1","v":"2018-01-19"},{"$f":"INDEX(Январь[Дата],COUNT(Январь[Дата]))-T1","v":"2018-01-31"},{"$f":"ТС!E6","v":500},{"$f":"SUMIFS(Январь[Выдано топливо, литр],Январь[Дата],\">=\"&$S$3,Январь[Дата],\"<=\"&$T$3)+IF(MONTH(T3)<>MONTH(S3),INDIRECT(TEXT(A7-1,\"ММММ\")&\"!F38\")-SUM(INDIRECT(TEXT(A7-1,\"ММММ\")&\"!V1:V2\")))+SUMIFS($U$7:$U$37,Январь[Дата],\">=\"&$S$3,Январь[Дата],\"<=\"&$T$3)+IF(MONTH(T3)<>MONTH(S3),INDIRECT(TEXT(A7-1,\"ММММ\")&\"!F38\")-SUM(INDIRECT(TEXT(A7-1,\"ММММ\")&\"!V1:V2\")))","v":752},{"$f":"IF(V3=0,0,(SUMIFS($N$7:$N$37,$A$7:$A$37,\">=\"&$S$3,$A$7:$A$37,\"<=\"&$T$3))/(V3-U3+U3))","v":1.1010611702127659},{"$f":"SUMIFS(Январь[Отклонение от нормы (Перерасход(+), экономия(-)), литр],Январь[Дата],\">=\"&$S$3,Январь[Дата],\"<=\"&$T$3)","v":-75.997999999999976}]
[null,null,null,null,null,null,null,"за",2018,null,null,null,null,null,"т 056 вв 197",null,null,null,{"$f":"IF(INDEX(Январь[Дата],COUNT(Январь[Дата]))=T3,\"\",T3+1)","v":""},null,null,null,{"$f":"IFERROR(IF(S4=\"\",\"\",INDIRECT(TEXT(A7+40,\"ММММ\")&\"!W2\")),)","v":""},null,"Зима","Норма 1"]
[]
["Дата","ФИО водителя","Показание одометра машины на начало дня, км","Показание одометра машины на конец дня, км","Пройдено за день, км","Выдано топливо, литр","Остаток топлива в баке на начало дня, литр","Показание счетчика моточасов спецоборудования на начало дня, м/ч","Показание счетчика моточасов  спецоборудования на конец дня, м/ч","Работа спецоборудования за день, м/ч","Количество ходок","Расход топлива на работу спецоборудования, литр","Остаток топлива в баке на конец дня, литр","Расход топлива по норме, литр","Фактический расход топлива, литр","Отклонение от нормы (Перерасход(+), экономия(-)), литр",null,"Дата","Обнуление одометра, км","Пройдено за день, км","Выдано топливо, литр","Обнуление счетчика моточасов спецоборудования, м/ч","Работа спецоборудования за день, м/ч","Расход топлива по норме, литр","Фактический расход топлива, литр","Дата"]
[{"$f":"IFERROR(DATEVALUE((COUNT($A$6:A6)+1)&$P$1&$I$4),\"\")","v":"2018-01-01"},null,{"$f":"ТС!C5","v":209024},209024,{"$f":"Январь[[#This Row],[Показание одометра машины на конец дня, км]]-Январь[[#This Row],[Показание одометра машины на начало дня, км]]+T7","v":0},{"$f":"SUMPRODUCT([1]январь!$E$4:$E$153*([1]январь!$G$4:$G$153=$O$4)*([1]январь!$D$4:$D$153=Январь[[#This Row],[Дата]]))","v":0},{"$f":"ТС!E5","v":500},{"$f":"ТС!D5","v":620},620,{"$f":"IF(W7=\"\",Январь[[#This Row],[Показание счетчика моточасов  спецоборудования на конец дня, м/ч]],Январь[[#This Row],[Показание счетчика моточасов  спецоборудования на конец дня, м/ч]]+1)-Январь[[#This Row],[Показание счетчика моточасов спецоборудования на начало дня, м/ч]]","v":0},null,{"$f":"IF(Январь[[#This Row],[Работа спецоборудования за день, м/ч]]=\"\",\"\",Январь[[#This Row],[Работа спецоборудования за день, м/ч]]*$Z$2)","v":0},{"$f":"IF(VLOOKUP([Дата],S$2:U$3,3),IFERROR(IF(U7=\"\",Январь[[#This Row],[Выдано топливо, литр]],Январь[[#This Row],[Выдано топливо, литр]]+U7)+Январь[[#This Row],[Остаток топлива в баке на начало дня, литр]]-Январь[[#This Row],[Фактический расход топлива, литр]],\"\"),\"\")","v":500},{"$f":"ROUND((Январь[[#This Row],[Пройдено за день, км]]*0.01*$Y$2+Январь[[#This Row],[Расход топлива на работу спецоборудования, литр]]),3)+X7","v":0},{"$f":"ROUND(Январь[[#This Row],[Расход топлива по норме, литр]]/VLOOKUP([Дата],S$2:W$4,5),0)+Y7","v":0},{"$f":"IFERROR(Январь[[#This Row],[Фактический расход топлива, литр]]-Январь[[#This Row],[Расход топлива по норме, литр]],\"\")","v":0},null,{"$f":"Январь[[#This Row],[Дата]]","v":"2018-01-01"},null,null,null,null,null,null,null,{"$f":"Январь[[#This Row],[Дата]]","v":"2018-01-01"}]
[{"$f":"IFERROR(DATEVALUE((COUNT($A$6:A7)+1)&$P$1&$I$4),\"\")","v":"2018-01-02"},null,{"$f":"IFERROR(IF(INDIRECT(TEXT(A7,\"ММММ\")&\"!A7:A37\")=\"\",\"\",IF(S7=\"\",D7,S7)),\"\")","v":209024},209024,{"$f":"Январь[[#This Row],[Показание одометра машины на конец дня, км]]-Январь[[#This Row],[Показание одометра машины на начало дня, км]]+T8","v":0},{"$f":"SUMPRODUCT([1]январь!$E$4:$E$153*([1]январь!$G$4:$G$153=$O$4)*([1]январь!$D$4:$D$153=Январь[[#This Row],[Дата]]))","v":0},{"$f":"IF(Январь[[#This Row],[Дата]]=\"\",\"\",M7)","v":500},{"$f":"IFERROR(IF(INDIRECT(TEXT(A7,\"ММММ\")&\"!A7:A37\")=\"\",\"\",IF(V7=\"\",I7,V7)),\"\")","v":620},620,{"$f":"IF(W8=\"\",Январь[[#This Row],[Показание счетчика моточасов  спецоборудования на конец дня, м/ч]],Январь[[#This Row],[Показание счетчика моточасов  спецоборудования на конец дня, м/ч]]+1)-Январь[[#This Row],[Показание счетчика моточасов спецоборудования на начало дня, м/ч]]","v":0},null,{"$f":"IF(Январь[[#This Row],[Работа спецоборудования за день, м/ч]]=\"\",\"\",Январь[[#This Row],[Работа спецоборудования за день, м/ч]]*$Z$2)","v":0},{"$f":"IF(VLOOKUP([Дата],S$2:U$3,3),IFERROR(IF(U8=\"\",Январь[[#This Row],[Выдано топливо, литр]],Январь[[#This Row],[Выдано топливо, литр]]+U8)+Январь[[#This Row],[Остаток топлива в баке на начало дня, литр]]-Январь[[#This Row],[Фактический расход топлива, литр]],\"\"),\"\")","v":500},{"$f":"ROUND((Январь[[#This Row],[Пройдено за день, км]]*0.01*$Y$2+Январь[[#This Row],[Расход топлива на работу спецоборудования, литр]]),3)+X8","v":0},{"$f":"ROUND(Январь[[#This Row],[Расход топлива по норме, литр]]/VLOOKUP([Дата],S$2:W$4,5),0)+Y8","v":0},{"$f":"IFERROR(Январь[[#This Row],[Фактический расход топлива, литр]]-Январь[[#This Row],[Расход топлива по норме, литр]],\"\")","v":0},null,{"$f":"Январь[[#This Row],[Дата]]","v":"2018-01-02"},null,null,null,null,null,null,null,{"$f":"Январь[[#This Row],[Дата]]","v":"2018-01-02"}]
[{"$f":"IFERROR(DATEVALUE((COUNT($A$6:A8)+1)&$P$1&$I$4),\"\")","v":"2018-01-03"},null,{"$f":"IFERROR(IF(INDIRECT(TEXT(A8,\"ММММ\")&\"!A7:A37\")=\"\",\"\",IF(S8=\"\",D8,S8)),\"\")","v":209024},209024,{"$f":"Январь[[#This Row],[Показание одометра машины на конец дня, км]]-Январь[[#This Row],[Показание одометра машины на начало дня, км]]+T9","v":0},{"$f":"SUMPRODUCT([1]январь!$E$4:$E$153*([1]январь!$G$4:$G$153=$O$4)*([1]январь!$D$4:$D$153=Январь[[#This Row],[Дата]]))","v":0},{"$f":"IF(Январь[[#This Row],[Дата]]=\"\",\"\",M8)","v":500},{"$f":"IFERROR(IF(INDIRECT(TEXT(A8,\"ММММ\")&\"!A7:A37\")=\"\",\"\",IF(V8=\"\",I8,V8)),\"\")","v":620},620,{"$f":"IF(W9=\"\",Январь[[#This Row],[Показание счетчика моточасов  спецоборудования на конец дня, м/ч]],Январь[[#This Row],[Показание счетчика моточасов  спецоборудования на конец дня, м/ч]]+1)-Январь[[#This Row],[Показание счетчика моточасов спецоборудования на начало дня, м/ч]]","v":0},null,{"$f":"IF(Январь[[#This Row],[Работа спецоборудования за день, м/ч]]=\"\",\"\",Январь[[#This Row],[Работа спецоборудования за день, м/ч]]*$Z$2)","v":0},{"$f":"IF(VLOOKUP([Дата],S$2:U$3,3),IFERROR(IF(U9=\"\",Январь[[#This Row],[Выдано топливо, литр]],Январь[[#This Row],[Выдано топливо, литр]]+U9)+Январь[[#This Row],[Остаток топлива в баке на начало дня, литр]]-Январь[[#This Row],[Фактический расход топлива, литр]],\"\"),\"\")","v":500},{"$f":"ROUND((Январь[[#This Row],[Пройдено за день, км]]*0.01*$Y$2+Январь[[#This Row],[Расход топлива на работу спецоборудования, литр]]),3)+X9","v":0},{"$f":"ROUND(Январь[[#This Row],[Расход топлива по норме, литр]]/VLOOKUP([Дата],S$2:W$4,5),0)+Y9","v":0},{"$f":"IFERROR(Январь[[#This Row],[Фактический расход топлива, литр]]-Январь[[#This Row],[Расход топлива по норме, литр]],\"\")","v":0},null,{"$f":"Январь[[#This Row],[Дата]]","v":"2018-01-03"},null,null,null,null,null,null,null,{"$f":"Январь[[#This Row],[Дата]]","v":"2018-01-03"}]
[{"$f":"IFERROR(DATEVALUE((COUNT($A$6:A9)+1)&$P$1&$I$4),\"\")","v":"2018-01-04"},null,209024,209024,{"$f":"Январь[[#This Row],[Показание одометра машины на конец дня, км]]-Январь[[#This Row],[Показание одометра машины на начало дня, км]]+T10","v":0},{"$f":"SUMPRODUCT([1]январь!$E$4:$E$153*([1]январь!$G$4:$G$153=$O$4)*([1]январь!$D$4:$D$153=Январь[[#This Row],[Дата]]))","v":0},{"$f":"IF(Январь[[#This Row],[Дата]]=\"\",\"\",M9)","v":500},620,620,{"$f":"IF(W10=\"\",Январь[[#This Row],[Показание счетчика моточасов  спецоборудования на конец дня, м/ч]],Январь[[#This Row],[Показание счетчика моточасов  спецоборудования на конец дня, м/ч]]+1)-Январь[[#This Row],[Показание счетчика моточасов спецоборудования на начало дня, м/ч]]","v":0},null,{"$f":"IF(Январь[[#This Row],[Работа спецоборудования за день, м/ч]]=\"\",\"\",Январь[[#This Row],[Работа спецоборудования за день, м/ч]]*$Z$2)","v":0},{"$f":"IF(VLOOKUP([Дата],S$2:U$3,3),IFERROR(IF(U10=\"\",Январь[[#This Row],[Выдано топливо, литр]],Январь[[#This Row],[Выдано топливо, литр]]+U10)+Январь[[#This Row],[Остаток топлива в баке на начало дня, литр]]-Январь[[#This Row],[Фактический расход топлива, литр]],\"\"),\"\")","v":500},{"$f":"ROUND((Январь[[#This Row],[Пройдено за день, км]]*0.01*$Y$2+Январь[[#This Row],[Расход топлива на работу спецоборудования, литр]]),3)+X10","v":0},{"$f":"ROUND(Январь[[#This Row],[Расход топлива по норме, литр]]/VLOOKUP([Дата],S$2:W$4,5),0)+Y10","v":0},{"$f":"IFERROR(Январь[[#This Row],[Фактический расход топлива, литр]]-Январь[[#This Row],[Расход топлива по норме, литр]],\"\")","v":0},null,{"$f":"Январь[[#This Row],[Дата]]","v":"2018-01-04"},null,null,null,null,null,null,null,{"$f":"Январь[[#This Row],[Дата]]","v":"2018-01-04"}]
[{"$f":"IFERROR(DATEVALUE((COUNT($A$6:A10)+1)&$P$1&$I$4),\"\")","v":"2018-01-05"},null,209024,209024,{"$f":"Январь[[#This Row],[Показание одометра машины на конец дня, км]]-Январь[[#This Row],[Показание одометра машины на начало дня, км]]+T11","v":0},{"$f":"SUMPRODUCT([1]январь!$E$4:$E$153*([1]январь!$G$4:$G$153=$O$4)*([1]январь!$D$4:$D$153=Январь[[#This Row],[Дата]]))","v":0},{"$f":"IF(Январь[[#This Row],[Дата]]=\"\",\"\",M10)","v":500},620,620,{"$f":"IF(W11=\"\",Январь[[#This Row],[Показание счетчика моточасов  спецоборудования на конец дня, м/ч]],Январь[[#This Row],[Показание счетчика моточасов  спецоборудования на конец дня, м/ч]]+1)-Январь[[#This Row],[Показание счетчика моточасов спецоборудования на начало дня, м/ч]]","v":0},null,{"$f":"IF(Январь[[#This Row],[Работа спецоборудования за день, м/ч]]=\"\",\"\",Январь[[#This Row],[Работа спецоборудования за день, м/ч]]*$Z$2)","v":0},{"$f":"IF(VLOOKUP([Дата],S$2:U$3,3),IFERROR(IF(U11=\"\",Январь[[#This Row],[Выдано топливо, литр]],Январь[[#This Row],[Выдано топливо, литр]]+U11)+Январь[[#This Row],[Остаток топлива в баке на начало дня, литр]]-Январь[[#This Row],[Фактический расход топлива, литр]],\"\"),\"\")","v":500},{"$f":"ROUND((Январь[[#This Row],[Пройдено за день, км]]*0.01*$Y$2+Январь[[#This Row],[Расход топлива на работу спецоборудования, литр]]),3)+X11","v":0},{"$f":"ROUND(Январь[[#This Row],[Расход топлива по норме, литр]]/VLOOKUP([Дата],S$2:W$4,5),0)+Y11","v":0},{"$f":"IFERROR(Январь[[#This Row],[Фактический расход топлива, литр]]-Январь[[#This Row],[Расход топлива по норме, литр]],\"\")","v":0},null,{"$f":"Январь[[#This Row],[Дата]]","v":"2018-01-05"},null,null,null,null,null,null,null,{"$f":"Январь[[#This Row],[Дата]]","v":"2018-01-05"}]
[{"$f":"IFERROR(DATEVALUE((COUNT($A$6:A11)+1)&$P$1&$I$4),\"\")","v":"2018-01-06"},null,209024,209024,{"$f":"Январь[[#This Row],[Показание одометра машины на конец дня, км]]-Январь[[#This Row],[Показание одометра машины на начало дня, км]]+T12","v":0},{"$f":"SUMPRODUCT([1]январь!$E$4:$E$153*([1]январь!$G$4:$G$153=$O$4)*([1]январь!$D$4:$D$153=Январь[[#This Row],[Дата]]))","v":0},{"$f":"IF(Январь[[#This Row],[Дата]]=\"\",\"\",M11)","v":500},620,620,{"$f":"IF(W12=\"\",Январь[[#This Row],[Показание счетчика моточасов  спецоборудования на конец дня, м/ч]],Январь[[#This Row],[Показание счетчика моточасов  спецоборудования на конец дня, м/ч]]+1)-Январь[[#This Row],[Показание счетчика моточасов спецоборудования на начало дня, м/ч]]","v":0},null,{"$f":"IF(Январь[[#This Row],[Работа спецоборудования за день, м/ч]]=\"\",\"\",Январь[[#This Row],[Работа спецоборудования за день, м/ч]]*$Z$2)","v":0},{"$f":"IF(VLOOKUP([Дата],S$2:U$3,3),IFERROR(IF(U12=\"\",Январь[[#This Row],[Выдано топливо, литр]],Январь[[#This Row],[Выдано топливо, литр]]+U12)+Январь[[#This Row],[Остаток топлива в баке на начало дня, литр]]-Январь[[#This Row],[Фактический расход топлива, литр]],\"\"),\"\")","v":500},{"$f":"ROUND((Январь[[#This Row],[Пройдено за день, км]]*0.01*$Y$2+Январь[[#This Row],[Расход топлива на работу спецоборудования, литр]]),3)+X12","v":0},{"$f":"ROUND(Январь[[#This Row],[Расход топлива по норме, литр]]/VLOOKUP([Дата],S$2:W$4,5),0)+Y12","v":0},{"$f":"IFERROR(Январь[[#This Row],[Фактический расход топлива, литр]]-Январь[[#This Row],[Расход топлива по норме, литр]],\"\")","v":0},null,{"$f":"Январь[[#This Row],[Дата]]","v":"2018-01-06"},null,null,null,null,null,null,null,{"$f":"Январь[[#This Row],[Дата]]","v":"2018-01-06"}]
[{"$f":"IFERROR(DATEVALUE((COUNT($A$6:A12)+1)&$P$1&$I$4),\"\")","v":"2018-01-07"},null,209024,209024,{"$f":"Январь[[#This Row],[Показание одометра машины на конец дня, км]]-Январь[[#This Row],[Показание одометра машины на начало дня, км]]+T13","v":0},{"$f":"SUMPRODUCT([1]январь!$E$4:$E$153*([1]январь!$G$4:$G$153=$O$4)*([1]январь!$D$4:$D$153=Январь[[#This Row],[Дата]]))","v":0},{"$f":"IF(Январь[[#This Row],[Дата]]=\"\",\"\",M12)","v":500},620,620,{"$f":"IF(W13=\"\",Январь[[#This Row],[Показание счетчика моточасов  спецоборудования на конец дня, м/ч]],Январь[[#This Row],[Показание счетчика моточасов  спецоборудования на конец дня, м/ч]]+1)-Январь[[#This Row],[Показание счетчика моточасов спецоборудования на начало дня, м/ч]]","v":0},null,{"$f":"IF(Январь[[#This Row],[Работа спецоборудования за день, м/ч]]=\"\",\"\",Январь[[#This Row],[Работа спецоборудования за день, м/ч]]*$Z$2)","v":0},{"$f":"IF(VLOOKUP([Дата],S$2:U$3,3),IFERROR(IF(U13=\"\",Январь[[#This Row],[Выдано топливо, литр]],Январь[[#This Row],[Выдано топливо, литр]]+U13)+Январь[[#This Row],[Остаток топлива в баке на начало дня, литр]]-Январь[[#This Row],[Фактический расход топлива, литр]],\"\"),\"\")","v":500},{"$f":"ROUND((Январь[[#This Row],[Пройдено за день, км]]*0.01*$Y$2+Январь[[#This Row],[Расход топлива на работу спецоборудования, литр]]),3)+X13","v":0},{"$f":"ROUND(Январь[[#This Row],[Расход топлива по норме, литр]]/VLOOKUP([Дата],S$2:W$4,5),0)+Y13","v":0},{"$f":"IFERROR(Январь[[#This Row],[Фактический расход топлива, литр]]-Январь[[#This Row],[Расход топлива по норме, литр]],\"\")","v":0},null,{"$f":"Январь[[#This Row],[Дата]]","v":"2018-01-07"},null,null,null,null,null,null,null,{"$f":"Январь[[#This Row],[Дата]]","v":"2018-01-07"}]
[{"$f":"IFERROR(DATEVALUE((COUNT($A$6:A13)+1)&$P$1&$I$4),\"\")","v":"2018-01-08"},null,209024,209024,{"$f":"Январь[[#This Row],[Показание одометра машины на конец дня, км]]-Январь[[#This Row],[Показание одометра машины на начало дня, км]]+T14","v":0},{"$f":"SUMPRODUCT([1]январь!$E$4:$E$153*([1]январь!$G$4:$G$153=$O$4)*([1]январь!$D$4:$D$153=Январь[[#This Row],[Дата]]))","v":0},{"$f":"IF(Январь[[#This Row],[Дата]]=\"\",\"\",M13)","v":500},620,620,{"$f":"IF(W14=\"\",Январь[[#This Row],[Показание счетчика моточасов  спецоборудования на конец дня, м/ч]],Январь[[#This Row],[Показание счетчика моточасов  спецоборудования на конец дня, м/ч]]+1)-Январь[[#This Row],[Показание счетчика моточасов спецоборудования на начало дня, м/ч]]","v":0},null,{"$f":"IF(Январь[[#This Row],[Работа спецоборудования за день, м/ч]]=\"\",\"\",Январь[[#This Row],[Работа спецоборудования за день, м/ч]]*$Z$2)","v":0},{"$f":"IF(VLOOKUP([Дата],S$2:U$3,3),IFERROR(IF(U14=\"\",Январь[[#This Row],[Выдано топливо, литр]],Январь[[#This Row],[Выдано топливо, литр]]+U14)+Январь[[#This Row],[Остаток топлива в баке на начало дня, литр]]-Январь[[#This Row],[Фактический расход топлива, литр]],\"\"),\"\")","v":500},{"$f":"ROUND((Январь[[#This Row],[Пройдено за день, км]]*0.01*$Y$2+Январь[[#This Row],[Расход топлива на работу спецоборудования, литр]]),3)+X14","v":0},{"$f":"ROUND(Январь[[#This Row],[Расход топлива по норме, литр]]/VLOOKUP([Дата],S$2:W$4,5),0)+Y14","v":0},{"$f":"IFERROR(Январь[[#This Row],[Фактический расход топлива, литр]]-Январь[[#This Row],[Расход топлива по норме, литр]],\"\")","v":0},null,{"$f":"Январь[[#This Row],[Дата]]","v":"2018-01-08"},null,null,null,null,null,null,null,{"$f":"Январь[[#This Row],[Дата]]","v":"2018-01-08"}]
[{"$f":"IFERROR(DATEVALUE((COUNT($A$6:A14)+1)&$P$1&$I$4),\"\")","v":"2018-01-09"},null,209024,209024,{"$f":"Январь[[#This Row],[Показание одометра машины на конец дня, км]]-Январь[[#This Row],[Показание одометра машины на начало дня, км]]+T15","v":0},{"$f":"SUMPRODUCT([1]январь!$E$4:$E$153*([1]январь!$G$4:$G$153=$O$4)*([1]январь!$D$4:$D$153=Январь[[#This Row],[Дата]]))","v":0},{"$f":"IF(Январь[[#This Row],[Дата]]=\"\",\"\",M14)","v":500},620,620,{"$f":"IF(W15=\"\",Январь[[#This Row],[Показание счетчика моточасов  спецоборудования на конец дня, м/ч]],Январь[[#This Row],[Показание счетчика моточасов  спецоборудования на конец дня, м/ч]]+1)-Январь[[#This Row],[Показание счетчика моточасов спецоборудования на начало дня, м/ч]]","v":0},0,{"$f":"IF(Январь[[#This Row],[Работа спецоборудования за день, м/ч]]=\"\",\"\",Январь[[#This Row],[Работа спецоборудования за день, м/ч]]*$Z$2)","v":0},{"$f":"IF(VLOOKUP([Дата],S$2:U$3,3),IFERROR(IF(U15=\"\",Январь[[#This Row],[Выдано топливо, литр]],Январь[[#This Row],[Выдано топливо, литр]]+U15)+Январь[[#This Row],[Остаток топлива в баке на начало дня, литр]]-Январь[[#This Row],[Фактический расход топлива, литр]],\"\"),\"\")","v":500},{"$f":"ROUND((Январь[[#This Row],[Пройдено за день, км]]*0.01*$Y$2+Январь[[#This Row],[Расход топлива на работу спецоборудования, литр]]),3)+X15","v":0},{"$f":"ROUND(Январь[[#This Row],[Расход топлива по норме, литр]]/VLOOKUP([Дата],S$2:W$4,5),0)+Y15","v":0},{"$f":"IFERROR(Январь[[#This Row],[Фактический расход топлива, литр]]-Январь[[#This Row],[Расход топлива по норме, литр]],\"\")","v":0},null,{"$f":"Январь[[#This Row],[Дата]]","v":"2018-01-09"},null,null,null,null,null,null,null,{"$f":"Январь[[#This Row],[Дата]]","v":"2018-01-09"}]
[{"$f":"IFERROR(DATEVALUE((COUNT($A$6:A15)+1)&$P$1&$I$4),\"\")","v":"2018-01-10"},"Никляев В.А.",209024,209059,{"$f":"Январь[[#This Row],[Показание одометра машины на конец дня, км]]-Январь[[#This Row],[Показание одометра машины на начало дня, км]]+T16","v":35},{"$f":"SUMPRODUCT([1]январь!$E$4:$E$153*([1]январь!$G$4:$G$153=$O$4)*([1]январь!$D$4:$D$153=Январь[[#This Row],[Дата]]))","v":0},{"$f":"IF(Январь[[#This Row],[Дата]]=\"\",\"\",M15)","v":500},620,620,{"$f":"IF(W16=\"\",Январь[[#This Row],[Показание счетчика моточасов  спецоборудования на конец дня, м/ч]],Январь[[#This Row],[Показание счетчика моточасов  спецоборудования на конец дня, м/ч]]+1)-Январь[[#This Row],[Показание счетчика моточасов спецоборудования на начало дня, м/ч]]","v":0},1,{"$f":"IF(Январь[[#This Row],[Работа спецоборудования за день, м/ч]]=\"\",\"\",Январь[[#This Row],[Работа спецоборудования за день, м/ч]]*$Z$2)","v":0},{"$f":"IF(VLOOKUP([Дата],S$2:U$3,3),IFERROR(IF(U16=\"\",Январь[[#This Row],[Выдано топливо, литр]],Январь[[#This Row],[Выдано топливо, литр]]+U16)+Январь[[#This Row],[Остаток топлива в баке на начало дня, литр]]-Январь[[#This Row],[Фактический расход топлива, литр]],\"\"),\"\")","v":484},{"$f":"ROUND((Январь[[#This Row],[Пройдено за день, км]]*0.01*$Y$2+Январь[[#This Row],[Расход топлива на работу спецоборудования, литр]]),3)+X16","v":18.041},{"$f":"ROUND(Январь[[#This Row],[Расход топлива по норме, литр]]/VLOOKUP([Дата],S$2:W$4,5),0)+Y16","v":16},{"$f":"IFERROR(Январь[[#This Row],[Фактический расход топлива, литр]]-Январь[[#This Row],[Расход топлива по норме, литр]],\"\")","v":-2.0410000000000004},null,{"$f":"Январь[[#This Row],[Дата]]","v":"2018-01-10"},null,null,null,null,null,null,null,{"$f":"Январь[[#This Row],[Дата]]","v":"2018-01-10"}]
[{"$f":"IFERROR(DATEVALUE((COUNT($A$6:A16)+1)&$P$1&$I$4),\"\")","v":"2018-01-11"},"Никляев В.А.",209059,209084,{"$f":"Январь[[#This Row],[Показание одометра машины на конец дня, км]]-Январь[[#This Row],[Показание одометра машины на начало дня, км]]+T17","v":25},{"$f":"SUMPRODUCT([1]январь!$E$4:$E$153*([1]январь!$G$4:$G$153=$O$4)*([1]январь!$D$4:$D$153=Январь[[#This Row],[Дата]]))","v":0},{"$f":"IF(Январь[[#This Row],[Дата]]=\"\",\"\",M16)","v":484},620,622,{"$f":"IF(W17=\"\",Январь[[#This Row],[Показание счетчика моточасов  спецоборудования на конец дня, м/ч]],Январь[[#This Row],[Показание счетчика моточасов  спецоборудования на конец дня, м/ч]]+1)-Январь[[#This Row],[Показание счетчика моточасов спецоборудования на начало дня, м/ч]]","v":2},1,{"$f":"IF(Январь[[#This Row],[Работа спецоборудования за день, м/ч]]=\"\",\"\",Январь[[#This Row],[Работа спецоборудования за день, м/ч]]*$Z$2)","v":12.100000000000001},{"$f":"IF(VLOOKUP([Дата],S$2:U$3,3),IFERROR(IF(U17=\"\",Январь[[#This Row],[Выдано топливо, литр]],Январь[[#This Row],[Выдано топливо, литр]]+U17)+Январь[[#This Row],[Остаток топлива в баке на начало дня, литр]]-Январь[[#This Row],[Фактический расход топлива, литр]],\"\"),\"\")","v":461},{"$f":"ROUND((Январь[[#This Row],[Пройдено за день, км]]*0.01*$Y$2+Январь[[#This Row],[Расход топлива на работу спецоборудования, литр]]),3)+X17","v":24.986999999999998},{"$f":"ROUND(Январь[[#This Row],[Расход топлива по норме, литр]]/VLOOKUP([Дата],S$2:W$4,5),0)+Y17","v":23},{"$f":"IFERROR(Январь[[#This Row],[Фактический расход топлива, литр]]-Январь[[#This Row],[Расход топлива по норме, литр]],\"\")","v":-1.9869999999999983},null,{"$f":"Январь[[#This Row],[Дата]]","v":"2018-01-11"},null,null,null,null,null,null,null,{"$f":"Январь[[#This Row],[Дата]]","v":"2018-01-11"}]
[{"$f":"IFERROR(DATEVALUE((COUNT($A$6:A17)+1)&$P$1&$I$4),\"\")","v":"2018-01-12"},"Никляев В.А.",209084,209111,{"$f":"Январь[[#This Row],[Показание одометра машины на конец дня, км]]-Январь[[#This Row],[Показание одометра машины на начало дня, км]]+T18","v":27},{"$f":"SUMPRODUCT([1]январь!$E$4:$E$153*([1]январь!$G$4:$G$153=$O$4)*([1]январь!$D$4:$D$153=Январь[[#This Row],[Дата]]))","v":0},{"$f":"IF(Январь[[#This Row],[Дата]]=\"\",\"\",M17)","v":461},622,624,{"$f":"IF(W18=\"\",Январь[[#This Row],[Показание счетчика моточасов  спецоборудования на конец дня, м/ч]],Январь[[#This Row],[Показание счетчика моточасов  спецоборудования на конец дня, м/ч]]+1)-Январь[[#This Row],[Показание счетчика моточасов спецоборудования на начало дня, м/ч]]","v":2},1,{"$f":"IF(Январь[[#This Row],[Работа спецоборудования за день, м/ч]]=\"\",\"\",Январь[[#This Row],[Работа спецоборудования за день, м/ч]]*$Z$2)","v":12.100000000000001},{"$f":"IF(VLOOKUP([Дата],S$2:U$3,3),IFERROR(IF(U18=\"\",Январь[[#This Row],[Выдано топливо, литр]],Январь[[#This Row],[Выдано топливо, литр]]+U18)+Январь[[#This Row],[Остаток топлива в баке на начало дня, литр]]-Январь[[#This Row],[Фактический расход топлива, литр]],\"\"),\"\")","v":437},{"$f":"ROUND((Январь[[#This Row],[Пройдено за день, км]]*0.01*$Y$2+Январь[[#This Row],[Расход топлива на работу спецоборудования, литр]]),3)+X18","v":26.016999999999999},{"$f":"ROUND(Январь[[#This Row],[Расход топлива по норме, литр]]/VLOOKUP([Дата],S$2:W$4,5),0)+Y18","v":24},{"$f":"IFERROR(Январь[[#This Row],[Фактический расход топлива, литр]]-Январь[[#This Row],[Расход топлива по норме, литр]],\"\")","v":-2.0169999999999995},null,{"$f":"Январь[[#This Row],[Дата]]","v":"2018-01-12"},null,null,null,null,null,null,null,{"$f":"Январь[[#This Row],[Дата]]","v":"2018-01-12"}]
[{"$f":"IFERROR(DATEVALUE((COUNT($A$6:A18)+1)&$P$1&$I$4),\"\")","v":"2018-01-13"},"Никляев В.А.",209111,209168,{"$f":"Январь[[#This Row],[Показание одометра машины на конец дня, км]]-Январь[[#This Row],[Показание одометра машины на начало дня, км]]+T19","v":57},{"$f":"SUMPRODUCT([1]январь!$E$4:$E$153*([1]январь!$G$4:$G$153=$O$4)*([1]январь!$D$4:$D$153=Январь[[#This Row],[Дата]]))","v":0},{"$f":"IF(Январь[[#This Row],[Дата]]=\"\",\"\",M18)","v":437},624,626,{"$f":"IF(W19=\"\",Январь[[#This Row],[Показание счетчика моточасов  спецоборудования на конец дня, м/ч]],Январь[[#This Row],[Показание счетчика моточасов  спецоборудования на конец дня, м/ч]]+1)-Январь[[#This Row],[Показание счетчика моточасов спецоборудования на начало дня, м/ч]]","v":2},1,{"$f":"IF(Январь[[#This Row],[Работа спецоборудования за день, м/ч]]=\"\",\"\",Январь[[#This Row],[Работа спецоборудования за день, м/ч]]*$Z$2)","v":12.100000000000001},{"$f":"IF(VLOOKUP([Дата],S$2:U$3,3),IFERROR(IF(U19=\"\",Январь[[#This Row],[Выдано топливо, литр]],Январь[[#This Row],[Выдано топливо, литр]]+U19)+Январь[[#This Row],[Остаток топлива в баке на начало дня, литр]]-Январь[[#This Row],[Фактический расход топлива, литр]],\"\"),\"\")","v":399},{"$f":"ROUND((Январь[[#This Row],[Пройдено за день, км]]*0.01*$Y$2+Январь[[#This Row],[Расход топлива на работу спецоборудования, литр]]),3)+X19","v":41.481000000000002},{"$f":"ROUND(Январь[[#This Row],[Расход топлива по норме, литр]]/VLOOKUP([Дата],S$2:W$4,5),0)+Y19","v":38},{"$f":"IFERROR(Январь[[#This Row],[Фактический расход топлива, литр]]-Январь[[#This Row],[Расход топлива по норме, литр]],\"\")","v":-3.4810000000000016},null,{"$f":"Январь[[#This Row],[Дата]]","v":"2018-01-13"},null,null,null,null,null,null,null,{"$f":"Январь[[#This Row],[Дата]]","v":"2018-01-13"}]
[{"$f":"IFERROR(DATEVALUE((COUNT($A$6:A19)+1)&$P$1&$I$4),\"\")","v":"2018-01-14"},"Никляев В.А.",209168,209208,{"$f":"Январь[[#This Row],[Показание одометра машины на конец дня, км]]-Январь[[#This Row],[Показание одометра машины на начало дня, км]]+T20","v":40},{"$f":"SUMPRODUCT([1]январь!$E$4:$E$153*([1]январь!$G$4:$G$153=$O$4)*([1]январь!$D$4:$D$153=Январь[[#This Row],[Дата]]))","v":0},{"$f":"IF(Январь[[#This Row],[Дата]]=\"\",\"\",M19)","v":399},626,628,{"$f":"IF(W20=\"\",Январь[[#This Row],[Показание счетчика моточасов  спецоборудования на конец дня, м/ч]],Январь[[#This Row],[Показание счетчика моточасов  спецоборудования на конец дня, м/ч]]+1)-Январь[[#This Row],[Показание счетчика моточасов спецоборудования на начало дня, м/ч]]","v":2},1,{"$f":"IF(Январь[[#This Row],[Работа спецоборудования за день, м/ч]]=\"\",\"\",Январь[[#This Row],[Работа спецоборудования за день, м/ч]]*$Z$2)","v":12.100000000000001},{"$f":"IF(VLOOKUP([Дата],S$2:U$3,3),IFERROR(IF(U20=\"\",Январь[[#This Row],[Выдано топливо, литр]],Январь[[#This Row],[Выдано топливо, литр]]+U20)+Январь[[#This Row],[Остаток топлива в баке на начало дня, литр]]-Январь[[#This Row],[Фактический расход топлива, литр]],\"\"),\"\")","v":369},{"$f":"ROUND((Январь[[#This Row],[Пройдено за день, км]]*0.01*$Y$2+Январь[[#This Row],[Расход топлива на работу спецоборудования, литр]]),3)+X20","v":32.718000000000004},{"$f":"ROUND(Январь[[#This Row],[Расход топлива по норме, литр]]/VLOOKUP([Дата],S$2:W$4,5),0)+Y20","v":30},{"$f":"IFERROR(Январь[[#This Row],[Фактический расход топлива, литр]]-Январь[[#This Row],[Расход топлива по норме, литр]],\"\")","v":-2.7180000000000035},null,{"$f":"Январь[[#This Row],[Дата]]","v":"2018-01-14"},null,null,null,null,null,null,null,{"$f":"Январь[[#This Row],[Дата]]","v":"2018-01-14"}]
[{"$f":"IFERROR(DATEVALUE((COUNT($A$6:A20)+1)&$P$1&$I$4),\"\")","v":"2018-01-15"},"Никляев В.А.",209208,209221,{"$f":"Январь[[#This Row],[Показание одометра машины на конец дня, км]]-Январь[[#This Row],[Показание одометра машины на начало дня, км]]+T21","v":13},{"$f":"SUMPRODUCT([1]январь!$E$4:$E$153*([1]январь!$G$4:$G$153=$O$4)*([1]январь!$D$4:$D$153=Январь[[#This Row],[Дата]]))","v":0},{"$f":"IF(Январь[[#This Row],[Дата]]=\"\",\"\",M20)","v":369},628,630,{"$f":"IF(W21=\"\",Январь[[#This Row],[Показание счетчика моточасов  спецоборудования на конец дня, м/ч]],Январь[[#This Row],[Показание счетчика моточасов  спецоборудования на конец дня, м/ч]]+1)-Январь[[#This Row],[Показание счетчика моточасов спецоборудования на начало дня, м/ч]]","v":2},1,{"$f":"IF(Январь[[#This Row],[Работа спецоборудования за день, м/ч]]=\"\",\"\",Январь[[#This Row],[Работа спецоборудования за день, м/ч]]*$Z$2)","v":12.100000000000001},{"$f":"IF(VLOOKUP([Дата],S$2:U$3,3),IFERROR(IF(U21=\"\",Январь[[#This Row],[Выдано топливо, литр]],Январь[[#This Row],[Выдано топливо, литр]]+U21)+Январь[[#This Row],[Остаток топлива в баке на начало дня, литр]]-Январь[[#This Row],[Фактический расход топлива, литр]],\"\"),\"\")","v":352},{"$f":"ROUND((Январь[[#This Row],[Пройдено за день, км]]*0.01*$Y$2+Январь[[#This Row],[Расход топлива на работу спецоборудования, литр]]),3)+X21","v":18.800999999999998},{"$f":"ROUND(Январь[[#This Row],[Расход топлива по норме, литр]]/VLOOKUP([Дата],S$2:W$4,5),0)+Y21","v":17},{"$f":"IFERROR(Январь[[#This Row],[Фактический расход топлива, литр]]-Январь[[#This Row],[Расход топлива по норме, литр]],\"\")","v":-1.8009999999999984},null,{"$f":"Январь[[#This Row],[Дата]]","v":"2018-01-15"},null,null,null,null,null,null,null,{"$f":"Январь[[#This Row],[Дата]]","v":"2018-01-15"}]
[{"$f":"IFERROR(DATEVALUE((COUNT($A$6:A21)+1)&$P$1&$I$4),\"\")","v":"2018-01-16"},"Никляев В.А.",209221,209236,{"$f":"Январь[[#This Row],[Показание одометра машины на конец дня, км]]-Январь[[#This Row],[Показание одометра машины на начало дня, км]]+T22","v":15},{"$f":"SUMPRODUCT([1]январь!$E$4:$E$153*([1]январь!$G$4:$G$153=$O$4)*([1]январь!$D$4:$D$153=Январь[[#This Row],[Дата]]))","v":0},{"$f":"IF(Январь[[#This Row],[Дата]]=\"\",\"\",M21)","v":352},630,633,{"$f":"IF(W22=\"\",Январь[[#This Row],[Показание счетчика моточасов  спецоборудования на конец дня, м/ч]],Январь[[#This Row],[Показание счетчика моточасов  спецоборудования на конец дня, м/ч]]+1)-Январь[[#This Row],[Показание счетчика моточасов спецоборудования на начало дня, м/ч]]","v":3},2,{"$f":"IF(Январь[[#This Row],[Работа спецоборудования за день, м/ч]]=\"\",\"\",Январь[[#This Row],[Работа спецоборудования за день, м/ч]]*$Z$2)","v":18.150000000000002},{"$f":"IF(VLOOKUP([Дата],S$2:U$3,3),IFERROR(IF(U22=\"\",Январь[[#This Row],[Выдано топливо, литр]],Январь[[#This Row],[Выдано топливо, литр]]+U22)+Январь[[#This Row],[Остаток топлива в баке на начало дня, литр]]-Январь[[#This Row],[Фактический расход топлива, литр]],\"\"),\"\")","v":328},{"$f":"ROUND((Январь[[#This Row],[Пройдено за день, км]]*0.01*$Y$2+Январь[[#This Row],[Расход топлива на работу спецоборудования, литр]]),3)+X22","v":25.882000000000001},{"$f":"ROUND(Январь[[#This Row],[Расход топлива по норме, литр]]/VLOOKUP([Дата],S$2:W$4,5),0)+Y22","v":24},{"$f":"IFERROR(Январь[[#This Row],[Фактический расход топлива, литр]]-Январь[[#This Row],[Расход топлива по норме, литр]],\"\")","v":-1.8820000000000014},null,{"$f":"Январь[[#This Row],[Дата]]","v":"2018-01-16"},null,null,null,null,null,null,null,{"$f":"Январь[[#This Row],[Дата]]","v":"2018-01-16"}]
[{"$f":"IFERROR(DATEVALUE((COUNT($A$6:A22)+1)&$P$1&$I$4),\"\")","v":"2018-01-17"},"Никляев В.А.",209236,209489,{"$f":"Январь[[#This Row],[Показание одометра машины на конец дня, км]]-Январь[[#This Row],[Показание одометра машины на начало дня, км]]+T23","v":253},{"$f":"SUMPRODUCT([1]январь!$E$4:$E$153*([1]январь!$G$4:$G$153=$O$4)*([1]январь!$D$4:$D$153=Январь[[#This Row],[Дата]]))","v":0},{"$f":"IF(Январь[[#This Row],[Дата]]=\"\",\"\",M22)","v":328},633,636,{"$f":"IF(W23=\"\",Январь[[#This Row],[Показание счетчика моточасов  спецоборудования на конец дня, м/ч]],Январь[[#This Row],[Показание счетчика моточасов  спецоборудования на конец дня, м/ч]]+1)-Январь[[#This Row],[Показание счетчика моточасов спецоборудования на начало дня, м/ч]]","v":3},3,{"$f":"IF(Январь[[#This Row],[Работа спецоборудования за день, м/ч]]=\"\",\"\",Январь[[#This Row],[Работа спецоборудования за день, м/ч]]*$Z$2)","v":18.150000000000002},{"$f":"IF(VLOOKUP([Дата],S$2:U$3,3),IFERROR(IF(U23=\"\",Январь[[#This Row],[Выдано топливо, литр]],Январь[[#This Row],[Выдано топливо, литр]]+U23)+Январь[[#This Row],[Остаток топлива в баке на начало дня, литр]]-Январь[[#This Row],[Фактический расход топлива, литр]],\"\"),\"\")","v":192},{"$f":"ROUND((Январь[[#This Row],[Пройдено за день, км]]*0.01*$Y$2+Январь[[#This Row],[Расход топлива на работу спецоборудования, литр]]),3)+X23","v":148.56100000000001},{"$f":"ROUND(Январь[[#This Row],[Расход топлива по норме, литр]]/VLOOKUP([Дата],S$2:W$4,5),0)+Y23","v":136},{"$f":"IFERROR(Январь[[#This Row],[Фактический расход топлива, литр]]-Январь[[#This Row],[Расход топлива по норме, литр]],\"\")","v":-12.561000000000007},null,{"$f":"Январь[[#This Row],[Дата]]","v":"2018-01-17"},null,null,null,null,null,null,1,{"$f":"Январь[[#This Row],[Дата]]","v":"2018-01-17"}]
[{"$f":"IFERROR(DATEVALUE((COUNT($A$6:A23)+1)&$P$1&$I$4),\"\")","v":"2018-01-18"},"Никляев В.А.",209489,209516,{"$f":"Январь[[#This Row],[Показание одометра машины на конец дня, км]]-Январь[[#This Row],[Показание одометра машины на начало дня, км]]+T24","v":27},{"$f":"SUMPRODUCT([1]январь!$E$4:$E$153*([1]январь!$G$4:$G$153=$O$4)*([1]январь!$D$4:$D$153=Январь[[#This Row],[Дата]]))","v":380},{"$f":"IF(Январь[[#This Row],[Дата]]=\"\",\"\",M23)","v":192},636,638,{"$f":"IF(W24=\"\",Январь[[#This Row],[Показание счетчика моточасов  спецоборудования на конец дня, м/ч]],Январь[[#This Row],[Показание счетчика моточасов  спецоборудования на конец дня, м/ч]]+1)-Январь[[#This Row],[Показание счетчика моточасов спецоборудования на начало дня, м/ч]]","v":2},1,{"$f":"IF(Январь[[#This Row],[Работа спецоборудования за день, м/ч]]=\"\",\"\",Январь[[#This Row],[Работа спецоборудования за день, м/ч]]*$Z$2)","v":12.100000000000001},{"$f":"IF(VLOOKUP([Дата],S$2:U$3,3),IFERROR(IF(U24=\"\",Январь[[#This Row],[Выдано топливо, литр]],Январь[[#This Row],[Выдано топливо, литр]]+U24)+Январь[[#This Row],[Остаток топлива в баке на начало дня, литр]]-Январь[[#This Row],[Фактический расход топлива, литр]],\"\"),\"\")","v":500},{"$f":"ROUND((Январь[[#This Row],[Пройдено за день, км]]*0.01*$Y$2+Январь[[#This Row],[Расход топлива на работу спецоборудования, литр]]),3)+X24","v":26.016999999999999},{"$f":"ROUND(Январь[[#This Row],[Расход топлива по норме, литр]]/VLOOKUP([Дата],S$2:W$4,5),0)+Y24","v":22},{"$f":"IFERROR(Январь[[#This Row],[Фактический расход топлива, литр]]-Январь[[#This Row],[Расход топлива по норме, литр]],\"\")","v":-4.0169999999999995},null,{"$f":"Январь[[#This Row],[Дата]]","v":"2018-01-18"},null,null,-50,null,null,null,-2,{"$f":"Январь[[#This Row],[Дата]]","v":"2018-01-18"}]
[{"$f":"IFERROR(DATEVALUE((COUNT($A$6:A24)+1)&$P$1&$I$4),\"\")","v":"2018-01-19"},"Никляев В.А.",209516,209618,{"$f":"Январь[[#This Row],[Показание одометра машины на конец дня, км]]-Январь[[#This Row],[Показание одометра машины на начало дня, км]]+T25","v":102},{"$f":"SUMPRODUCT([1]январь!$E$4:$E$153*([1]январь!$G$4:$G$153=$O$4)*([1]январь!$D$4:$D$153=Январь[[#This Row],[Дата]]))","v":0},{"$f":"IF(Январь[[#This Row],[Дата]]=\"\",\"\",M24)","v":500},638,640,{"$f":"IF(W25=\"\",Январь[[#This Row],[Показание счетчика моточасов  спецоборудования на конец дня, м/ч]],Январь[[#This Row],[Показание счетчика моточасов  спецоборудования на конец дня, м/ч]]+1)-Январь[[#This Row],[Показание счетчика моточасов спецоборудования на начало дня, м/ч]]","v":2},1,{"$f":"IF(Январь[[#This Row],[Работа спецоборудования за день, м/ч]]=\"\",\"\",Январь[[#This Row],[Работа спецоборудования за день, м/ч]]*$Z$2)","v":12.100000000000001},{"$f":"IF(VLOOKUP([Дата],S$2:U$3,3),IFERROR(IF(U25=\"\",Январь[[#This Row],[Выдано топливо, литр]],Январь[[#This Row],[Выдано топливо, литр]]+U25)+Январь[[#This Row],[Остаток топлива в баке на начало дня, литр]]-Январь[[#This Row],[Фактический расход топлива, литр]],\"\"),\"\")","v":441},{"$f":"ROUND((Январь[[#This Row],[Пройдено за день, км]]*0.01*$Y$2+Январь[[#This Row],[Расход топлива на работу спецоборудования, литр]]),3)+X25","v":64.677000000000007},{"$f":"ROUND(Январь[[#This Row],[Расход топлива по норме, литр]]/VLOOKUP([Дата],S$2:W$4,5),0)+Y25","v":59},{"$f":"IFERROR(Январь[[#This Row],[Фактический расход топлива, литр]]-Январь[[#This Row],[Расход топлива по норме, литр]],\"\")","v":-5.6770000000000067},null,{"$f":"Январь[[#This Row],[Дата]]","v":"2018-01-19"},null,null,null,null,null,null,null,{"$f":"Январь[[#This Row],[Дата]]","v":"2018-01-19"}]
[{"$f":"IFERROR(DATEVALUE((COUNT($A$6:A25)+1)&$P$1&$I$4),\"\")","v":"2018-01-20"},null,209618,209618,{"$f":"Январь[[#This Row],[Показание одометра машины на конец дня, км]]-Январь[[#This Row],[Показание одометра машины на начало дня, км]]+T26","v":0},{"$f":"SUMPRODUCT([1]январь!$E$4:$E$153*([1]январь!$G$4:$G$153=$O$4)*([1]январь!$D$4:$D$153=Январь[[#This Row],[Дата]]))","v":0},{"$f":"IF(Январь[[#This Row],[Дата]]=\"\",\"\",M25)","v":441},640,640,{"$f":"IF(W26=\"\",Январь[[#This Row],[Показание счетчика моточасов  спецоборудования на конец дня, м/ч]],Январь[[#This Row],[Показание счетчика моточасов  спецоборудования на конец дня, м/ч]]+1)-Январь[[#This Row],[Показание счетчика моточасов спецоборудования на начало дня, м/ч]]","v":0},0,{"$f":"IF(Январь[[#This Row],[Работа спецоборудования за день, м/ч]]=\"\",\"\",Январь[[#This Row],[Работа спецоборудования за день, м/ч]]*$Z$2)","v":0},{"$f":"IF(VLOOKUP([Дата],S$2:U$3,3),IFERROR(IF(U26=\"\",Январь[[#This Row],[Выдано топливо, литр]],Январь[[#This Row],[Выдано топливо, литр]]+U26)+Январь[[#This Row],[Остаток топлива в баке на начало дня, литр]]-Январь[[#This Row],[Фактический расход топлива, литр]],\"\"),\"\")","v":441},{"$f":"ROUND((Январь[[#This Row],[Пройдено за день, км]]*0.01*$Y$2+Январь[[#This Row],[Расход топлива на работу спецоборудования, литр]]),3)+X26","v":0},{"$f":"ROUND(Январь[[#This Row],[Расход топлива по норме, литр]]/VLOOKUP([Дата],S$2:W$4,5),0)+Y26","v":0},{"$f":"IFERROR(Январь[[#This Row],[Фактический расход топлива, литр]]-Январь[[#This Row],[Расход топлива по норме, литр]],\"\")","v":0},null,{"$f":"Январь[[#This Row],[Дата]]","v":"2018-01-20"},null,null,null,null,null,null,null,{"$f":"Январь[[#This Row],[Дата]]","v":"2018-01-20"}]
[{"$f":"IFERROR(DATEVALUE((COUNT($A$6:A26)+1)&$P$1&$I$4),\"\")","v":"2018-01-21"},"Никляев В.А.",209618,209646,{"$f":"Январь[[#This Row],[Показание одометра машины на конец дня, км]]-Январь[[#This Row],[Показание одометра машины на начало дня, км]]+T27","v":28},{"$f":"SUMPRODUCT([1]январь!$E$4:$E$153*([1]январь!$G$4:$G$153=$O$4)*([1]январь!$D$4:$D$153=Январь[[#This Row],[Дата]]))","v":0},{"$f":"IF(Январь[[#This Row],[Дата]]=\"\",\"\",M26)","v":441},640,643,{"$f":"IF(W27=\"\",Январь[[#This Row],[Показание счетчика моточасов  спецоборудования на конец дня, м/ч]],Январь[[#This Row],[Показание счетчика моточасов  спецоборудования на конец дня, м/ч]]+1)-Январь[[#This Row],[Показание счетчика моточасов спецоборудования на начало дня, м/ч]]","v":3},2,{"$f":"IF(Январь[[#This Row],[Работа спецоборудования за день, м/ч]]=\"\",\"\",Январь[[#This Row],[Работа спецоборудования за день, м/ч]]*$Z$2)","v":18.150000000000002},{"$f":"IF(VLOOKUP([Дата],S$2:U$3,3),IFERROR(IF(U27=\"\",Январь[[#This Row],[Выдано топливо, литр]],Январь[[#This Row],[Выдано топливо, литр]]+U27)+Январь[[#This Row],[Остаток топлива в баке на начало дня, литр]]-Январь[[#This Row],[Фактический расход топлива, литр]],\"\"),\"\")","v":411},{"$f":"ROUND((Январь[[#This Row],[Пройдено за день, км]]*0.01*$Y$2+Январь[[#This Row],[Расход топлива на работу спецоборудования, литр]]),3)+X27","v":32.582999999999998},{"$f":"ROUND(Январь[[#This Row],[Расход топлива по норме, литр]]/VLOOKUP([Дата],S$2:W$4,5),0)+Y27","v":30},{"$f":"IFERROR(Январь[[#This Row],[Фактический расход топлива, литр]]-Январь[[#This Row],[Расход топлива по норме, литр]],\"\")","v":-2.5829999999999984},null,{"$f":"Январь[[#This Row],[Дата]]","v":"2018-01-21"},null,null,null,null,null,null,null,{"$f":"Январь[[#This Row],[Дата]]","v":"2018-01-21"}]
[{"$f":"IFERROR(DATEVALUE((COUNT($A$6:A27)+1)&$P$1&$I$4),\"\")","v":"2018-01-22"},"Никляев В.А.",209646,209695,{"$f":"Январь[[#This Row],[Показание одометра машины на конец дня, км]]-Январь[[#This Row],[Показание одометра машины на начало дня, км]]+T28","v":49},{"$f":"SUMPRODUCT([1]январь!$E$4:$E$153*([1]январь!$G$4:$G$153=$O$4)*([1]январь!$D$4:$D$153=Январь[[#This Row],[Дата]]))","v":0},{"$f":"IF(Январь[[#This Row],[Дата]]=\"\",\"\",M27)","v":411},643,645,{"$f":"IF(W28=\"\",Январь[[#This Row],[Показание счетчика моточасов  спецоборудования на конец дня, м/ч]],Январь[[#This Row],[Показание счетчика моточасов  спецоборудования на конец дня, м/ч]]+1)-Январь[[#This Row],[Показание счетчика моточасов спецоборудования на начало дня, м/ч]]","v":2},1,{"$f":"IF(Январь[[#This Row],[Работа спецоборудования за день, м/ч]]=\"\",\"\",Январь[[#This Row],[Работа спецоборудования за день, м/ч]]*$Z$2)","v":12.100000000000001},{"$f":"IF(VLOOKUP([Дата],S$2:U$3,3),IFERROR(IF(U28=\"\",Январь[[#This Row],[Выдано топливо, литр]],Январь[[#This Row],[Выдано топливо, литр]]+U28)+Январь[[#This Row],[Остаток топлива в баке на начало дня, литр]]-Январь[[#This Row],[Фактический расход топлива, литр]],\"\"),\"\")","v":377},{"$f":"ROUND((Январь[[#This Row],[Пройдено за день, км]]*0.01*$Y$2+Январь[[#This Row],[Расход топлива на работу спецоборудования, литр]]),3)+X28","v":37.357999999999997},{"$f":"ROUND(Январь[[#This Row],[Расход топлива по норме, литр]]/VLOOKUP([Дата],S$2:W$4,5),0)+Y28","v":34},{"$f":"IFERROR(Январь[[#This Row],[Фактический расход топлива, литр]]-Январь[[#This Row],[Расход топлива по норме, литр]],\"\")","v":-3.357999999999997},null,{"$f":"Январь[[#This Row],[Дата]]","v":"2018-01-22"},null,null,null,null,null,null,null,{"$f":"Январь[[#This Row],[Дата]]","v":"2018-01-22"}]
[{"$f":"IFERROR(DATEVALUE((COUNT($A$6:A28)+1)&$P$1&$I$4),\"\")","v":"2018-01-23"},"Никляев В.А.",209695,209719,{"$f":"Январь[[#This Row],[Показание одометра машины на конец дня, км]]-Январь[[#This Row],[Показание одометра машины на начало дня, км]]+T29","v":24},{"$f":"SUMPRODUCT([1]январь!$E$4:$E$153*([1]январь!$G$4:$G$153=$O$4)*([1]январь!$D$4:$D$153=Январь[[#This Row],[Дата]]))","v":0},{"$f":"IF(Январь[[#This Row],[Дата]]=\"\",\"\",M28)","v":377},645,647,{"$f":"IF(W29=\"\",Январь[[#This Row],[Показание счетчика моточасов  спецоборудования на конец дня, м/ч]],Январь[[#This Row],[Показание счетчика моточасов  спецоборудования на конец дня, м/ч]]+1)-Январь[[#This Row],[Показание счетчика моточасов спецоборудования на начало дня, м/ч]]","v":2},1,{"$f":"IF(Январь[[#This Row],[Работа спецоборудования за день, м/ч]]=\"\",\"\",Январь[[#This Row],[Работа спецоборудования за день, м/ч]]*$Z$2)","v":12.100000000000001},{"$f":"IF(VLOOKUP([Дата],S$2:U$3,3),IFERROR(IF(U29=\"\",Январь[[#This Row],[Выдано топливо, литр]],Январь[[#This Row],[Выдано топливо, литр]]+U29)+Январь[[#This Row],[Остаток топлива в баке на начало дня, литр]]-Январь[[#This Row],[Фактический расход топлива, литр]],\"\"),\"\")","v":355},{"$f":"ROUND((Январь[[#This Row],[Пройдено за день, км]]*0.01*$Y$2+Январь[[#This Row],[Расход топлива на работу спецоборудования, литр]]),3)+X29","v":24.471},{"$f":"ROUND(Январь[[#This Row],[Расход топлива по норме, литр]]/VLOOKUP([Дата],S$2:W$4,5),0)+Y29","v":22},{"$f":"IFERROR(Январь[[#This Row],[Фактический расход топлива, литр]]-Январь[[#This Row],[Расход топлива по норме, литр]],\"\")","v":-2.4710000000000001},null,{"$f":"Январь[[#This Row],[Дата]]","v":"2018-01-23"},null,null,null,null,null,null,null,{"$f":"Январь[[#This Row],[Дата]]","v":"2018-01-23"}]
[{"$f":"IFERROR(DATEVALUE((COUNT($A$6:A29)+1)&$P$1&$I$4),\"\")","v":"2018-01-24"},"Никляев В.А.",209719,210061,{"$f":"Январь[[#This Row],[Показание одометра машины на конец дня, км]]-Январь[[#This Row],[Показание одометра машины на начало дня, км]]+T30","v":342},{"$f":"SUMPRODUCT([1]январь!$E$4:$E$153*([1]январь!$G$4:$G$153=$O$4)*([1]январь!$D$4:$D$153=Январь[[#This Row],[Дата]]))","v":0},{"$f":"IF(Январь[[#This Row],[Дата]]=\"\",\"\",M29)","v":355},647,651,{"$f":"IF(W30=\"\",Январь[[#This Row],[Показание счетчика моточасов  спецоборудования на конец дня, м/ч]],Январь[[#This Row],[Показание счетчика моточасов  спецоборудования на конец дня, м/ч]]+1)-Январь[[#This Row],[Показание счетчика моточасов спецоборудования на начало дня, м/ч]]","v":4},2,{"$f":"IF(Январь[[#This Row],[Работа спецоборудования за день, м/ч]]=\"\",\"\",Январь[[#This Row],[Работа спецоборудования за день, м/ч]]*$Z$2)","v":24.200000000000003},{"$f":"IF(VLOOKUP([Дата],S$2:U$3,3),IFERROR(IF(U30=\"\",Январь[[#This Row],[Выдано топливо, литр]],Январь[[#This Row],[Выдано топливо, литр]]+U30)+Январь[[#This Row],[Остаток топлива в баке на начало дня, литр]]-Январь[[#This Row],[Фактический расход топлива, литр]],\"\"),\"\")","v":173},{"$f":"ROUND((Январь[[#This Row],[Пройдено за день, км]]*0.01*$Y$2+Январь[[#This Row],[Расход топлива на работу спецоборудования, литр]]),3)+X30","v":200.48699999999999},{"$f":"ROUND(Январь[[#This Row],[Расход топлива по норме, литр]]/VLOOKUP([Дата],S$2:W$4,5),0)+Y30","v":182},{"$f":"IFERROR(Январь[[#This Row],[Фактический расход топлива, литр]]-Январь[[#This Row],[Расход топлива по норме, литр]],\"\")","v":-18.486999999999995},null,{"$f":"Январь[[#This Row],[Дата]]","v":"2018-01-24"},null,null,null,null,null,null,null,{"$f":"Январь[[#This Row],[Дата]]","v":"2018-01-24"}]
[{"$f":"IFERROR(DATEVALUE((COUNT($A$6:A30)+1)&$P$1&$I$4),\"\")","v":"2018-01-25"},"Никляев В.А.",210061,210300,{"$f":"Январь[[#This Row],[Показание одометра машины на конец дня, км]]-Январь[[#This Row],[Показание одометра машины на начало дня, км]]+T31","v":239},{"$f":"SUMPRODUCT([1]январь!$E$4:$E$153*([1]январь!$G$4:$G$153=$O$4)*([1]январь!$D$4:$D$153=Январь[[#This Row],[Дата]]))","v":300},{"$f":"IF(Январь[[#This Row],[Дата]]=\"\",\"\",M30)","v":173},651,656,{"$f":"IF(W31=\"\",Январь[[#This Row],[Показание счетчика моточасов  спецоборудования на конец дня, м/ч]],Январь[[#This Row],[Показание счетчика моточасов  спецоборудования на конец дня, м/ч]]+1)-Январь[[#This Row],[Показание счетчика моточасов спецоборудования на начало дня, м/ч]]","v":5},3,{"$f":"IF(Январь[[#This Row],[Работа спецоборудования за день, м/ч]]=\"\",\"\",Январь[[#This Row],[Работа спецоборудования за день, м/ч]]*$Z$2)","v":30.250000000000004},{"$f":"IF(VLOOKUP([Дата],S$2:U$3,3),IFERROR(IF(U31=\"\",Январь[[#This Row],[Выдано топливо, литр]],Январь[[#This Row],[Выдано топливо, литр]]+U31)+Январь[[#This Row],[Остаток топлива в баке на начало дня, литр]]-Январь[[#This Row],[Фактический расход топлива, литр]],\"\"),\"\")","v":334},{"$f":"ROUND((Январь[[#This Row],[Пройдено за день, км]]*0.01*$Y$2+Январь[[#This Row],[Расход топлива на работу спецоборудования, литр]]),3)+X31","v":153.44499999999999},{"$f":"ROUND(Январь[[#This Row],[Расход топлива по норме, литр]]/VLOOKUP([Дата],S$2:W$4,5),0)+Y31","v":139},{"$f":"IFERROR(Январь[[#This Row],[Фактический расход топлива, литр]]-Январь[[#This Row],[Расход топлива по норме, литр]],\"\")","v":-14.444999999999993},null,{"$f":"Январь[[#This Row],[Дата]]","v":"2018-01-25"},null,null,null,null,null,null,null,{"$f":"Январь[[#This Row],[Дата]]","v":"2018-01-25"}]
[{"$f":"IFERROR(DATEVALUE((COUNT($A$6:A31)+1)&$P$1&$I$4),\"\")","v":"2018-01-26"},"Никляев В.А.",210300,210327,{"$f":"Январь[[#This Row],[Показание одометра машины на конец дня, км]]-Январь[[#This Row],[Показание одометра машины на начало дня, км]]+T32","v":27},{"$f":"SUMPRODUCT([1]январь!$E$4:$E$153*([1]январь!$G$4:$G$153=$O$4)*([1]январь!$D$4:$D$153=Январь[[#This Row],[Дата]]))","v":0},{"$f":"IF(Январь[[#This Row],[Дата]]=\"\",\"\",M31)","v":334},656,658,{"$f":"IF(W32=\"\",Январь[[#This Row],[Показание счетчика моточасов  спецоборудования на конец дня, м/ч]],Январь[[#This Row],[Показание счетчика моточасов  спецоборудования на конец дня, м/ч]]+1)-Январь[[#This Row],[Показание счетчика моточасов спецоборудования на начало дня, м/ч]]","v":2},1,{"$f":"IF(Январь[[#This Row],[Работа спецоборудования за день, м/ч]]=\"\",\"\",Январь[[#This Row],[Работа спецоборудования за день, м/ч]]*$Z$2)","v":12.100000000000001},{"$f":"IF(VLOOKUP([Дата],S$2:U$3,3),IFERROR(IF(U32=\"\",Январь[[#This Row],[Выдано топливо, литр]],Январь[[#This Row],[Выдано топливо, литр]]+U32)+Январь[[#This Row],[Остаток топлива в баке на начало дня, литр]]-Январь[[#This Row],[Фактический расход топлива, литр]],\"\"),\"\")","v":310},{"$f":"ROUND((Январь[[#This Row],[Пройдено за день, км]]*0.01*$Y$2+Январь[[#This Row],[Расход топлива на работу спецоборудования, литр]]),3)+X32","v":26.016999999999999},{"$f":"ROUND(Январь[[#This Row],[Расход топлива по норме, литр]]/VLOOKUP([Дата],S$2:W$4,5),0)+Y32","v":24},{"$f":"IFERROR(Январь[[#This Row],[Фактический расход топлива, литр]]-Январь[[#This Row],[Расход топлива по норме, литр]],\"\")","v":-2.0169999999999995},null,{"$f":"Январь[[#This Row],[Дата]]","v":"2018-01-26"},null,null,null,null,null,null,null,{"$f":"Январь[[#This Row],[Дата]]","v":"2018-01-26"}]
[{"$f":"IFERROR(DATEVALUE((COUNT($A$6:A32)+1)&$P$1&$I$4),\"\")","v":"2018-01-27"},"Никляев В.А.",210327,210354,{"$f":"Январь[[#This Row],[Показание одометра машины на конец дня, км]]-Январь[[#This Row],[Показание одометра машины на начало дня, км]]+T33","v":27},{"$f":"SUMPRODUCT([1]январь!$E$4:$E$153*([1]январь!$G$4:$G$153=$O$4)*([1]январь!$D$4:$D$153=Январь[[#This Row],[Дата]]))","v":0},{"$f":"IF(Январь[[#This Row],[Дата]]=\"\",\"\",M32)","v":310},658,660,{"$f":"IF(W33=\"\",Январь[[#This Row],[Показание счетчика моточасов  спецоборудования на конец дня, м/ч]],Январь[[#This Row],[Показание счетчика моточасов  спецоборудования на конец дня, м/ч]]+1)-Январь[[#This Row],[Показание счетчика моточасов спецоборудования на начало дня, м/ч]]","v":2},1,{"$f":"IF(Январь[[#This Row],[Работа спецоборудования за день, м/ч]]=\"\",\"\",Январь[[#This Row],[Работа спецоборудования за день, м/ч]]*$Z$2)","v":12.100000000000001},{"$f":"IF(VLOOKUP([Дата],S$2:U$3,3),IFERROR(IF(U33=\"\",Январь[[#This Row],[Выдано топливо, литр]],Январь[[#This Row],[Выдано топливо, литр]]+U33)+Январь[[#This Row],[Остаток топлива в баке на начало дня, литр]]-Январь[[#This Row],[Фактический расход топлива, литр]],\"\"),\"\")","v":286},{"$f":"ROUND((Январь[[#This Row],[Пройдено за день, км]]*0.01*$Y$2+Январь[[#This Row],[Расход топлива на работу спецоборудования, литр]]),3)+X33","v":26.016999999999999},{"$f":"ROUND(Январь[[#This Row],[Расход топлива по норме, литр]]/VLOOKUP([Дата],S$2:W$4,5),0)+Y33","v":24},{"$f":"IFERROR(Январь[[#This Row],[Фактический расход топлива, литр]]-Январь[[#This Row],[Расход топлива по норме, литр]],\"\")","v":-2.0169999999999995},null,{"$f":"Январь[[#This Row],[Дата]]","v":"2018-01-27"},null,null,null,null,null,null,null,{"$f":"Январь[[#This Row],[Дата]]","v":"2018-01-27"}]
[{"$f":"IFERROR(DATEVALUE((COUNT($A$6:A33)+1)&$P$1&$I$4),\"\")","v":"2018-01-28"},"Никляев В.А.",210354,210448,{"$f":"Январь[[#This Row],[Показание одометра машины на конец дня, км]]-Январь[[#This Row],[Показание одометра машины на начало дня, км]]+T34","v":94},{"$f":"SUMPRODUCT([1]январь!$E$4:$E$153*([1]январь!$G$4:$G$153=$O$4)*([1]январь!$D$4:$D$153=Январь[[#This Row],[Дата]]))","v":0},{"$f":"IF(Январь[[#This Row],[Дата]]=\"\",\"\",M33)","v":286},660,665,{"$f":"IF(W34=\"\",Январь[[#This Row],[Показание счетчика моточасов  спецоборудования на конец дня, м/ч]],Январь[[#This Row],[Показание счетчика моточасов  спецоборудования на конец дня, м/ч]]+1)-Январь[[#This Row],[Показание счетчика моточасов спецоборудования на начало дня, м/ч]]","v":5},3,{"$f":"IF(Январь[[#This Row],[Работа спецоборудования за день, м/ч]]=\"\",\"\",Январь[[#This Row],[Работа спецоборудования за день, м/ч]]*$Z$2)","v":30.250000000000004},{"$f":"IF(VLOOKUP([Дата],S$2:U$3,3),IFERROR(IF(U34=\"\",Январь[[#This Row],[Выдано топливо, литр]],Январь[[#This Row],[Выдано топливо, литр]]+U34)+Январь[[#This Row],[Остаток топлива в баке на начало дня, литр]]-Январь[[#This Row],[Фактический расход топлива, литр]],\"\"),\"\")","v":215},{"$f":"ROUND((Январь[[#This Row],[Пройдено за день, км]]*0.01*$Y$2+Январь[[#This Row],[Расход топлива на работу спецоборудования, литр]]),3)+X34","v":78.703000000000003},{"$f":"ROUND(Январь[[#This Row],[Расход топлива по норме, литр]]/VLOOKUP([Дата],S$2:W$4,5),0)+Y34","v":71},{"$f":"IFERROR(Январь[[#This Row],[Фактический расход топлива, литр]]-Январь[[#This Row],[Расход топлива по норме, литр]],\"\")","v":-7.703000000000003},null,{"$f":"Январь[[#This Row],[Дата]]","v":"2018-01-28"},null,null,null,null,null,null,null,{"$f":"Январь[[#This Row],[Дата]]","v":"2018-01-28"}]
[{"$f":"IFERROR(DATEVALUE((COUNT($A$6:A34)+1)&$P$1&$I$4),\"\")","v":"2018-01-29"},"Никляев В.А.",210448,210582,{"$f":"Январь[[#This Row],[Показание одометра машины на конец дня, км]]-Январь[[#This Row],[Показание одометра машины на начало дня, км]]+T35","v":134},{"$f":"SUMPRODUCT([1]январь!$E$4:$E$153*([1]январь!$G$4:$G$153=$O$4)*([1]январь!$D$4:$D$153=Январь[[#This Row],[Дата]]))","v":370},{"$f":"IF(Январь[[#This Row],[Дата]]=\"\",\"\",M34)","v":215},665,667,{"$f":"IF(W35=\"\",Январь[[#This Row],[Показание счетчика моточасов  спецоборудования на конец дня, м/ч]],Январь[[#This Row],[Показание счетчика моточасов  спецоборудования на конец дня, м/ч]]+1)-Январь[[#This Row],[Показание счетчика моточасов спецоборудования на начало дня, м/ч]]","v":2},3,{"$f":"IF(Январь[[#This Row],[Работа спецоборудования за день, м/ч]]=\"\",\"\",Январь[[#This Row],[Работа спецоборудования за день, м/ч]]*$Z$2)","v":12.100000000000001},{"$f":"IF(VLOOKUP([Дата],S$2:U$3,3),IFERROR(IF(U35=\"\",Январь[[#This Row],[Выдано топливо, литр]],Январь[[#This Row],[Выдано топливо, литр]]+U35)+Январь[[#This Row],[Остаток топлива в баке на начало дня, литр]]-Январь[[#This Row],[Фактический расход топлива, литр]],\"\"),\"\")","v":343},{"$f":"ROUND((Январь[[#This Row],[Пройдено за день, км]]*0.01*$Y$2+Январь[[#This Row],[Расход топлива на работу спецоборудования, литр]]),3)+X35","v":81.171999999999997},{"$f":"ROUND(Январь[[#This Row],[Расход топлива по норме, литр]]/VLOOKUP([Дата],S$2:W$4,5),0)+Y35","v":74},{"$f":"IFERROR(Январь[[#This Row],[Фактический расход топлива, литр]]-Январь[[#This Row],[Расход топлива по норме, литр]],\"\")","v":-7.171999999999997},null,{"$f":"Январь[[#This Row],[Дата]]","v":"2018-01-29"},null,null,-168,null,null,null,null,{"$f":"Январь[[#This Row],[Дата]]","v":"2018-01-29"}]
[{"$f":"IFERROR(DATEVALUE((COUNT($A$6:A35)+1)&$P$1&$I$4),\"\")","v":"2018-01-30"},"Никляев В.А.",210582,210696,{"$f":"Январь[[#This Row],[Показание одометра машины на конец дня, км]]-Январь[[#This Row],[Показание одометра машины на начало дня, км]]+T36","v":126},{"$f":"SUMPRODUCT([1]январь!$E$4:$E$153*([1]январь!$G$4:$G$153=$O$4)*([1]январь!$D$4:$D$153=Январь[[#This Row],[Дата]]))","v":0},{"$f":"IF(Январь[[#This Row],[Дата]]=\"\",\"\",M35)","v":343},667,670,{"$f":"IF(W36=\"\",Январь[[#This Row],[Показание счетчика моточасов  спецоборудования на конец дня, м/ч]],Январь[[#This Row],[Показание счетчика моточасов  спецоборудования на конец дня, м/ч]]+1)-Январь[[#This Row],[Показание счетчика моточасов спецоборудования на начало дня, м/ч]]","v":3},2,{"$f":"IF(Январь[[#This Row],[Работа спецоборудования за день, м/ч]]=\"\",\"\",Январь[[#This Row],[Работа спецоборудования за день, м/ч]]*$Z$2)","v":18.150000000000002},{"$f":"IF(VLOOKUP([Дата],S$2:U$3,3),IFERROR(IF(U36=\"\",Январь[[#This Row],[Выдано топливо, литр]],Январь[[#This Row],[Выдано топливо, литр]]+U36)+Январь[[#This Row],[Остаток топлива в баке на начало дня, литр]]-Январь[[#This Row],[Фактический расход топлива, литр]],\"\"),\"\")","v":267},{"$f":"ROUND((Январь[[#This Row],[Пройдено за день, км]]*0.01*$Y$2+Январь[[#This Row],[Расход топлива на работу спецоборудования, литр]]),3)+X36","v":83.097999999999999},{"$f":"ROUND(Январь[[#This Row],[Расход топлива по норме, литр]]/VLOOKUP([Дата],S$2:W$4,5),0)+Y36","v":76},{"$f":"IFERROR(Январь[[#This Row],[Фактический расход топлива, литр]]-Январь[[#This Row],[Расход топлива по норме, литр]],\"\")","v":-7.097999999999999},null,{"$f":"Январь[[#This Row],[Дата]]","v":"2018-01-30"},null,12,null,null,null,null,1,{"$f":"Январь[[#This Row],[Дата]]","v":"2018-01-30"}]
[{"$f":"IFERROR(DATEVALUE((COUNT($A$6:A36)+1)&$P$1&$I$4),\"\")","v":"2018-01-31"},"Никляев В.А.",210696,210723,{"$f":"Январь[[#This Row],[Показание одометра машины на конец дня, км]]-Январь[[#This Row],[Показание одометра машины на начало дня, км]]+T37","v":27},{"$f":"SUMPRODUCT([1]январь!$E$4:$E$153*([1]январь!$G$4:$G$153=$O$4)*([1]январь!$D$4:$D$153=Январь[[#This Row],[Дата]]))","v":250},{"$f":"IF(Январь[[#This Row],[Дата]]=\"\",\"\",M36)","v":267},670,671,{"$f":"IF(W37=\"\",Январь[[#This Row],[Показание счетчика моточасов  спецоборудования на конец дня, м/ч]],Январь[[#This Row],[Показание счетчика моточасов  спецоборудования на конец дня, м/ч]]+1)-Январь[[#This Row],[Показание счетчика моточасов спецоборудования на начало дня, м/ч]]","v":1},1,{"$f":"IF(Январь[[#This Row],[Работа спецоборудования за день, м/ч]]=\"\",\"\",Январь[[#This Row],[Работа спецоборудования за день, м/ч]]*$Z$2)","v":6.0500000000000007},{"$f":"IF(VLOOKUP([Дата],S$2:U$3,3),IFERROR(IF(U37=\"\",Январь[[#This Row],[Выдано топливо, литр]],Январь[[#This Row],[Выдано топливо, литр]]+U37)+Январь[[#This Row],[Остаток топлива в баке на начало дня, литр]]-Январь[[#This Row],[Фактический расход топлива, литр]],\"\"),\"\")","v":500},{"$f":"ROUND((Январь[[#This Row],[Пройдено за день, км]]*0.01*$Y$2+Январь[[#This Row],[Расход топлива на работу спецоборудования, литр]]),3)+X37","v":19.97},{"$f":"ROUND(Январь[[#This Row],[Расход топлива по норме, литр]]/VLOOKUP([Дата],S$2:W$4,5),0)+Y37","v":17},{"$f":"IFERROR(Январь[[#This Row],[Фактический расход топлива, литр]]-Январь[[#This Row],[Расход топлива по норме, литр]],\"\")","v":-2.9699999999999989},null,{"$f":"Январь[[#This Row],[Дата]]","v":"2018-01-31"},null,null,null,null,null,3.0000000000000001E-3,-1,{"$f":"Январь[[#This Row],[Дата]]","v":"2018-01-31"}]
["Итог",null,null,null,{"$f":"SUBTOTAL(109,[Пройдено за день, км])","v":1711},{"$f":"SUBTOTAL(109,[Выдано топливо, литр])","v":1300},null,null,null,{"$f":"SUBTOTAL(109,[Работа спецоборудования за день, м/ч])","v":51},{"$f":"SUBTOTAL(109,[Количество ходок])","v":33},{"$f":"SUBTOTAL(109,[Расход топлива на работу спецоборудования, литр])","v":308.55},null,{"$f":"SUBTOTAL(109,[Расход топлива по норме, литр])","v":1190.5030000000002},{"$f":"SUBTOTAL(109,[Фактический расход топлива, литр])","v":1082},{"$f":"SUBTOTAL(109,[Отклонение от нормы (Перерасход(+), экономия(-)), литр])","v":-108.50299999999999},null,"1-я пол.",{"$f":"SUMIFS(S$7:S$37,INDIRECT(\"Январь[Дата]\"),\">=\"&$S$2,INDIRECT(\"Январь[Дата]\"),\"<=\"&$T$2)+IF(MONTH($T$2)<>MONTH($S$2),INDIRECT(TEXT($A$7-1,\"ММММ\")&\"!F38\")-SUM(INDIRECT(TEXT($A$7-1,\"ММММ\")&\"!V1:V2\")))","v":0},{"$f":"SUMIFS(T$7:T$37,INDIRECT(\"Январь[Дата]\"),\">=\"&$S$2,INDIRECT(\"Январь[Дата]\"),\"<=\"&$T$2)+IF(MONTH($T$2)<>MONTH($S$2),INDIRECT(TEXT($A$7-1,\"ММММ\")&\"!F38\")-SUM(INDIRECT(TEXT($A$7-1,\"ММММ\")&\"!V1:V2\")))","v":0},-50,0,0,0,-1,"1-я пол."]
[null,null,null,null,null,null,null,null,null,null,{"$f":"SUMIFS(K7:K37,A7:A37,\">=\"&$S$2,A7:A37,\"<=\"&$T$2)","v":12},null,null,null,null,null,null,"2-я пол.",{"$f":"SUMIFS(S$7:S$37,INDIRECT(\"Январь[Дата]\"),\">=\"&$S$3,INDIRECT(\"Январь[Дата]\"),\"<=\"&$T$3)+IF(MONTH($T$3)<>MONTH($S$3),INDIRECT(TEXT($A$7-1,\"ММММ\")&\"!F38\")-SUM(INDIRECT(TEXT($A$7-1,\"ММММ\")&\"!V1:V2\")))","v":0},{"$f":"SUMIFS(T$7:T$37,INDIRECT(\"Январь[Дата]\"),\">=\"&$S$3,INDIRECT(\"Январь[Дата]\"),\"<=\"&$T$3)+IF(MONTH($T$3)<>MONTH($S$3),INDIRECT(TEXT($A$7-1,\"ММММ\")&\"!F38\")-SUM(INDIRECT(TEXT($A$7-1,\"ММММ\")&\"!V1:V2\")))","v":12},-168,0,0,3.0000000000000001E-3,0,"2-я пол."]
[null,null,null,null,null,null,null,null,null,null,{"$f":"SUMIFS(K7:K37,A7:A37,\">=\"&$S$3,A7:A37,\"<=\"&$T$3)","v":21}]

{"sheet":"Февраль","index":1,"n_rows":40,"n_cols":26,"rows_kept":40,"cut":false,"hidden":false,"merged":[[1,0,1,15],[2,0,2,15],[3,14,3,15]]}
[null,null,null,null,null,null,null,null,null,null,null,null,null,null,null,"Февраль",null,null,null,null,null,null,null,"Экономия","Базовая норма расхода на 100 км","Базовая норма расхода на 1 мото/час"]
["Общество с ограниченной ответственностью  \"Втормет Царицыно\"",null,null,null,null,null,null,null,null,null,null,null,null,null,null,null,null,"1-я пол.",{"$f":"INDIRECT(TEXT(A7-1,\"ММММ\")&\"!T3\")+1","v":"2018-02-01"},"2018-02-15",{"$f":"ТС!E5","v":500},{"$f":"SUMIFS(Февраль[Выдано топливо, литр],Февраль[Дата],\">=\"&$S$2,Февраль[Дата],\"<=\"&$T$2)+IF(MONTH(T2)<>MONTH(S2),INDIRECT(TEXT(A7-1,\"ММММ\")&\"!F38\")-SUM(INDIRECT(TEXT(A7-1,\"ММММ\")&\"!V1:V2\")))+SUMIFS($U$7:$U$37,Февраль[Дата],\">=\"&$S$2,Февраль[Дата],\"<=\"&$T$2)+IF(MONTH(T2)<>MONTH(S2),INDIRECT(TEXT(A7-1,\"ММММ\")&\"!F38\")-SUM(INDIRECT(TEXT(A7-1,\"ММММ\")&\"!V1:V2\")))","v":620},{"$f":"IF(V2=0,0,(SUMIFS(N7:N37,A7:A37,\">=\"&S2,A7:A37,\"<=\"&T2)+SUMIFS(INDIRECT(TEXT(A7-1,\"ММММ\")&\"!N7:N37\"),INDIRECT(TEXT(A7-1,\"ММММ\")&\"!A7:A37\"),\">=\"&S2))/(V2-U2+IF(MONTH(T2)=MONTH(S2),G7,INDEX(INDIRECT(TEXT(A7-1,\"ММММ\")&\"!G7:G37\"),DAY(S2)))))","v":1.1033887096774191},{"$f":"SUMIFS(Февраль[Отклонение от нормы (Перерасход(+), экономия(-)), литр],Февраль[Дата],\">=\"&$S$2,Февраль[Дата],\"<=\"&$T$2)","v":-64.100999999999999},{"$f":"IF(Y4=\"Зима\",VLOOKUP(Z4,Расчет[[Номер гос.регистрации / Заводской номер]:[Итога норма а/м \"ЛЕТО\"]],8,FALSE),VLOOKUP(Z4,Расчет[[Номер гос.регистрации / Заводской номер]:[Итога норма а/м \"ЛЕТО\"]],9,FALSE))","v":51.546000000000006},{"$f":"IF(Y4=\"Зима\",VLOOKUP(Z4,Расчет[[Номер гос.регистрации / Заводской номер]:[Итога норма а/м \"ЛЕТО\"]],13,FALSE),VLOOKUP(Z4,Расчет[[Номер гос.регистрации / Заводской номер]:[Итога норма а/м \"ЛЕТО\"]],14,FALSE))","v":6.0500000000000007}]
["Отчет водителя ломовоза с манипулятором",null,null,null,null,null,null,null,null,null,null,null,null,null,null,null,null,"2-я пол.",{"$f":"T2+1","v":"2018-02-16"},{"$f":"INDEX(Февраль[Дата],COUNT(Февраль[Дата]))-T1","v":"2018-02-28"},{"$f":"ТС!E6","v":500},{"$f":"SUMIFS(Февраль[Выдано топливо, литр],Февраль[Дата],\">=\"&$S$3,Февраль[Дата],\"<=\"&$T$3)+IF(MONTH(T3)<>MONTH(S3),INDIRECT(TEXT(A7-1,\"ММММ\")&\"!F38\")-SUM(INDIRECT(TEXT(A7-1,\"ММММ\")&\"!V1:V2\")))+SUMIFS($U$7:$U$37,Февраль[Дата],\">=\"&$S$3,Февраль[Дата],\"<=\"&$T$3)+IF(MONTH(T3)<>MONTH(S3),INDIRECT(TEXT(A7-1,\"ММММ\")&\"!F38\")-SUM(INDIRECT(TEXT(A7-1,\"ММММ\")&\"!V1:V2\")))","v":300},{"$f":"IF(V3=0,0,(SUMIFS(N7:N37,A7:A37,\">=\"&S3,A7:A37,\"<=\"&T3)+SUMIFS(INDIRECT(TEXT(A7-1,\"ММММ\")&\"!N7:N37\"),INDIRECT(TEXT(A7-1,\"ММММ\")&\"!A7:A37\"),\">=\"&S3))/(V3-U3+IF(MONTH(T3)=MONTH(S3),G7,INDEX(INDIRECT(TEXT(A7-1,\"ММММ\")&\"!G7:G37\"),DAY(S3)))))","v":1.0929600000000002},{"$f":"SUMIFS(Февраль[Отклонение от нормы (Перерасход(+), экономия(-)), литр],Февраль[Дата],\">=\"&$S$3,Февраль[Дата],\"<=\"&$T$3)","v":-27.887999999999991}]
[null,null,null,null,null,null,null,"за",2018,null,null,null,null,null,"т 056 вв 197",null,null,null,{"$f":"IF(INDEX(Февраль[Дата],COUNT(Февраль[Дата]))=T3,\"\",T3+1)","v":""},null,null,null,{"$f":"IFERROR(IF(S4=\"\",\"\",INDIRECT(TEXT(A7+40,\"ММММ\")&\"!W2\")),)","v":""},null,"Зима","Норма 1"]
[]
["Дата","ФИО водителя","Показание одометра машины на начало дня, км","Показание одометра машины на конец дня, км","Пройдено за день, км","Выдано топливо, литр","Остаток топлива в баке на начало дня, литр","Показание счетчика моточасов спецоборудования на начало дня, м/ч","Показание счетчика моточасов  спецоборудования на конец дня, м/ч","Работа спецоборудования за день, м/ч","Количество ходок","Расход топлива на работу спецоборудования, литр","Остаток топлива в баке на конец дня, литр","Расход топлива по норме, литр","Фактический расход топлива, литр","Отклонение от нормы (Перерасход(+), экономия(-)), литр",null,"Дата","Обнуление одометра, км","Пройдено за день, км","Выдано топливо, литр","Обнуление счетчика моточасов спецоборудования, м/ч","Работа спецоборудования за день, м/ч","Расход топлива по норме, литр","Фактический расход топлива, литр","Дата"]
[{"$f":"IFERROR(DATEVALUE((COUNT($A$6:A6)+1)&$P$1&$I$4),\"\")","v":"2018-02-01"},null,{"$f":"INDEX(Январь!D7:D37,COUNT(Январь!D7:D37))","v":210723},210723,{"$f":"IFERROR(Февраль[[#This Row],[Показание одометра машины на конец дня, км]]-Февраль[[#This Row],[Показание одометра машины на начало дня, км]]+T7,\"\")","v":0},{"$f":"IF(Февраль[[#This Row],[Дата]]=\"\",\"\",SUMPRODUCT([1]Февраль!$E$4:$E$153*([1]Февраль!$G$4:$G$153=$O$4)*([1]Февраль!$D$4:$D$153=Февраль[[#This Row],[Дата]])))","v":0},{"$f":"U2","v":500},{"$f":"INDEX(Январь!I7:I37,COUNT(Январь!I7:I37))","v":671},671,{"$f":"IFERROR(IF(W7=\"\",Февраль[[#This Row],[Показание счетчика моточасов  спецоборудования на конец дня, м/ч]],Февраль[[#This Row],[Показание счетчика моточасов  спецоборудования на конец дня, м/ч]]+1)-Февраль[[#This Row],[Показание счетчика моточасов спецоборудования на начало дня, м/ч]],\"\")","v":0},0,{"$f":"IF(Февраль[[#This Row],[Работа спецоборудования за день, м/ч]]=\"\",\"\",Февраль[[#This Row],[Работа спецоборудования за день, м/ч]]*$Z$2)","v":0},{"$f":"IFERROR(IF(VLOOKUP([Дата],S$2:U$3,3),IFERROR(IF(U7=\"\",Февраль[[#This Row],[Выдано топливо, литр]],Февраль[[#This Row],[Выдано топливо, литр]]+U7)+Февраль[[#This Row],[Остаток топлива в баке на начало дня, литр]]-Февраль[[#This Row],[Фактический расход топлива, литр]],\"\"),\"\"),\"\")","v":500},{"$f":"IFERROR(ROUND((Февраль[[#This Row],[Пройдено за день, км]]*0.01*$Y$2+Февраль[[#This Row],[Расход топлива на работу спецоборудования, литр]]),3)+X7,\"\")","v":0},{"$f":"IFERROR(IF(Февраль[[#Totals],[Выдано топливо, литр]]=0,0,(ROUND(Февраль[[#This Row],[Расход топлива по норме, литр]]/IF(DAY([Дата])<=18,$W$2,$W$3),0)))+Y7,\"\")","v":0},{"$f":"IFERROR(Февраль[[#This Row],[Фактический расход топлива, литр]]-Февраль[[#This Row],[Расход топлива по норме, литр]],\"\")","v":0},null,{"$f":"Февраль[[#This Row],[Дата]]","v":"2018-02-01"},null,null,null,null,null,null,null,{"$f":"Февраль[[#This Row],[Дата]]","v":"2018-02-01"}]
[{"$f":"IFERROR(DATEVALUE((COUNT($A$6:A7)+1)&$P$1&$I$4),\"\")","v":"2018-02-02"},"Никляев В.А.",{"$f":"IFERROR(IF(INDIRECT(TEXT(A7-1,\"ММММ\")&\"!A7:A37\")=\"\",\"\",IF(S7=\"\",D7,S7)),\"\")","v":210723},210735,{"$f":"IFERROR(Февраль[[#This Row],[Показание одометра машины на конец дня, км]]-Февраль[[#This Row],[Показание одометра машины на начало дня, км]]+T8,\"\")","v":12},{"$f":"IF(Февраль[[#This Row],[Дата]]=\"\",\"\",SUMPRODUCT([1]Февраль!$E$4:$E$153*([1]Февраль!$G$4:$G$153=$O$4)*([1]Февраль!$D$4:$D$153=Февраль[[#This Row],[Дата]])))","v":0},{"$f":"IF(Февраль[[#This Row],[Дата]]=\"\",\"\",M7)","v":500},{"$f":"IFERROR(IF(INDIRECT(TEXT(A7-1,\"ММММ\")&\"!A7:A37\")=\"\",\"\",IF(V7=\"\",I7,V7)),\"\")","v":671},672,{"$f":"IFERROR(IF(W8=\"\",Февраль[[#This Row],[Показание счетчика моточасов  спецоборудования на конец дня, м/ч]],Февраль[[#This Row],[Показание счетчика моточасов  спецоборудования на конец дня, м/ч]]+1)-Февраль[[#This Row],[Показание счетчика моточасов спецоборудования на начало дня, м/ч]],\"\")","v":1},1,{"$f":"IF(Февраль[[#This Row],[Работа спецоборудования за день, м/ч]]=\"\",\"\",Февраль[[#This Row],[Работа спецоборудования за день, м/ч]]*$Z$2)","v":6.0500000000000007},{"$f":"IFERROR(IF(VLOOKUP([Дата],S$2:U$3,3),IFERROR(IF(U8=\"\",Февраль[[#This Row],[Выдано топливо, литр]],Февраль[[#This Row],[Выдано топливо, литр]]+U8)+Февраль[[#This Row],[Остаток топлива в баке на начало дня, литр]]-Февраль[[#This Row],[Фактический расход топлива, литр]],\"\"),\"\"),\"\")","v":489},{"$f":"IFERROR(ROUND((Февраль[[#This Row],[Пройдено за день, км]]*0.01*$Y$2+Февраль[[#This Row],[Расход топлива на работу спецоборудования, литр]]),3)+X8,\"\")","v":12.236000000000001},{"$f":"IFERROR(IF(Февраль[[#Totals],[Выдано топливо, литр]]=0,0,(ROUND(Февраль[[#This Row],[Расход топлива по норме, литр]]/IF(DAY([Дата])<=18,$W$2,$W$3),0)))+Y8,\"\")","v":11},{"$f":"IFERROR(Февраль[[#This Row],[Фактический расход топлива, литр]]-Февраль[[#This Row],[Расход топлива по норме, литр]],\"\")","v":-1.2360000000000007},null,{"$f":"Февраль[[#This Row],[Дата]]","v":"2018-02-02"},null,null,null,null,null,null,null,{"$f":"Февраль[[#This Row],[Дата]]","v":"2018-02-02"}]
[{"$f":"IFERROR(DATEVALUE((COUNT($A$6:A8)+1)&$P$1&$I$4),\"\")","v":"2018-02-03"},"Никляев В.А.",{"$f":"IFERROR(IF(INDIRECT(TEXT(A8-1,\"ММММ\")&\"!A7:A37\")=\"\",\"\",IF(S8=\"\",D8,S8)),\"\")","v":210735},210777,{"$f":"IFERROR(Февраль[[#This Row],[Показание одометра машины на конец дня, км]]-Февраль[[#This Row],[Показание одометра машины на начало дня, км]]+T9,\"\")","v":42},{"$f":"IF(Февраль[[#This Row],[Дата]]=\"\",\"\",SUMPRODUCT([1]Февраль!$E$4:$E$153*([1]Февраль!$G$4:$G$153=$O$4)*([1]Февраль!$D$4:$D$153=Февраль[[#This Row],[Дата]])))","v":0},{"$f":"IF(Февраль[[#This Row],[Дата]]=\"\",\"\",M8)","v":489},{"$f":"IFERROR(IF(INDIRECT(TEXT(A8-1,\"ММММ\")&\"!A7:A37\")=\"\",\"\",IF(V8=\"\",I8,V8)),\"\")","v":672},674,{"$f":"IFERROR(IF(W9=\"\",Февраль[[#This Row],[Показание счетчика моточасов  спецоборудования на конец дня, м/ч]],Февраль[[#This Row],[Показание счетчика моточасов  спецоборудования на конец дня, м/ч]]+1)-Февраль[[#This Row],[Показание счетчика моточасов спецоборудования на начало дня, м/ч]],\"\")","v":2},1,{"$f":"IF(Февраль[[#This Row],[Работа спецоборудования за день, м/ч]]=\"\",\"\",Февраль[[#This Row],[Работа спецоборудования за день, м/ч]]*$Z$2)","v":12.100000000000001},{"$f":"IFERROR(IF(VLOOKUP([Дата],S$2:U$3,3),IFERROR(IF(U9=\"\",Февраль[[#This Row],[Выдано топливо, литр]],Февраль[[#This Row],[Выдано топливо, литр]]+U9)+Февраль[[#This Row],[Остаток топлива в баке на начало дня, литр]]-Февраль[[#This Row],[Фактический расход топлива, литр]],\"\"),\"\"),\"\")","v":458},{"$f":"IFERROR(ROUND((Февраль[[#This Row],[Пройдено за день, км]]*0.01*$Y$2+Февраль[[#This Row],[Расход топлива на работу спецоборудования, литр]]),3)+X9,\"\")","v":33.748000000000005},{"$f":"IFERROR(IF(Февраль[[#Totals],[Выдано топливо, литр]]=0,0,(ROUND(Февраль[[#This Row],[Расход топлива по норме, литр]]/IF(DAY([Дата])<=18,$W$2,$W$3),0)))+Y9,\"\")","v":31},{"$f":"IFERROR(Февраль[[#This Row],[Фактический расход топлива, литр]]-Февраль[[#This Row],[Расход топлива по норме, литр]],\"\")","v":-2.7480000000000047},null,{"$f":"Февраль[[#This Row],[Дата]]","v":"2018-02-03"},null,null,null,null,null,-1E-3,null,{"$f":"Февраль[[#This Row],[Дата]]","v":"2018-02-03"}]
[{"$f":"IFERROR(DATEVALUE((COUNT($A$6:A9)+1)&$P$1&$I$4),\"\")","v":"2018-02-04"},"Никляев В.А.",210777,210864,{"$f":"IFERROR(Февраль[[#This Row],[Показание одометра машины на конец дня, км]]-Февраль[[#This Row],[Показание одометра машины на начало дня, км]]+T10,\"\")","v":87},{"$f":"IF(Февраль[[#This Row],[Дата]]=\"\",\"\",SUMPRODUCT([1]Февраль!$E$4:$E$153*([1]Февраль!$G$4:$G$153=$O$4)*([1]Февраль!$D$4:$D$153=Февраль[[#This Row],[Дата]])))","v":0},{"$f":"IF(Февраль[[#This Row],[Дата]]=\"\",\"\",M9)","v":458},674,676,{"$f":"IFERROR(IF(W10=\"\",Февраль[[#This Row],[Показание счетчика моточасов  спецоборудования на конец дня, м/ч]],Февраль[[#This Row],[Показание счетчика моточасов  спецоборудования на конец дня, м/ч]]+1)-Февраль[[#This Row],[Показание счетчика моточасов спецоборудования на начало дня, м/ч]],\"\")","v":2},2,{"$f":"IF(Февраль[[#This Row],[Работа спецоборудования за день, м/ч]]=\"\",\"\",Февраль[[#This Row],[Работа спецоборудования за день, м/ч]]*$Z$2)","v":12.100000000000001},{"$f":"IFERROR(IF(VLOOKUP([Дата],S$2:U$3,3),IFERROR(IF(U10=\"\",Февраль[[#This Row],[Выдано топливо, литр]],Февраль[[#This Row],[Выдано топливо, литр]]+U10)+Февраль[[#This Row],[Остаток топлива в баке на начало дня, литр]]-Февраль[[#This Row],[Фактический расход топлива, литр]],\"\"),\"\"),\"\")","v":406},{"$f":"IFERROR(ROUND((Февраль[[#This Row],[Пройдено за день, км]]*0.01*$Y$2+Февраль[[#This Row],[Расход топлива на работу спецоборудования, литр]]),3)+X10,\"\")","v":56.945},{"$f":"IFERROR(IF(Февраль[[#Totals],[Выдано топливо, литр]]=0,0,(ROUND(Февраль[[#This Row],[Расход топлива по норме, литр]]/IF(DAY([Дата])<=18,$W$2,$W$3),0)))+Y10,\"\")","v":52},{"$f":"IFERROR(Февраль[[#This Row],[Фактический расход топлива, литр]]-Февраль[[#This Row],[Расход топлива по норме, литр]],\"\")","v":-4.9450000000000003},null,{"$f":"Февраль[[#This Row],[Дата]]","v":"2018-02-04"},null,null,null,null,null,null,null,{"$f":"Февраль[[#This Row],[Дата]]","v":"2018-02-04"}]
[{"$f":"IFERROR(DATEVALUE((COUNT($A$6:A10)+1)&$P$1&$I$4),\"\")","v":"2018-02-05"},null,210864,210864,{"$f":"IFERROR(Февраль[[#This Row],[Показание одометра машины на конец дня, км]]-Февраль[[#This Row],[Показание одометра машины на начало дня, км]]+T11,\"\")","v":0},{"$f":"IF(Февраль[[#This Row],[Дата]]=\"\",\"\",SUMPRODUCT([1]Февраль!$E$4:$E$153*([1]Февраль!$G$4:$G$153=$O$4)*([1]Февраль!$D$4:$D$153=Февраль[[#This Row],[Дата]])))","v":0},{"$f":"IF(Февраль[[#This Row],[Дата]]=\"\",\"\",M10)","v":406},676,676,{"$f":"IFERROR(IF(W11=\"\",Февраль[[#This Row],[Показание счетчика моточасов  спецоборудования на конец дня, м/ч]],Февраль[[#This Row],[Показание счетчика моточасов  спецоборудования на конец дня, м/ч]]+1)-Февраль[[#This Row],[Показание счетчика моточасов спецоборудования на начало дня, м/ч]],\"\")","v":0},0,{"$f":"IF(Февраль[[#This Row],[Работа спецоборудования за день, м/ч]]=\"\",\"\",Февраль[[#This Row],[Работа спецоборудования за день, м/ч]]*$Z$2)","v":0},{"$f":"IFERROR(IF(VLOOKUP([Дата],S$2:U$3,3),IFERROR(IF(U11=\"\",Февраль[[#This Row],[Выдано топливо, литр]],Февраль[[#This Row],[Выдано топливо, литр]]+U11)+Февраль[[#This Row],[Остаток топлива в баке на начало дня, литр]]-Февраль[[#This Row],[Фактический расход топлива, литр]],\"\"),\"\"),\"\")","v":406},{"$f":"IFERROR(ROUND((Февраль[[#This Row],[Пройдено за день, км]]*0.01*$Y$2+Февраль[[#This Row],[Расход топлива на работу спецоборудования, литр]]),3)+X11,\"\")","v":0},{"$f":"IFERROR(IF(Февраль[[#Totals],[Выдано топливо, литр]]=0,0,(ROUND(Февраль[[#This Row],[Расход топлива по норме, литр]]/IF(DAY([Дата])<=18,$W$2,$W$3),0)))+Y11,\"\")","v":0},{"$f":"IFERROR(Февраль[[#This Row],[Фактический расход топлива, литр]]-Февраль[[#This Row],[Расход топлива по норме, литр]],\"\")","v":0},null,{"$f":"Февраль[[#This Row],[Дата]]","v":"2018-02-05"},null,null,null,null,null,null,null,{"$f":"Февраль[[#This Row],[Дата]]","v":"2018-02-05"}]
[{"$f":"IFERROR(DATEVALUE((COUNT($A$6:A11)+1)&$P$1&$I$4),\"\")","v":"2018-02-06"},"Никляев В.А.",210864,210888,{"$f":"IFERROR(Февраль[[#This Row],[Показание одометра машины на конец дня, км]]-Февраль[[#This Row],[Показание одометра машины на начало дня, км]]+T12,\"\")","v":24},{"$f":"IF(Февраль[[#This Row],[Дата]]=\"\",\"\",SUMPRODUCT([1]Февраль!$E$4:$E$153*([1]Февраль!$G$4:$G$153=$O$4)*([1]Февраль!$D$4:$D$153=Февраль[[#This Row],[Дата]])))","v":0},{"$f":"IF(Февраль[[#This Row],[Дата]]=\"\",\"\",M11)","v":406},676,678,{"$f":"IFERROR(IF(W12=\"\",Февраль[[#This Row],[Показание счетчика моточасов  спецоборудования на конец дня, м/ч]],Февраль[[#This Row],[Показание счетчика моточасов  спецоборудования на конец дня, м/ч]]+1)-Февраль[[#This Row],[Показание счетчика моточасов спецоборудования на начало дня, м/ч]],\"\")","v":2},1,{"$f":"IF(Февраль[[#This Row],[Работа спецоборудования за день, м/ч]]=\"\",\"\",Февраль[[#This Row],[Работа спецоборудования за день, м/ч]]*$Z$2)","v":12.100000000000001},{"$f":"IFERROR(IF(VLOOKUP([Дата],S$2:U$3,3),IFERROR(IF(U12=\"\",Февраль[[#This Row],[Выдано топливо, литр]],Февраль[[#This Row],[Выдано топливо, литр]]+U12)+Февраль[[#This Row],[Остаток топлива в баке на начало дня, литр]]-Февраль[[#This Row],[Фактический расход топлива, литр]],\"\"),\"\"),\"\")","v":384},{"$f":"IFERROR(ROUND((Февраль[[#This Row],[Пройдено за день, км]]*0.01*$Y$2+Февраль[[#This Row],[Расход топлива на работу спецоборудования, литр]]),3)+X12,\"\")","v":24.471},{"$f":"IFERROR(IF(Февраль[[#Totals],[Выдано топливо, литр]]=0,0,(ROUND(Февраль[[#This Row],[Расход топлива по норме, литр]]/IF(DAY([Дата])<=18,$W$2,$W$3),0)))+Y12,\"\")","v":22},{"$f":"IFERROR(Февраль[[#This Row],[Фактический расход топлива, литр]]-Февраль[[#This Row],[Расход топлива по норме, литр]],\"\")","v":-2.4710000000000001},null,{"$f":"Февраль[[#This Row],[Дата]]","v":"2018-02-06"},null,null,null,null,null,null,null,{"$f":"Февраль[[#This Row],[Дата]]","v":"2018-02-06"}]
[{"$f":"IFERROR(DATEVALUE((COUNT($A$6:A12)+1)&$P$1&$I$4),\"\")","v":"2018-02-07"},"Никляев В.А.",210888,210900,{"$f":"IFERROR(Февраль[[#This Row],[Показание одометра машины на конец дня, км]]-Февраль[[#This Row],[Показание одометра машины на начало дня, км]]+T13,\"\")","v":12},{"$f":"IF(Февраль[[#This Row],[Дата]]=\"\",\"\",SUMPRODUCT([1]Февраль!$E$4:$E$153*([1]Февраль!$G$4:$G$153=$O$4)*([1]Февраль!$D$4:$D$153=Февраль[[#This Row],[Дата]])))","v":0},{"$f":"IF(Февраль[[#This Row],[Дата]]=\"\",\"\",M12)","v":384},678,679,{"$f":"IFERROR(IF(W13=\"\",Февраль[[#This Row],[Показание счетчика моточасов  спецоборудования на конец дня, м/ч]],Февраль[[#This Row],[Показание счетчика моточасов  спецоборудования на конец дня, м/ч]]+1)-Февраль[[#This Row],[Показание счетчика моточасов спецоборудования на начало дня, м/ч]],\"\")","v":1},1,{"$f":"IF(Февраль[[#This Row],[Работа спецоборудования за день, м/ч]]=\"\",\"\",Февраль[[#This Row],[Работа спецоборудования за день, м/ч]]*$Z$2)","v":6.0500000000000007},{"$f":"IFERROR(IF(VLOOKUP([Дата],S$2:U$3,3),IFERROR(IF(U13=\"\",Февраль[[#This Row],[Выдано топливо, литр]],Февраль[[#This Row],[Выдано топливо, литр]]+U13)+Февраль[[#This Row],[Остаток топлива в баке на начало дня, литр]]-Февраль[[#This Row],[Фактический расход топлива, литр]],\"\"),\"\"),\"\")","v":373},{"$f":"IFERROR(ROUND((Февраль[[#This Row],[Пройдено за день, км]]*0.01*$Y$2+Февраль[[#This Row],[Расход топлива на работу спецоборудования, литр]]),3)+X13,\"\")","v":12.236000000000001},{"$f":"IFERROR(IF(Февраль[[#Totals],[Выдано топливо, литр]]=0,0,(ROUND(Февраль[[#This Row],[Расход топлива по норме, литр]]/IF(DAY([Дата])<=18,$W$2,$W$3),0)))+Y13,\"\")","v":11},{"$f":"IFERROR(Февраль[[#This Row],[Фактический расход топлива, литр]]-Февраль[[#This Row],[Расход топлива по норме, литр]],\"\")","v":-1.2360000000000007},null,{"$f":"Февраль[[#This Row],[Дата]]","v":"2018-02-07"},null,null,null,null,null,null,null,{"$f":"Февраль[[#This Row],[Дата]]","v":"2018-02-07"}]
[{"$f":"IFERROR(DATEVALUE((COUNT($A$6:A13)+1)&$P$1&$I$4),\"\")","v":"2018-02-08"},"Никляев В.А.",210900,211028,{"$f":"IFERROR(Февраль[[#This Row],[Показание одометра машины на конец дня, км]]-Февраль[[#This Row],[Показание одометра машины на начало дня, км]]+T14,\"\")","v":128},{"$f":"IF(Февраль[[#This Row],[Дата]]=\"\",\"\",SUMPRODUCT([1]Февраль!$E$4:$E$153*([1]Февраль!$G$4:$G$153=$O$4)*([1]Февраль!$D$4:$D$153=Февраль[[#This Row],[Дата]])))","v":0},{"$f":"IF(Февраль[[#This Row],[Дата]]=\"\",\"\",M13)","v":373},679,683,{"$f":"IFERROR(IF(W14=\"\",Февраль[[#This Row],[Показание счетчика моточасов  спецоборудования на конец дня, м/ч]],Февраль[[#This Row],[Показание счетчика моточасов  спецоборудования на конец дня, м/ч]]+1)-Февраль[[#This Row],[Показание счетчика моточасов спецоборудования на начало дня, м/ч]],\"\")","v":4},2,{"$f":"IF(Февраль[[#This Row],[Работа спецоборудования за день, м/ч]]=\"\",\"\",Февраль[[#This Row],[Работа спецоборудования за день, м/ч]]*$Z$2)","v":24.200000000000003},{"$f":"IFERROR(IF(VLOOKUP([Дата],S$2:U$3,3),IFERROR(IF(U14=\"\",Февраль[[#This Row],[Выдано топливо, литр]],Февраль[[#This Row],[Выдано топливо, литр]]+U14)+Февраль[[#This Row],[Остаток топлива в баке на начало дня, литр]]-Февраль[[#This Row],[Фактический расход топлива, литр]],\"\"),\"\"),\"\")","v":291},{"$f":"IFERROR(ROUND((Февраль[[#This Row],[Пройдено за день, км]]*0.01*$Y$2+Февраль[[#This Row],[Расход топлива на работу спецоборудования, литр]]),3)+X14,\"\")","v":90.179000000000002},{"$f":"IFERROR(IF(Февраль[[#Totals],[Выдано топливо, литр]]=0,0,(ROUND(Февраль[[#This Row],[Расход топлива по норме, литр]]/IF(DAY([Дата])<=18,$W$2,$W$3),0)))+Y14,\"\")","v":82},{"$f":"IFERROR(Февраль[[#This Row],[Фактический расход топлива, литр]]-Февраль[[#This Row],[Расход топлива по норме, литр]],\"\")","v":-8.179000000000002},null,{"$f":"Февраль[[#This Row],[Дата]]","v":"2018-02-08"},null,null,null,null,null,null,null,{"$f":"Февраль[[#This Row],[Дата]]","v":"2018-02-08"}]
[{"$f":"IFERROR(DATEVALUE((COUNT($A$6:A14)+1)&$P$1&$I$4),\"\")","v":"2018-02-09"},"Никляев В.А.",211028,211140,{"$f":"IFERROR(Февраль[[#This Row],[Показание одометра машины на конец дня, км]]-Февраль[[#This Row],[Показание одометра машины на начало дня, км]]+T15,\"\")","v":112},{"$f":"IF(Февраль[[#This Row],[Дата]]=\"\",\"\",SUMPRODUCT([1]Февраль!$E$4:$E$153*([1]Февраль!$G$4:$G$153=$O$4)*([1]Февраль!$D$4:$D$153=Февраль[[#This Row],[Дата]])))","v":0},{"$f":"IF(Февраль[[#This Row],[Дата]]=\"\",\"\",M14)","v":291},683,685,{"$f":"IFERROR(IF(W15=\"\",Февраль[[#This Row],[Показание счетчика моточасов  спецоборудования на конец дня, м/ч]],Февраль[[#This Row],[Показание счетчика моточасов  спецоборудования на конец дня, м/ч]]+1)-Февраль[[#This Row],[Показание счетчика моточасов спецоборудования на начало дня, м/ч]],\"\")","v":2},2,{"$f":"IF(Февраль[[#This Row],[Работа спецоборудования за день, м/ч]]=\"\",\"\",Февраль[[#This Row],[Работа спецоборудования за день, м/ч]]*$Z$2)","v":12.100000000000001},{"$f":"IFERROR(IF(VLOOKUP([Дата],S$2:U$3,3),IFERROR(IF(U15=\"\",Февраль[[#This Row],[Выдано топливо, литр]],Февраль[[#This Row],[Выдано топливо, литр]]+U15)+Февраль[[#This Row],[Остаток топлива в баке на начало дня, литр]]-Февраль[[#This Row],[Фактический расход топлива, литр]],\"\"),\"\"),\"\")","v":228},{"$f":"IFERROR(ROUND((Февраль[[#This Row],[Пройдено за день, км]]*0.01*$Y$2+Февраль[[#This Row],[Расход топлива на работу спецоборудования, литр]]),3)+X15,\"\")","v":69.831999999999994},{"$f":"IFERROR(IF(Февраль[[#Totals],[Выдано топливо, литр]]=0,0,(ROUND(Февраль[[#This Row],[Расход топлива по норме, литр]]/IF(DAY([Дата])<=18,$W$2,$W$3),0)))+Y15,\"\")","v":63},{"$f":"IFERROR(Февраль[[#This Row],[Фактический расход топлива, литр]]-Февраль[[#This Row],[Расход топлива по норме, литр]],\"\")","v":-6.8319999999999936},null,{"$f":"Февраль[[#This Row],[Дата]]","v":"2018-02-09"},null,null,null,null,null,null,null,{"$f":"Февраль[[#This Row],[Дата]]","v":"2018-02-09"}]
[{"$f":"IFERROR(DATEVALUE((COUNT($A$6:A15)+1)&$P$1&$I$4),\"\")","v":"2018-02-10"},"Никляев В.А.",211140,211246,{"$f":"IFERROR(Февраль[[#This Row],[Показание одометра машины на конец дня, км]]-Февраль[[#This Row],[Показание одометра машины на начало дня, км]]+T16,\"\")","v":106},{"$f":"IF(Февраль[[#This Row],[Дата]]=\"\",\"\",SUMPRODUCT([1]Февраль!$E$4:$E$153*([1]Февраль!$G$4:$G$153=$O$4)*([1]Февраль!$D$4:$D$153=Февраль[[#This Row],[Дата]])))","v":0},{"$f":"IF(Февраль[[#This Row],[Дата]]=\"\",\"\",M15)","v":228},685,687,{"$f":"IFERROR(IF(W16=\"\",Февраль[[#This Row],[Показание счетчика моточасов  спецоборудования на конец дня, м/ч]],Февраль[[#This Row],[Показание счетчика моточасов  спецоборудования на конец дня, м/ч]]+1)-Февраль[[#This Row],[Показание счетчика моточасов спецоборудования на начало дня, м/ч]],\"\")","v":2},1,{"$f":"IF(Февраль[[#This Row],[Работа спецоборудования за день, м/ч]]=\"\",\"\",Февраль[[#This Row],[Работа спецоборудования за день, м/ч]]*$Z$2)","v":12.100000000000001},{"$f":"IFERROR(IF(VLOOKUP([Дата],S$2:U$3,3),IFERROR(IF(U16=\"\",Февраль[[#This Row],[Выдано топливо, литр]],Февраль[[#This Row],[Выдано топливо, литр]]+U16)+Февраль[[#This Row],[Остаток топлива в баке на начало дня, литр]]-Февраль[[#This Row],[Фактический расход топлива, литр]],\"\"),\"\"),\"\")","v":168},{"$f":"IFERROR(ROUND((Февраль[[#This Row],[Пройдено за день, км]]*0.01*$Y$2+Февраль[[#This Row],[Расход топлива на работу спецоборудования, литр]]),3)+X16,\"\")","v":66.739000000000004},{"$f":"IFERROR(IF(Февраль[[#Totals],[Выдано топливо, литр]]=0,0,(ROUND(Февраль[[#This Row],[Расход топлива по норме, литр]]/IF(DAY([Дата])<=18,$W$2,$W$3),0)))+Y16,\"\")","v":60},{"$f":"IFERROR(Февраль[[#This Row],[Фактический расход топлива, литр]]-Февраль[[#This Row],[Расход топлива по норме, литр]],\"\")","v":-6.7390000000000043},null,{"$f":"Февраль[[#This Row],[Дата]]","v":"2018-02-10"},null,null,null,null,null,null,null,{"$f":"Февраль[[#This Row],[Дата]]","v":"2018-02-10"}]
[{"$f":"IFERROR(DATEVALUE((COUNT($A$6:A16)+1)&$P$1&$I$4),\"\")","v":"2018-02-11"},null,211246,211246,{"$f":"IFERROR(Февраль[[#This Row],[Показание одометра машины на конец дня, км]]-Февраль[[#This Row],[Показание одометра машины на начало дня, км]]+T17,\"\")","v":0},{"$f":"IF(Февраль[[#This Row],[Дата]]=\"\",\"\",SUMPRODUCT([1]Февраль!$E$4:$E$153*([1]Февраль!$G$4:$G$153=$O$4)*([1]Февраль!$D$4:$D$153=Февраль[[#This Row],[Дата]])))","v":0},{"$f":"IF(Февраль[[#This Row],[Дата]]=\"\",\"\",M16)","v":168},687,687,{"$f":"IFERROR(IF(W17=\"\",Февраль[[#This Row],[Показание счетчика моточасов  спецоборудования на конец дня, м/ч]],Февраль[[#This Row],[Показание счетчика моточасов  спецоборудования на конец дня, м/ч]]+1)-Февраль[[#This Row],[Показание счетчика моточасов спецоборудования на начало дня, м/ч]],\"\")","v":0},0,{"$f":"IF(Февраль[[#This Row],[Работа спецоборудования за день, м/ч]]=\"\",\"\",Февраль[[#This Row],[Работа спецоборудования за день, м/ч]]*$Z$2)","v":0},{"$f":"IFERROR(IF(VLOOKUP([Дата],S$2:U$3,3),IFERROR(IF(U17=\"\",Февраль[[#This Row],[Выдано топливо, литр]],Февраль[[#This Row],[Выдано топливо, литр]]+U17)+Февраль[[#This Row],[Остаток топлива в баке на начало дня, литр]]-Февраль[[#This Row],[Фактический расход топлива, литр]],\"\"),\"\"),\"\")","v":168},{"$f":"IFERROR(ROUND((Февраль[[#This Row],[Пройдено за день, км]]*0.01*$Y$2+Февраль[[#This Row],[Расход топлива на работу спецоборудования, литр]]),3)+X17,\"\")","v":0},{"$f":"IFERROR(IF(Февраль[[#Totals],[Выдано топливо, литр]]=0,0,(ROUND(Февраль[[#This Row],[Расход топлива по норме, литр]]/IF(DAY([Дата])<=18,$W$2,$W$3),0)))+Y17,\"\")","v":0},{"$f":"IFERROR(Февраль[[#This Row],[Фактический расход топлива, литр]]-Февраль[[#This Row],[Расход топлива по норме, литр]],\"\")","v":0},null,{"$f":"Февраль[[#This Row],[Дата]]","v":"2018-02-11"},null,null,null,null,null,null,null,{"$f":"Февраль[[#This Row],[Дата]]","v":"2018-02-11"}]
[{"$f":"IFERROR(DATEVALUE((COUNT($A$6:A17)+1)&$P$1&$I$4),\"\")","v":"2018-02-12"},"Никляев В.А.",211246,211429,{"$f":"IFERROR(Февраль[[#This Row],[Показание одометра машины на конец дня, км]]-Февраль[[#This Row],[Показание одометра машины на начало дня, км]]+T18,\"\")","v":183},{"$f":"IF(Февраль[[#This Row],[Дата]]=\"\",\"\",SUMPRODUCT([1]Февраль!$E$4:$E$153*([1]Февраль!$G$4:$G$153=$O$4)*([1]Февраль!$D$4:$D$153=Февраль[[#This Row],[Дата]])))","v":450},{"$f":"IF(Февраль[[#This Row],[Дата]]=\"\",\"\",M17)","v":168},687,691,{"$f":"IFERROR(IF(W18=\"\",Февраль[[#This Row],[Показание счетчика моточасов  спецоборудования на конец дня, м/ч]],Февраль[[#This Row],[Показание счетчика моточасов  спецоборудования на конец дня, м/ч]]+1)-Февраль[[#This Row],[Показание счетчика моточасов спецоборудования на начало дня, м/ч]],\"\")","v":4},3,{"$f":"IF(Февраль[[#This Row],[Работа спецоборудования за день, м/ч]]=\"\",\"\",Февраль[[#This Row],[Работа спецоборудования за день, м/ч]]*$Z$2)","v":24.200000000000003},{"$f":"IFERROR(IF(VLOOKUP([Дата],S$2:U$3,3),IFERROR(IF(U18=\"\",Февраль[[#This Row],[Выдано топливо, литр]],Февраль[[#This Row],[Выдано топливо, литр]]+U18)+Февраль[[#This Row],[Остаток топлива в баке на начало дня, литр]]-Февраль[[#This Row],[Фактический расход топлива, литр]],\"\"),\"\"),\"\")","v":381},{"$f":"IFERROR(ROUND((Февраль[[#This Row],[Пройдено за день, км]]*0.01*$Y$2+Февраль[[#This Row],[Расход топлива на работу спецоборудования, литр]]),3)+X18,\"\")","v":118.529},{"$f":"IFERROR(IF(Февраль[[#Totals],[Выдано топливо, литр]]=0,0,(ROUND(Февраль[[#This Row],[Расход топлива по норме, литр]]/IF(DAY([Дата])<=18,$W$2,$W$3),0)))+Y18,\"\")","v":107},{"$f":"IFERROR(Февраль[[#This Row],[Фактический расход топлива, литр]]-Февраль[[#This Row],[Расход топлива по норме, литр]],\"\")","v":-11.528999999999996},null,{"$f":"Февраль[[#This Row],[Дата]]","v":"2018-02-12"},null,null,-130,null,null,null,null,{"$f":"Февраль[[#This Row],[Дата]]","v":"2018-02-12"}]
[{"$f":"IFERROR(DATEVALUE((COUNT($A$6:A18)+1)&$P$1&$I$4),\"\")","v":"2018-02-13"},null,211429,211429,{"$f":"IFERROR(Февраль[[#This Row],[Показание одометра машины на конец дня, км]]-Февраль[[#This Row],[Показание одометра машины на начало дня, км]]+T19,\"\")","v":0},{"$f":"IF(Февраль[[#This Row],[Дата]]=\"\",\"\",SUMPRODUCT([1]Февраль!$E$4:$E$153*([1]Февраль!$G$4:$G$153=$O$4)*([1]Февраль!$D$4:$D$153=Февраль[[#This Row],[Дата]])))","v":0},{"$f":"IF(Февраль[[#This Row],[Дата]]=\"\",\"\",M18)","v":381},691,691,{"$f":"IFERROR(IF(W19=\"\",Февраль[[#This Row],[Показание счетчика моточасов  спецоборудования на конец дня, м/ч]],Февраль[[#This Row],[Показание счетчика моточасов  спецоборудования на конец дня, м/ч]]+1)-Февраль[[#This Row],[Показание счетчика моточасов спецоборудования на начало дня, м/ч]],\"\")","v":0},0,{"$f":"IF(Февраль[[#This Row],[Работа спецоборудования за день, м/ч]]=\"\",\"\",Февраль[[#This Row],[Работа спецоборудования за день, м/ч]]*$Z$2)","v":0},{"$f":"IFERROR(IF(VLOOKUP([Дата],S$2:U$3,3),IFERROR(IF(U19=\"\",Февраль[[#This Row],[Выдано топливо, литр]],Февраль[[#This Row],[Выдано топливо, литр]]+U19)+Февраль[[#This Row],[Остаток топлива в баке на начало дня, литр]]-Февраль[[#This Row],[Фактический расход топлива, литр]],\"\"),\"\"),\"\")","v":381},{"$f":"IFERROR(ROUND((Февраль[[#This Row],[Пройдено за день, км]]*0.01*$Y$2+Февраль[[#This Row],[Расход топлива на работу спецоборудования, литр]]),3)+X19,\"\")","v":0},{"$f":"IFERROR(IF(Февраль[[#Totals],[Выдано топливо, литр]]=0,0,(ROUND(Февраль[[#This Row],[Расход топлива по норме, литр]]/IF(DAY([Дата])<=18,$W$2,$W$3),0)))+Y19,\"\")","v":0},{"$f":"IFERROR(Февраль[[#This Row],[Фактический расход топлива, литр]]-Февраль[[#This Row],[Расход топлива по норме, литр]],\"\")","v":0},null,{"$f":"Февраль[[#This Row],[Дата]]","v":"2018-02-13"},null,null,null,null,null,null,null,{"$f":"Февраль[[#This Row],[Дата]]","v":"2018-02-13"}]
[{"$f":"IFERROR(DATEVALUE((COUNT($A$6:A19)+1)&$P$1&$I$4),\"\")","v":"2018-02-14"},"Никляев В.А.",211429,211665,{"$f":"IFERROR(Февраль[[#This Row],[Показание одометра машины на конец дня, км]]-Февраль[[#This Row],[Показание одометра машины на начало дня, км]]+T20,\"\")","v":236},{"$f":"IF(Февраль[[#This Row],[Дата]]=\"\",\"\",SUMPRODUCT([1]Февраль!$E$4:$E$153*([1]Февраль!$G$4:$G$153=$O$4)*([1]Февраль!$D$4:$D$153=Февраль[[#This Row],[Дата]])))","v":0},{"$f":"IF(Февраль[[#This Row],[Дата]]=\"\",\"\",M19)","v":381},691,695,{"$f":"IFERROR(IF(W20=\"\",Февраль[[#This Row],[Показание счетчика моточасов  спецоборудования на конец дня, м/ч]],Февраль[[#This Row],[Показание счетчика моточасов  спецоборудования на конец дня, м/ч]]+1)-Февраль[[#This Row],[Показание счетчика моточасов спецоборудования на начало дня, м/ч]],\"\")","v":4},2,{"$f":"IF(Февраль[[#This Row],[Работа спецоборудования за день, м/ч]]=\"\",\"\",Февраль[[#This Row],[Работа спецоборудования за день, м/ч]]*$Z$2)","v":24.200000000000003},{"$f":"IFERROR(IF(VLOOKUP([Дата],S$2:U$3,3),IFERROR(IF(U20=\"\",Февраль[[#This Row],[Выдано топливо, литр]],Февраль[[#This Row],[Выдано топливо, литр]]+U20)+Февраль[[#This Row],[Остаток топлива в баке на начало дня, литр]]-Февраль[[#This Row],[Фактический расход топлива, литр]],\"\"),\"\"),\"\")","v":249},{"$f":"IFERROR(ROUND((Февраль[[#This Row],[Пройдено за день, км]]*0.01*$Y$2+Февраль[[#This Row],[Расход топлива на работу спецоборудования, литр]]),3)+X20,\"\")","v":145.84899999999999},{"$f":"IFERROR(IF(Февраль[[#Totals],[Выдано топливо, литр]]=0,0,(ROUND(Февраль[[#This Row],[Расход топлива по норме, литр]]/IF(DAY([Дата])<=18,$W$2,$W$3),0)))+Y20,\"\")","v":132},{"$f":"IFERROR(Февраль[[#This Row],[Фактический расход топлива, литр]]-Февраль[[#This Row],[Расход топлива по норме, литр]],\"\")","v":-13.84899999999999},null,{"$f":"Февраль[[#This Row],[Дата]]","v":"2018-02-14"},null,null,null,null,null,null,null,{"$f":"Февраль[[#This Row],[Дата]]","v":"2018-02-14"}]
[{"$f":"IFERROR(DATEVALUE((COUNT($A$6:A20)+1)&$P$1&$I$4),\"\")","v":"2018-02-15"},"Никляев В.А.",211665,211745,{"$f":"IFERROR(Февраль[[#This Row],[Показание одометра машины на конец дня, км]]-Февраль[[#This Row],[Показание одометра машины на начало дня, км]]+T21,\"\")","v":80},{"$f":"IF(Февраль[[#This Row],[Дата]]=\"\",\"\",SUMPRODUCT([1]Февраль!$E$4:$E$153*([1]Февраль!$G$4:$G$153=$O$4)*([1]Февраль!$D$4:$D$153=Февраль[[#This Row],[Дата]])))","v":300},{"$f":"IF(Февраль[[#This Row],[Дата]]=\"\",\"\",M20)","v":249},695,697,{"$f":"IFERROR(IF(W21=\"\",Февраль[[#This Row],[Показание счетчика моточасов  спецоборудования на конец дня, м/ч]],Февраль[[#This Row],[Показание счетчика моточасов  спецоборудования на конец дня, м/ч]]+1)-Февраль[[#This Row],[Показание счетчика моточасов спецоборудования на начало дня, м/ч]],\"\")","v":2},2,{"$f":"IF(Февраль[[#This Row],[Работа спецоборудования за день, м/ч]]=\"\",\"\",Февраль[[#This Row],[Работа спецоборудования за день, м/ч]]*$Z$2)","v":12.100000000000001},{"$f":"IFERROR(IF(VLOOKUP([Дата],S$2:U$3,3),IFERROR(IF(U21=\"\",Февраль[[#This Row],[Выдано топливо, литр]],Февраль[[#This Row],[Выдано топливо, литр]]+U21)+Февраль[[#This Row],[Остаток топлива в баке на начало дня, литр]]-Февраль[[#This Row],[Фактический расход топлива, литр]],\"\"),\"\"),\"\")","v":500},{"$f":"IFERROR(ROUND((Февраль[[#This Row],[Пройдено за день, км]]*0.01*$Y$2+Февраль[[#This Row],[Расход топлива на работу спецоборудования, литр]]),3)+X21,\"\")","v":53.337000000000003},{"$f":"IFERROR(IF(Февраль[[#Totals],[Выдано топливо, литр]]=0,0,(ROUND(Февраль[[#This Row],[Расход топлива по норме, литр]]/IF(DAY([Дата])<=18,$W$2,$W$3),0)))+Y21,\"\")","v":49},{"$f":"IFERROR(Февраль[[#This Row],[Фактический расход топлива, литр]]-Февраль[[#This Row],[Расход топлива по норме, литр]],\"\")","v":-4.3370000000000033},null,{"$f":"Февраль[[#This Row],[Дата]]","v":"2018-02-15"},null,null,null,null,null,null,1,{"$f":"Февраль[[#This Row],[Дата]]","v":"2018-02-15"}]
[{"$f":"IFERROR(DATEVALUE((COUNT($A$6:A21)+1)&$P$1&$I$4),\"\")","v":"2018-02-16"},null,211745,211745,{"$f":"IFERROR(Февраль[[#This Row],[Показание одометра машины на конец дня, км]]-Февраль[[#This Row],[Показание одометра машины на начало дня, км]]+T22,\"\")","v":0},{"$f":"IF(Февраль[[#This Row],[Дата]]=\"\",\"\",SUMPRODUCT([1]Февраль!$E$4:$E$153*([1]Февраль!$G$4:$G$153=$O$4)*([1]Февраль!$D$4:$D$153=Февраль[[#This Row],[Дата]])))","v":0},{"$f":"IF(Февраль[[#This Row],[Дата]]=\"\",\"\",M21)","v":500},697,697,{"$f":"IFERROR(IF(W22=\"\",Февраль[[#This Row],[Показание счетчика моточасов  спецоборудования на конец дня, м/ч]],Февраль[[#This Row],[Показание счетчика моточасов  спецоборудования на конец дня, м/ч]]+1)-Февраль[[#This Row],[Показание счетчика моточасов спецоборудования на начало дня, м/ч]],\"\")","v":0},null,{"$f":"IF(Февраль[[#This Row],[Работа спецоборудования за день, м/ч]]=\"\",\"\",Февраль[[#This Row],[Работа спецоборудования за день, м/ч]]*$Z$2)","v":0},{"$f":"IFERROR(IF(VLOOKUP([Дата],S$2:U$3,3),IFERROR(IF(U22=\"\",Февраль[[#This Row],[Выдано топливо, литр]],Февраль[[#This Row],[Выдано топливо, литр]]+U22)+Февраль[[#This Row],[Остаток топлива в баке на начало дня, литр]]-Февраль[[#This Row],[Фактический расход топлива, литр]],\"\"),\"\"),\"\")","v":500},{"$f":"IFERROR(ROUND((Февраль[[#This Row],[Пройдено за день, км]]*0.01*$Y$2+Февраль[[#This Row],[Расход топлива на работу спецоборудования, литр]]),3)+X22,\"\")","v":0},{"$f":"IFERROR(IF(Февраль[[#Totals],[Выдано топливо, литр]]=0,0,(ROUND(Февраль[[#This Row],[Расход топлива по норме, литр]]/IF(DAY([Дата])<=18,$W$2,$W$3),0)))+Y22,\"\")","v":0},{"$f":"IFERROR(Февраль[[#This Row],[Фактический расход топлива, литр]]-Февраль[[#This Row],[Расход топлива по норме, литр]],\"\")","v":0},null,{"$f":"Февраль[[#This Row],[Дата]]","v":"2018-02-16"},null,null,null,null,null,null,null,{"$f":"Февраль[[#This Row],[Дата]]","v":"2018-02-16"}]
[{"$f":"IFERROR(DATEVALUE((COUNT($A$6:A22)+1)&$P$1&$I$4),\"\")","v":"2018-02-17"},null,211745,211745,{"$f":"IFERROR(Февраль[[#This Row],[Показание одометра машины на конец дня, км]]-Февраль[[#This Row],[Показание одометра машины на начало дня, км]]+T23,\"\")","v":0},{"$f":"IF(Февраль[[#This Row],[Дата]]=\"\",\"\",SUMPRODUCT([1]Февраль!$E$4:$E$153*([1]Февраль!$G$4:$G$153=$O$4)*([1]Февраль!$D$4:$D$153=Февраль[[#This Row],[Дата]])))","v":0},{"$f":"IF(Февраль[[#This Row],[Дата]]=\"\",\"\",M22)","v":500},697,697,{"$f":"IFERROR(IF(W23=\"\",Февраль[[#This Row],[Показание счетчика моточасов  спецоборудования на конец дня, м/ч]],Февраль[[#This Row],[Показание счетчика моточасов  спецоборудования на конец дня, м/ч]]+1)-Февраль[[#This Row],[Показание счетчика моточасов спецоборудования на начало дня, м/ч]],\"\")","v":0},null,{"$f":"IF(Февраль[[#This Row],[Работа спецоборудования за день, м/ч]]=\"\",\"\",Февраль[[#This Row],[Работа спецоборудования за день, м/ч]]*$Z$2)","v":0},{"$f":"IFERROR(IF(VLOOKUP([Дата],S$2:U$3,3),IFERROR(IF(U23=\"\",Февраль[[#This Row],[Выдано топливо, литр]],Февраль[[#This Row],[Выдано топливо, литр]]+U23)+Февраль[[#This Row],[Остаток топлива в баке на начало дня, литр]]-Февраль[[#This Row],[Фактический расход топлива, литр]],\"\"),\"\"),\"\")","v":500},{"$f":"IFERROR(ROUND((Февраль[[#This Row],[Пройдено за день, км]]*0.01*$Y$2+Февраль[[#This Row],[Расход топлива на работу спецоборудования, литр]]),3)+X23,\"\")","v":0},{"$f":"IFERROR(IF(Февраль[[#Totals],[Выдано топливо, литр]]=0,0,(ROUND(Февраль[[#This Row],[Расход топлива по норме, литр]]/IF(DAY([Дата])<=18,$W$2,$W$3),0)))+Y23,\"\")","v":0},{"$f":"IFERROR(Февраль[[#This Row],[Фактический расход топлива, литр]]-Февраль[[#This Row],[Расход топлива по норме, литр]],\"\")","v":0},null,{"$f":"Февраль[[#This Row],[Дата]]","v":"2018-02-17"},null,null,null,null,null,null,null,{"$f":"Февраль[[#This Row],[Дата]]","v":"2018-02-17"}]
[{"$f":"IFERROR(DATEVALUE((COUNT($A$6:A23)+1)&$P$1&$I$4),\"\")","v":"2018-02-18"},null,211745,211745,{"$f":"IFERROR(Февраль[[#This Row],[Показание одометра машины на конец дня, км]]-Февраль[[#This Row],[Показание одометра машины на начало дня, км]]+T24,\"\")","v":0},{"$f":"IF(Февраль[[#This Row],[Дата]]=\"\",\"\",SUMPRODUCT([1]Февраль!$E$4:$E$153*([1]Февраль!$G$4:$G$153=$O$4)*([1]Февраль!$D$4:$D$153=Февраль[[#This Row],[Дата]])))","v":0},{"$f":"IF(Февраль[[#This Row],[Дата]]=\"\",\"\",M23)","v":500},697,697,{"$f":"IFERROR(IF(W24=\"\",Февраль[[#This Row],[Показание счетчика моточасов  спецоборудования на конец дня, м/ч]],Февраль[[#This Row],[Показание счетчика моточасов  спецоборудования на конец дня, м/ч]]+1)-Февраль[[#This Row],[Показание счетчика моточасов спецоборудования на начало дня, м/ч]],\"\")","v":0},null,{"$f":"IF(Февраль[[#This Row],[Работа спецоборудования за день, м/ч]]=\"\",\"\",Февраль[[#This Row],[Работа спецоборудования за день, м/ч]]*$Z$2)","v":0},{"$f":"IFERROR(IF(VLOOKUP([Дата],S$2:U$3,3),IFERROR(IF(U24=\"\",Февраль[[#This Row],[Выдано топливо, литр]],Февраль[[#This Row],[Выдано топливо, литр]]+U24)+Февраль[[#This Row],[Остаток топлива в баке на начало дня, литр]]-Февраль[[#This Row],[Фактический расход топлива, литр]],\"\"),\"\"),\"\")","v":500},{"$f":"IFERROR(ROUND((Февраль[[#This Row],[Пройдено за день, км]]*0.01*$Y$2+Февраль[[#This Row],[Расход топлива на работу спецоборудования, литр]]),3)+X24,\"\")","v":0},{"$f":"IFERROR(IF(Февраль[[#Totals],[Выдано топливо, литр]]=0,0,(ROUND(Февраль[[#This Row],[Расход топлива по норме, литр]]/IF(DAY([Дата])<=18,$W$2,$W$3),0)))+Y24,\"\")","v":0},{"$f":"IFERROR(Февраль[[#This Row],[Фактический расход топлива, литр]]-Февраль[[#This Row],[Расход топлива по норме, литр]],\"\")","v":0},null,{"$f":"Февраль[[#This Row],[Дата]]","v":"2018-02-18"},null,null,null,null,null,null,null,{"$f":"Февраль[[#This Row],[Дата]]","v":"2018-02-18"}]
[{"$f":"IFERROR(DATEVALUE((COUNT($A$6:A24)+1)&$P$1&$I$4),\"\")","v":"2018-02-19"},null,211745,211745,{"$f":"IFERROR(Февраль[[#This Row],[Показание одометра машины на конец дня, км]]-Февраль[[#This Row],[Показание одометра машины на начало дня, км]]+T25,\"\")","v":0},{"$f":"IF(Февраль[[#This Row],[Дата]]=\"\",\"\",SUMPRODUCT([1]Февраль!$E$4:$E$153*([1]Февраль!$G$4:$G$153=$O$4)*([1]Февраль!$D$4:$D$153=Февраль[[#This Row],[Дата]])))","v":0},{"$f":"IF(Февраль[[#This Row],[Дата]]=\"\",\"\",M24)","v":500},697,697,{"$f":"IFERROR(IF(W25=\"\",Февраль[[#This Row],[Показание счетчика моточасов  спецоборудования на конец дня, м/ч]],Февраль[[#This Row],[Показание счетчика моточасов  спецоборудования на конец дня, м/ч]]+1)-Февраль[[#This Row],[Показание счетчика моточасов спецоборудования на начало дня, м/ч]],\"\")","v":0},null,{"$f":"IF(Февраль[[#This Row],[Работа спецоборудования за день, м/ч]]=\"\",\"\",Февраль[[#This Row],[Работа спецоборудования за день, м/ч]]*$Z$2)","v":0},{"$f":"IFERROR(IF(VLOOKUP([Дата],S$2:U$3,3),IFERROR(IF(U25=\"\",Февраль[[#This Row],[Выдано топливо, литр]],Февраль[[#This Row],[Выдано топливо, литр]]+U25)+Февраль[[#This Row],[Остаток топлива в баке на начало дня, литр]]-Февраль[[#This Row],[Фактический расход топлива, литр]],\"\"),\"\"),\"\")","v":500},{"$f":"IFERROR(ROUND((Февраль[[#This Row],[Пройдено за день, км]]*0.01*$Y$2+Февраль[[#This Row],[Расход топлива на работу спецоборудования, литр]]),3)+X25,\"\")","v":0},{"$f":"IFERROR(IF(Февраль[[#Totals],[Выдано топливо, литр]]=0,0,(ROUND(Февраль[[#This Row],[Расход топлива по норме, литр]]/IF(DAY([Дата])<=18,$W$2,$W$3),0)))+Y25,\"\")","v":0},{"$f":"IFERROR(Февраль[[#This Row],[Фактический расход топлива, литр]]-Февраль[[#This Row],[Расход топлива по норме, литр]],\"\")","v":0},null,{"$f":"Февраль[[#This Row],[Дата]]","v":"2018-02-19"},null,null,null,null,null,null,null,{"$f":"Февраль[[#This Row],[Дата]]","v":"2018-02-19"}]
[{"$f":"IFERROR(DATEVALUE((COUNT($A$6:A25)+1)&$P$1&$I$4),\"\")","v":"2018-02-20"},null,211745,211745,{"$f":"IFERROR(Февраль[[#This Row],[Показание одометра машины на конец дня, км]]-Февраль[[#This Row],[Показание одометра машины на начало дня, км]]+T26,\"\")","v":0},{"$f":"IF(Февраль[[#This Row],[Дата]]=\"\",\"\",SUMPRODUCT([1]Февраль!$E$4:$E$153*([1]Февраль!$G$4:$G$153=$O$4)*([1]Февраль!$D$4:$D$153=Февраль[[#This Row],[Дата]])))","v":0},{"$f":"IF(Февраль[[#This Row],[Дата]]=\"\",\"\",M25)","v":500},697,697,{"$f":"IFERROR(IF(W26=\"\",Февраль[[#This Row],[Показание счетчика моточасов  спецоборудования на конец дня, м/ч]],Февраль[[#This Row],[Показание счетчика моточасов  спецоборудования на конец дня, м/ч]]+1)-Февраль[[#This Row],[Показание счетчика моточасов спецоборудования на начало дня, м/ч]],\"\")","v":0},null,{"$f":"IF(Февраль[[#This Row],[Работа спецоборудования за день, м/ч]]=\"\",\"\",Февраль[[#This Row],[Работа спецоборудования за день, м/ч]]*$Z$2)","v":0},{"$f":"IFERROR(IF(VLOOKUP([Дата],S$2:U$3,3),IFERROR(IF(U26=\"\",Февраль[[#This Row],[Выдано топливо, литр]],Февраль[[#This Row],[Выдано топливо, литр]]+U26)+Февраль[[#This Row],[Остаток топлива в баке на начало дня, литр]]-Февраль[[#This Row],[Фактический расход топлива, литр]],\"\"),\"\"),\"\")","v":500},{"$f":"IFERROR(ROUND((Февраль[[#This Row],[Пройдено за день, км]]*0.01*$Y$2+Февраль[[#This Row],[Расход топлива на работу спецоборудования, литр]]),3)+X26,\"\")","v":0},{"$f":"IFERROR(IF(Февраль[[#Totals],[Выдано топливо, литр]]=0,0,(ROUND(Февраль[[#This Row],[Расход топлива по норме, литр]]/IF(DAY([Дата])<=18,$W$2,$W$3),0)))+Y26,\"\")","v":0},{"$f":"IFERROR(Февраль[[#This Row],[Фактический расход топлива, литр]]-Февраль[[#This Row],[Расход топлива по норме, литр]],\"\")","v":0},null,{"$f":"Февраль[[#This Row],[Дата]]","v":"2018-02-20"},null,null,null,null,null,null,null,{"$f":"Февраль[[#This Row],[Дата]]","v":"2018-02-20"}]
[{"$f":"IFERROR(DATEVALUE((COUNT($A$6:A26)+1)&$P$1&$I$4),\"\")","v":"2018-02-21"},null,211745,211745,{"$f":"IFERROR(Февраль[[#This Row],[Показание одометра машины на конец дня, км]]-Февраль[[#This Row],[Показание одометра машины на начало дня, км]]+T27,\"\")","v":0},{"$f":"IF(Февраль[[#This Row],[Дата]]=\"\",\"\",SUMPRODUCT([1]Февраль!$E$4:$E$153*([1]Февраль!$G$4:$G$153=$O$4)*([1]Февраль!$D$4:$D$153=Февраль[[#This Row],[Дата]])))","v":0},{"$f":"IF(Февраль[[#This Row],[Дата]]=\"\",\"\",M26)","v":500},697,697,{"$f":"IFERROR(IF(W27=\"\",Февраль[[#This Row],[Показание счетчика моточасов  спецоборудования на конец дня, м/ч]],Февраль[[#This Row],[Показание счетчика моточасов  спецоборудования на конец дня, м/ч]]+1)-Февраль[[#This Row],[Показание счетчика моточасов спецоборудования на начало дня, м/ч]],\"\")","v":0},null,{"$f":"IF(Февраль[[#This Row],[Работа спецоборудования за день, м/ч]]=\"\",\"\",Февраль[[#This Row],[Работа спецоборудования за день, м/ч]]*$Z$2)","v":0},{"$f":"IFERROR(IF(VLOOKUP([Дата],S$2:U$3,3),IFERROR(IF(U27=\"\",Февраль[[#This Row],[Выдано топливо, литр]],Февраль[[#This Row],[Выдано топливо, литр]]+U27)+Февраль[[#This Row],[Остаток топлива в баке на начало дня, литр]]-Февраль[[#This Row],[Фактический расход топлива, литр]],\"\"),\"\"),\"\")","v":500},{"$f":"IFERROR(ROUND((Февраль[[#This Row],[Пройдено за день, км]]*0.01*$Y$2+Февраль[[#This Row],[Расход топлива на работу спецоборудования, литр]]),3)+X27,\"\")","v":0},{"$f":"IFERROR(IF(Февраль[[#Totals],[Выдано топливо, литр]]=0,0,(ROUND(Февраль[[#This Row],[Расход топлива по норме, литр]]/IF(DAY([Дата])<=18,$W$2,$W$3),0)))+Y27,\"\")","v":0},{"$f":"IFERROR(Февраль[[#This Row],[Фактический расход топлива, литр]]-Февраль[[#This Row],[Расход топлива по норме, литр]],\"\")","v":0},null,{"$f":"Февраль[[#This Row],[Дата]]","v":"2018-02-21"},null,null,null,null,null,null,null,{"$f":"Февраль[[#This Row],[Дата]]","v":"2018-02-21"}]
[{"$f":"IFERROR(DATEVALUE((COUNT($A$6:A27)+1)&$P$1&$I$4),\"\")","v":"2018-02-22"},null,211745,211745,{"$f":"IFERROR(Февраль[[#This Row],[Показание одометра машины на конец дня, км]]-Февраль[[#This Row],[Показание одометра машины на начало дня, км]]+T28,\"\")","v":0},{"$f":"IF(Февраль[[#This Row],[Дата]]=\"\",\"\",SUMPRODUCT([1]Февраль!$E$4:$E$153*([1]Февраль!$G$4:$G$153=$O$4)*([1]Февраль!$D$4:$D$153=Февраль[[#This Row],[Дата]])))","v":0},{"$f":"IF(Февраль[[#This Row],[Дата]]=\"\",\"\",M27)","v":500},697,697,{"$f":"IFERROR(IF(W28=\"\",Февраль[[#This Row],[Показание счетчика моточасов  спецоборудования на конец дня, м/ч]],Февраль[[#This Row],[Показание счетчика моточасов  спецоборудования на конец дня, м/ч]]+1)-Февраль[[#This Row],[Показание счетчика моточасов спецоборудования на начало дня, м/ч]],\"\")","v":0},null,{"$f":"IF(Февраль[[#This Row],[Работа спецоборудования за день, м/ч]]=\"\",\"\",Февраль[[#This Row],[Работа спецоборудования за день, м/ч]]*$Z$2)","v":0},{"$f":"IFERROR(IF(VLOOKUP([Дата],S$2:U$3,3),IFERROR(IF(U28=\"\",Февраль[[#This Row],[Выдано топливо, литр]],Февраль[[#This Row],[Выдано топливо, литр]]+U28)+Февраль[[#This Row],[Остаток топлива в баке на начало дня, литр]]-Февраль[[#This Row],[Фактический расход топлива, литр]],\"\"),\"\"),\"\")","v":500},{"$f":"IFERROR(ROUND((Февраль[[#This Row],[Пройдено за день, км]]*0.01*$Y$2+Февраль[[#This Row],[Расход топлива на работу спецоборудования, литр]]),3)+X28,\"\")","v":0},{"$f":"IFERROR(IF(Февраль[[#Totals],[Выдано топливо, литр]]=0,0,(ROUND(Февраль[[#This Row],[Расход топлива по норме, литр]]/IF(DAY([Дата])<=18,$W$2,$W$3),0)))+Y28,\"\")","v":0},{"$f":"IFERROR(Февраль[[#This Row],[Фактический расход топлива, литр]]-Февраль[[#This Row],[Расход топлива по норме, литр]],\"\")","v":0},null,{"$f":"Февраль[[#This Row],[Дата]]","v":"2018-02-22"},null,null,null,null,null,null,null,{"$f":"Февраль[[#This Row],[Дата]]","v":"2018-02-22"}]
[{"$f":"IFERROR(DATEVALUE((COUNT($A$6:A28)+1)&$P$1&$I$4),\"\")","v":"2018-02-23"},null,211745,211745,{"$f":"IFERROR(Февраль[[#This Row],[Показание одометра машины на конец дня, км]]-Февраль[[#This Row],[Показание одометра машины на начало дня, км]]+T29,\"\")","v":0},{"$f":"IF(Февраль[[#This Row],[Дата]]=\"\",\"\",SUMPRODUCT([1]Февраль!$E$4:$E$153*([1]Февраль!$G$4:$G$153=$O$4)*([1]Февраль!$D$4:$D$153=Февраль[[#This Row],[Дата]])))","v":0},{"$f":"IF(Февраль[[#This Row],[Дата]]=\"\",\"\",M28)","v":500},697,697,{"$f":"IFERROR(IF(W29=\"\",Февраль[[#This Row],[Показание счетчика моточасов  спецоборудования на конец дня, м/ч]],Февраль[[#This Row],[Показание счетчика моточасов  спецоборудования на конец дня, м/ч]]+1)-Февраль[[#This Row],[Показание счетчика моточасов спецоборудования на начало дня, м/ч]],\"\")","v":0},null,{"$f":"IF(Февраль[[#This Row],[Работа спецоборудования за день, м/ч]]=\"\",\"\",Февраль[[#This Row],[Работа спецоборудования за день, м/ч]]*$Z$2)","v":0},{"$f":"IFERROR(IF(VLOOKUP([Дата],S$2:U$3,3),IFERROR(IF(U29=\"\",Февраль[[#This Row],[Выдано топливо, литр]],Февраль[[#This Row],[Выдано топливо, литр]]+U29)+Февраль[[#This Row],[Остаток топлива в баке на начало дня, литр]]-Февраль[[#This Row],[Фактический расход топлива, литр]],\"\"),\"\"),\"\")","v":500},{"$f":"IFERROR(ROUND((Февраль[[#This Row],[Пройдено за день, км]]*0.01*$Y$2+Февраль[[#This Row],[Расход топлива на работу спецоборудования, литр]]),3)+X29,\"\")","v":0},{"$f":"IFERROR(IF(Февраль[[#Totals],[Выдано топливо, литр]]=0,0,(ROUND(Февраль[[#This Row],[Расход топлива по норме, литр]]/IF(DAY([Дата])<=18,$W$2,$W$3),0)))+Y29,\"\")","v":0},{"$f":"IFERROR(Февраль[[#This Row],[Фактический расход топлива, литр]]-Февраль[[#This Row],[Расход топлива по норме, литр]],\"\")","v":0},null,{"$f":"Февраль[[#This Row],[Дата]]","v":"2018-02-23"},null,null,null,null,null,null,null,{"$f":"Февраль[[#This Row],[Дата]]","v":"2018-02-23"}]
[{"$f":"IFERROR(DATEVALUE((COUNT($A$6:A29)+1)&$P$1&$I$4),\"\")","v":"2018-02-24"},null,211745,211745,{"$f":"IFERROR(Февраль[[#This Row],[Показание одометра машины на конец дня, км]]-Февраль[[#This Row],[Показание одометра машины на начало дня, км]]+T30,\"\")","v":0},{"$f":"IF(Февраль[[#This Row],[Дата]]=\"\",\"\",SUMPRODUCT([1]Февраль!$E$4:$E$153*([1]Февраль!$G$4:$G$153=$O$4)*([1]Февраль!$D$4:$D$153=Февраль[[#This Row],[Дата]])))","v":0},{"$f":"IF(Февраль[[#This Row],[Дата]]=\"\",\"\",M29)","v":500},697,697,{"$f":"IFERROR(IF(W30=\"\",Февраль[[#This Row],[Показание счетчика моточасов  спецоборудования на конец дня, м/ч]],Февраль[[#This Row],[Показание счетчика моточасов  спецоборудования на конец дня, м/ч]]+1)-Февраль[[#This Row],[Показание счетчика моточасов спецоборудования на начало дня, м/ч]],\"\")","v":0},null,{"$f":"IF(Февраль[[#This Row],[Работа спецоборудования за день, м/ч]]=\"\",\"\",Февраль[[#This Row],[Работа спецоборудования за день, м/ч]]*$Z$2)","v":0},{"$f":"IFERROR(IF(VLOOKUP([Дата],S$2:U$3,3),IFERROR(IF(U30=\"\",Февраль[[#This Row],[Выдано топливо, литр]],Февраль[[#This Row],[Выдано топливо, литр]]+U30)+Февраль[[#This Row],[Остаток топлива в баке на начало дня, литр]]-Февраль[[#This Row],[Фактический расход топлива, литр]],\"\"),\"\"),\"\")","v":500},{"$f":"IFERROR(ROUND((Февраль[[#This Row],[Пройдено за день, км]]*0.01*$Y$2+Февраль[[#This Row],[Расход топлива на работу спецоборудования, литр]]),3)+X30,\"\")","v":0},{"$f":"IFERROR(IF(Февраль[[#Totals],[Выдано топливо, литр]]=0,0,(ROUND(Февраль[[#This Row],[Расход топлива по норме, литр]]/IF(DAY([Дата])<=18,$W$2,$W$3),0)))+Y30,\"\")","v":0},{"$f":"IFERROR(Февраль[[#This Row],[Фактический расход топлива, литр]]-Февраль[[#This Row],[Расход топлива по норме, литр]],\"\")","v":0},null,{"$f":"Февраль[[#This Row],[Дата]]","v":"2018-02-24"},null,null,null,null,null,null,null,{"$f":"Февраль[[#This Row],[Дата]]","v":"2018-02-24"}]
[{"$f":"IFERROR(DATEVALUE((COUNT($A$6:A30)+1)&$P$1&$I$4),\"\")","v":"2018-02-25"},null,211745,211745,{"$f":"IFERROR(Февраль[[#This Row],[Показание одометра машины на конец дня, км]]-Февраль[[#This Row],[Показание одометра машины на начало дня, км]]+T31,\"\")","v":0},{"$f":"IF(Февраль[[#This Row],[Дата]]=\"\",\"\",SUMPRODUCT([1]Февраль!$E$4:$E$153*([1]Февраль!$G$4:$G$153=$O$4)*([1]Февраль!$D$4:$D$153=Февраль[[#This Row],[Дата]])))","v":0},{"$f":"IF(Февраль[[#This Row],[Дата]]=\"\",\"\",M30)","v":500},697,697,{"$f":"IFERROR(IF(W31=\"\",Февраль[[#This Row],[Показание счетчика моточасов  спецоборудования на конец дня, м/ч]],Февраль[[#This Row],[Показание счетчика моточасов  спецоборудования на конец дня, м/ч]]+1)-Февраль[[#This Row],[Показание счетчика моточасов спецоборудования на начало дня, м/ч]],\"\")","v":0},0,{"$f":"IF(Февраль[[#This Row],[Работа спецоборудования за день, м/ч]]=\"\",\"\",Февраль[[#This Row],[Работа спецоборудования за день, м/ч]]*$Z$2)","v":0},{"$f":"IFERROR(IF(VLOOKUP([Дата],S$2:U$3,3),IFERROR(IF(U31=\"\",Февраль[[#This Row],[Выдано топливо, литр]],Февраль[[#This Row],[Выдано топливо, литр]]+U31)+Февраль[[#This Row],[Остаток топлива в баке на начало дня, литр]]-Февраль[[#This Row],[Фактический расход топлива, литр]],\"\"),\"\"),\"\")","v":500},{"$f":"IFERROR(ROUND((Февраль[[#This Row],[Пройдено за день, км]]*0.01*$Y$2+Февраль[[#This Row],[Расход топлива на работу спецоборудования, литр]]),3)+X31,\"\")","v":0},{"$f":"IFERROR(IF(Февраль[[#Totals],[Выдано топливо, литр]]=0,0,(ROUND(Февраль[[#This Row],[Расход топлива по норме, литр]]/IF(DAY([Дата])<=18,$W$2,$W$3),0)))+Y31,\"\")","v":0},{"$f":"IFERROR(Февраль[[#This Row],[Фактический расход топлива, литр]]-Февраль[[#This Row],[Расход топлива по норме, литр]],\"\")","v":0},null,{"$f":"Февраль[[#This Row],[Дата]]","v":"2018-02-25"},null,null,null,null,null,null,null,{"$f":"Февраль[[#This Row],[Дата]]","v":"2018-02-25"}]
[{"$f":"IFERROR(DATEVALUE((COUNT($A$6:A31)+1)&$P$1&$I$4),\"\")","v":"2018-02-26"},"Никляев В.А.",211745,211915,{"$f":"IFERROR(Февраль[[#This Row],[Показание одометра машины на конец дня, км]]-Февраль[[#This Row],[Показание одометра машины на начало дня, км]]+T32,\"\")","v":170},{"$f":"IF(Февраль[[#This Row],[Дата]]=\"\",\"\",SUMPRODUCT([1]Февраль!$E$4:$E$153*([1]Февраль!$G$4:$G$153=$O$4)*([1]Февраль!$D$4:$D$153=Февраль[[#This Row],[Дата]])))","v":0},{"$f":"IF(Февраль[[#This Row],[Дата]]=\"\",\"\",M31)","v":500},697,699,{"$f":"IFERROR(IF(W32=\"\",Февраль[[#This Row],[Показание счетчика моточасов  спецоборудования на конец дня, м/ч]],Февраль[[#This Row],[Показание счетчика моточасов  спецоборудования на конец дня, м/ч]]+1)-Февраль[[#This Row],[Показание счетчика моточасов спецоборудования на начало дня, м/ч]],\"\")","v":2},1,{"$f":"IF(Февраль[[#This Row],[Работа спецоборудования за день, м/ч]]=\"\",\"\",Февраль[[#This Row],[Работа спецоборудования за день, м/ч]]*$Z$2)","v":12.100000000000001},{"$f":"IFERROR(IF(VLOOKUP([Дата],S$2:U$3,3),IFERROR(IF(U32=\"\",Февраль[[#This Row],[Выдано топливо, литр]],Февраль[[#This Row],[Выдано топливо, литр]]+U32)+Февраль[[#This Row],[Остаток топлива в баке на начало дня, литр]]-Февраль[[#This Row],[Фактический расход топлива, литр]],\"\"),\"\"),\"\")","v":409},{"$f":"IFERROR(ROUND((Февраль[[#This Row],[Пройдено за день, км]]*0.01*$Y$2+Февраль[[#This Row],[Расход топлива на работу спецоборудования, литр]]),3)+X32,\"\")","v":99.727999999999994},{"$f":"IFERROR(IF(Февраль[[#Totals],[Выдано топливо, литр]]=0,0,(ROUND(Февраль[[#This Row],[Расход топлива по норме, литр]]/IF(DAY([Дата])<=18,$W$2,$W$3),0)))+Y32,\"\")","v":91},{"$f":"IFERROR(Февраль[[#This Row],[Фактический расход топлива, литр]]-Февраль[[#This Row],[Расход топлива по норме, литр]],\"\")","v":-8.7279999999999944},null,{"$f":"Февраль[[#This Row],[Дата]]","v":"2018-02-26"},null,null,null,null,null,null,null,{"$f":"Февраль[[#This Row],[Дата]]","v":"2018-02-26"}]
[{"$f":"IFERROR(DATEVALUE((COUNT($A$6:A32)+1)&$P$1&$I$4),\"\")","v":"2018-02-27"},"Никляев В.А.",211915,211991,{"$f":"IFERROR(Февраль[[#This Row],[Показание одометра машины на конец дня, км]]-Февраль[[#This Row],[Показание одометра машины на начало дня, км]]+T33,\"\")","v":76},{"$f":"IF(Февраль[[#This Row],[Дата]]=\"\",\"\",SUMPRODUCT([1]Февраль!$E$4:$E$153*([1]Февраль!$G$4:$G$153=$O$4)*([1]Февраль!$D$4:$D$153=Февраль[[#This Row],[Дата]])))","v":0},{"$f":"IF(Февраль[[#This Row],[Дата]]=\"\",\"\",M32)","v":409},699,703,{"$f":"IFERROR(IF(W33=\"\",Февраль[[#This Row],[Показание счетчика моточасов  спецоборудования на конец дня, м/ч]],Февраль[[#This Row],[Показание счетчика моточасов  спецоборудования на конец дня, м/ч]]+1)-Февраль[[#This Row],[Показание счетчика моточасов спецоборудования на начало дня, м/ч]],\"\")","v":4},2,{"$f":"IF(Февраль[[#This Row],[Работа спецоборудования за день, м/ч]]=\"\",\"\",Февраль[[#This Row],[Работа спецоборудования за день, м/ч]]*$Z$2)","v":24.200000000000003},{"$f":"IFERROR(IF(VLOOKUP([Дата],S$2:U$3,3),IFERROR(IF(U33=\"\",Февраль[[#This Row],[Выдано топливо, литр]],Февраль[[#This Row],[Выдано топливо, литр]]+U33)+Февраль[[#This Row],[Остаток топлива в баке на начало дня, литр]]-Февраль[[#This Row],[Фактический расход топлива, литр]],\"\"),\"\"),\"\")","v":351},{"$f":"IFERROR(ROUND((Февраль[[#This Row],[Пройдено за день, км]]*0.01*$Y$2+Февраль[[#This Row],[Расход топлива на работу спецоборудования, литр]]),3)+X33,\"\")","v":63.375},{"$f":"IFERROR(IF(Февраль[[#Totals],[Выдано топливо, литр]]=0,0,(ROUND(Февраль[[#This Row],[Расход топлива по норме, литр]]/IF(DAY([Дата])<=18,$W$2,$W$3),0)))+Y33,\"\")","v":58},{"$f":"IFERROR(Февраль[[#This Row],[Фактический расход топлива, литр]]-Февраль[[#This Row],[Расход топлива по норме, литр]],\"\")","v":-5.375},null,{"$f":"Февраль[[#This Row],[Дата]]","v":"2018-02-27"},null,null,null,null,null,null,null,{"$f":"Февраль[[#This Row],[Дата]]","v":"2018-02-27"}]
[{"$f":"IFERROR(DATEVALUE((COUNT($A$6:A33)+1)&$P$1&$I$4),\"\")","v":"2018-02-28"},"Никляев В.А.",211991,212252,{"$f":"IFERROR(Февраль[[#This Row],[Показание одометра машины на конец дня, км]]-Февраль[[#This Row],[Показание одометра машины на начало дня, км]]+T34,\"\")","v":261},{"$f":"IF(Февраль[[#This Row],[Дата]]=\"\",\"\",SUMPRODUCT([1]Февраль!$E$4:$E$153*([1]Февраль!$G$4:$G$153=$O$4)*([1]Февраль!$D$4:$D$153=Февраль[[#This Row],[Дата]])))","v":300},{"$f":"IF(Февраль[[#This Row],[Дата]]=\"\",\"\",M33)","v":351},703,708,{"$f":"IFERROR(IF(W34=\"\",Февраль[[#This Row],[Показание счетчика моточасов  спецоборудования на конец дня, м/ч]],Февраль[[#This Row],[Показание счетчика моточасов  спецоборудования на конец дня, м/ч]]+1)-Февраль[[#This Row],[Показание счетчика моточасов спецоборудования на начало дня, м/ч]],\"\")","v":5},3,{"$f":"IF(Февраль[[#This Row],[Работа спецоборудования за день, м/ч]]=\"\",\"\",Февраль[[#This Row],[Работа спецоборудования за день, м/ч]]*$Z$2)","v":30.250000000000004},{"$f":"IFERROR(IF(VLOOKUP([Дата],S$2:U$3,3),IFERROR(IF(U34=\"\",Февраль[[#This Row],[Выдано топливо, литр]],Февраль[[#This Row],[Выдано топливо, литр]]+U34)+Февраль[[#This Row],[Остаток топлива в баке на начало дня, литр]]-Февраль[[#This Row],[Фактический расход топлива, литр]],\"\"),\"\"),\"\")","v":500},{"$f":"IFERROR(ROUND((Февраль[[#This Row],[Пройдено за день, км]]*0.01*$Y$2+Февраль[[#This Row],[Расход топлива на работу спецоборудования, литр]]),3)+X34,\"\")","v":164.785},{"$f":"IFERROR(IF(Февраль[[#Totals],[Выдано топливо, литр]]=0,0,(ROUND(Февраль[[#This Row],[Расход топлива по норме, литр]]/IF(DAY([Дата])<=18,$W$2,$W$3),0)))+Y34,\"\")","v":151},{"$f":"IFERROR(Февраль[[#This Row],[Фактический расход топлива, литр]]-Февраль[[#This Row],[Расход топлива по норме, литр]],\"\")","v":-13.784999999999997},null,{"$f":"Февраль[[#This Row],[Дата]]","v":"2018-02-28"},null,null,null,null,null,null,null,{"$f":"Февраль[[#This Row],[Дата]]","v":"2018-02-28"}]
[{"$f":"IFERROR(DATEVALUE((COUNT($A$6:A34)+1)&$P$1&$I$4),\"\")","v":""},null,"",null,{"$f":"IFERROR(Февраль[[#This Row],[Показание одометра машины на конец дня, км]]-Февраль[[#This Row],[Показание одометра машины на начало дня, км]]+T35,\"\")","v":""},{"$f":"IF(Февраль[[#This Row],[Дата]]=\"\",\"\",SUMPRODUCT([1]Февраль!$E$4:$E$153*([1]Февраль!$G$4:$G$153=$O$4)*([1]Февраль!$D$4:$D$153=Февраль[[#This Row],[Дата]])))","v":""},{"$f":"IF(Февраль[[#This Row],[Дата]]=\"\",\"\",M34)","v":""},"",null,{"$f":"IFERROR(IF(W35=\"\",Февраль[[#This Row],[Показание счетчика моточасов  спецоборудования на конец дня, м/ч]],Февраль[[#This Row],[Показание счетчика моточасов  спецоборудования на конец дня, м/ч]]+1)-Февраль[[#This Row],[Показание счетчика моточасов спецоборудования на начало дня, м/ч]],\"\")","v":""},null,{"$f":"IF(Февраль[[#This Row],[Работа спецоборудования за день, м/ч]]=\"\",\"\",Февраль[[#This Row],[Работа спецоборудования за день, м/ч]]*$Z$2)","v":""},{"$f":"IFERROR(IF(VLOOKUP([Дата],S$2:U$3,3),IFERROR(IF(U35=\"\",Февраль[[#This Row],[Выдано топливо, литр]],Февраль[[#This Row],[Выдано топливо, литр]]+U35)+Февраль[[#This Row],[Остаток топлива в баке на начало дня, литр]]-Февраль[[#This Row],[Фактический расход топлива, литр]],\"\"),\"\"),\"\")","v":""},{"$f":"IFERROR(ROUND((Февраль[[#This Row],[Пройдено за день, км]]*0.01*$Y$2+Февраль[[#This Row],[Расход топлива на работу спецоборудования, литр]]),3)+X35,\"\")","v":""},{"$f":"IFERROR(IF(Февраль[[#Totals],[Выдано топливо, литр]]=0,0,(ROUND(Февраль[[#This Row],[Расход топлива по норме, литр]]/IF(DAY([Дата])<=18,$W$2,$W$3),0)))+Y35,\"\")","v":""},{"$f":"IFERROR(Февраль[[#This Row],[Фактический расход топлива, литр]]-Февраль[[#This Row],[Расход топлива по норме, литр]],\"\")","v":""},null,{"$f":"Февраль[[#This Row],[Дата]]","v":""},null,null,null,null,null,null,null,{"$f":"Февраль[[#This Row],[Дата]]","v":""}]
[{"$f":"IFERROR(DATEVALUE((COUNT($A$6:A35)+1)&$P$1&$I$4),\"\")","v":""},null,"",null,{"$f":"IFERROR(Февраль[[#This Row],[Показание одометра машины на конец дня, км]]-Февраль[[#This Row],[Показание одометра машины на начало дня, км]]+T36,\"\")","v":""},{"$f":"IF(Февраль[[#This Row],[Дата]]=\"\",\"\",SUMPRODUCT([1]Февраль!$E$4:$E$153*([1]Февраль!$G$4:$G$153=$O$4)*([1]Февраль!$D$4:$D$153=Февраль[[#This Row],[Дата]])))","v":""},{"$f":"IF(Февраль[[#This Row],[Дата]]=\"\",\"\",M35)","v":""},"",null,{"$f":"IFERROR(IF(W36=\"\",Февраль[[#This Row],[Показание счетчика моточасов  спецоборудования на конец дня, м/ч]],Февраль[[#This Row],[Показание счетчика моточасов  спецоборудования на конец дня, м/ч]]+1)-Февраль[[#This Row],[Показание счетчика моточасов спецоборудования на начало дня, м/ч]],\"\")","v":""},null,{"$f":"IF(Февраль[[#This Row],[Работа спецоборудования за день, м/ч]]=\"\",\"\",Февраль[[#This Row],[Работа спецоборудования за день, м/ч]]*$Z$2)","v":""},{"$f":"IFERROR(IF(VLOOKUP([Дата],S$2:U$3,3),IFERROR(IF(U36=\"\",Февраль[[#This Row],[Выдано топливо, литр]],Февраль[[#This Row],[Выдано топливо, литр]]+U36)+Февраль[[#This Row],[Остаток топлива в баке на начало дня, литр]]-Февраль[[#This Row],[Фактический расход топлива, литр]],\"\"),\"\"),\"\")","v":""},{"$f":"IFERROR(ROUND((Февраль[[#This Row],[Пройдено за день, км]]*0.01*$Y$2+Февраль[[#This Row],[Расход топлива на работу спецоборудования, литр]]),3)+X36,\"\")","v":""},{"$f":"IFERROR(IF(Февраль[[#Totals],[Выдано топливо, литр]]=0,0,(ROUND(Февраль[[#This Row],[Расход топлива по норме, литр]]/IF(DAY([Дата])<=18,$W$2,$W$3),0)))+Y36,\"\")","v":""},{"$f":"IFERROR(Февраль[[#This Row],[Фактический расход топлива, литр]]-Февраль[[#This Row],[Расход топлива по норме, литр]],\"\")","v":""},null,{"$f":"Февраль[[#This Row],[Дата]]","v":""},null,null,null,null,null,null,null,{"$f":"Февраль[[#This Row],[Дата]]","v":""}]
[{"$f":"IFERROR(DATEVALUE((COUNT($A$6:A36)+1)&$P$1&$I$4),\"\")","v":""},null,"",null,{"$f":"IFERROR(Февраль[[#This Row],[Показание одометра машины на конец дня, км]]-Февраль[[#This Row],[Показание одометра машины на начало дня, км]]+T37,\"\")","v":""},{"$f":"IF(Февраль[[#This Row],[Дата]]=\"\",\"\",SUMPRODUCT([1]Февраль!$E$4:$E$153*([1]Февраль!$G$4:$G$153=$O$4)*([1]Февраль!$D$4:$D$153=Февраль[[#This Row],[Дата]])))","v":""},{"$f":"IF(Февраль[[#This Row],[Дата]]=\"\",\"\",M36)","v":""},"",null,{"$f":"IFERROR(IF(W37=\"\",Февраль[[#This Row],[Показание счетчика моточасов  спецоборудования на конец дня, м/ч]],Февраль[[#This Row],[Показание счетчика моточасов  спецоборудования на конец дня, м/ч]]+1)-Февраль[[#This Row],[Показание счетчика моточасов спецоборудования на начало дня, м/ч]],\"\")","v":""},null,{"$f":"IF(Февраль[[#This Row],[Работа спецоборудования за день, м/ч]]=\"\",\"\",Февраль[[#This Row],[Работа спецоборудования за день, м/ч]]*$Z$2)","v":""},{"$f":"IFERROR(IF(VLOOKUP([Дата],S$2:U$3,3),IFERROR(IF(U37=\"\",Февраль[[#This Row],[Выдано топливо, литр]],Февраль[[#This Row],[Выдано топливо, литр]]+U37)+Февраль[[#This Row],[Остаток топлива в баке на начало дня, литр]]-Февраль[[#This Row],[Фактический расход топлива, литр]],\"\"),\"\"),\"\")","v":""},{"$f":"IFERROR(ROUND((Февраль[[#This Row],[Пройдено за день, км]]*0.01*$Y$2+Февраль[[#This Row],[Расход топлива на работу спецоборудования, литр]]),3)+X37,\"\")","v":""},{"$f":"IFERROR(IF(Февраль[[#Totals],[Выдано топливо, литр]]=0,0,(ROUND(Февраль[[#This Row],[Расход топлива по норме, литр]]/IF(DAY([Дата])<=18,$W$2,$W$3),0)))+Y37,\"\")","v":""},{"$f":"IFERROR(Февраль[[#This Row],[Фактический расход топлива, литр]]-Февраль[[#This Row],[Расход топлива по норме, литр]],\"\")","v":""},null,{"$f":"Февраль[[#This Row],[Дата]]","v":""},null,null,null,null,null,null,null,{"$f":"Февраль[[#This Row],[Дата]]","v":""}]
["Итог",null,null,null,{"$f":"SUBTOTAL(109,[Пройдено за день, км])","v":1529},{"$f":"SUBTOTAL(109,[Выдано топливо, литр])","v":1050},null,null,null,{"$f":"SUBTOTAL(109,[Работа спецоборудования за день, м/ч])","v":37},{"$f":"SUBTOTAL(109,[Количество ходок])","v":24},{"$f":"SUBTOTAL(109,[Расход топлива на работу спецоборудования, литр])","v":223.85000000000002},null,{"$f":"SUBTOTAL(109,[Расход топлива по норме, литр])","v":1011.9889999999998},{"$f":"SUBTOTAL(109,[Фактический расход топлива, литр])","v":920},{"$f":"SUBTOTAL(109,[Отклонение от нормы (Перерасход(+), экономия(-)), литр])","v":-91.98899999999999},null,"1-я пол.",{"$f":"SUMIFS(S$7:S$37,INDIRECT(\"Февраль[Дата]\"),\">=\"&$S$2,INDIRECT(\"Февраль[Дата]\"),\"<=\"&$T$2)+IF(MONTH($T$2)<>MONTH($S$2),INDIRECT(TEXT($A$7-1,\"ММММ\")&\"!F38\")-SUM(INDIRECT(TEXT($A$7-1,\"ММММ\")&\"!V1:V2\")))","v":0},{"$f":"SUMIFS(T$7:T$37,INDIRECT(\"Февраль[Дата]\"),\">=\"&$S$2,INDIRECT(\"Февраль[Дата]\"),\"<=\"&$T$2)+IF(MONTH($T$2)<>MONTH($S$2),INDIRECT(TEXT($A$7-1,\"ММММ\")&\"!F38\")-SUM(INDIRECT(TEXT($A$7-1,\"ММММ\")&\"!V1:V2\")))","v":0},-130,0,0,-1E-3,1,"1-я пол."]
[null,null,null,null,null,null,null,null,null,null,{"$f":"SUMIFS(K7:K37,A7:A37,\">=\"&$S$2,A7:A37,\"<=\"&$T$2)","v":18},null,null,null,null,null,null,"2-я пол.",{"$f":"SUMIFS(S$7:S$37,INDIRECT(\"Февраль[Дата]\"),\">=\"&$S$3,INDIRECT(\"Февраль[Дата]\"),\"<=\"&$T$3)+IF(MONTH($T$3)<>MONTH($S$3),INDIRECT(TEXT($A$7-1,\"ММММ\")&\"!F38\")-SUM(INDIRECT(TEXT($A$7-1,\"ММММ\")&\"!V1:V2\")))","v":0},{"$f":"SUMIFS(T$7:T$37,INDIRECT(\"Февраль[Дата]\"),\">=\"&$S$3,INDIRECT(\"Февраль[Дата]\"),\"<=\"&$T$3)+IF(MONTH($T$3)<>MONTH($S$3),INDIRECT(TEXT($A$7-1,\"ММММ\")&\"!F38\")-SUM(INDIRECT(TEXT($A$7-1,\"ММММ\")&\"!V1:V2\")))","v":0},0,0,0,0,0,"2-я пол."]
[null,null,null,null,null,null,null,null,null,null,{"$f":"SUMIFS(K7:K37,A7:A37,\">=\"&$S$3,A7:A37,\"<=\"&$T$3)","v":6}]

{"sheet":"Март","index":2,"n_rows":40,"n_cols":26,"rows_kept":40,"cut":false,"hidden":false,"merged":[[1,0,1,15],[2,0,2,15],[3,14,3,15]]}
[null,null,null,null,null,null,null,null,null,null,null,null,null,null,null,"Март",null,null,null,null,null,null,null,"Экономия","Базовая норма расхода на 100 км","Базовая норма расхода на 1 мото/час"]
["Общество с ограниченной ответственностью  \"Втормет Царицыно\"",null,null,null,null,null,null,null,null,null,null,null,null,null,null,null,null,"1-я пол.",{"$f":"INDIRECT(TEXT(A7-1,\"ММММ\")&\"!T3\")+1","v":"2018-03-01"},"2018-03-15",{"$f":"ТС!E5","v":500},{"$f":"SUMIFS(Март[Выдано топливо, литр],Март[Дата],\">=\"&$S$2,Март[Дата],\"<=\"&$T$2)+IF(MONTH(T2)<>MONTH(S2),INDIRECT(TEXT(A7-1,\"ММММ\")&\"!F38\")-SUM(INDIRECT(TEXT(A7-1,\"ММММ\")&\"!V1:V2\")))+SUMIFS($U$7:$U$37,Март[Дата],\">=\"&$S$2,Март[Дата],\"<=\"&$T$2)+IF(MONTH(T2)<>MONTH(S2),INDIRECT(TEXT(A7-1,\"ММММ\")&\"!F38\")-SUM(INDIRECT(TEXT(A7-1,\"ММММ\")&\"!V1:V2\")))","v":1035.01},{"$f":"IF(V2=0,0,(SUMIFS(N7:N37,A7:A37,\">=\"&S2,A7:A37,\"<=\"&T2)+SUMIFS(INDIRECT(TEXT(A7-1,\"ММММ\")&\"!N7:N37\"),INDIRECT(TEXT(A7-1,\"ММММ\")&\"!A7:A37\"),\">=\"&S2))/(V2-U2+IF(MONTH(T2)=MONTH(S2),G7,INDEX(INDIRECT(TEXT(A7-1,\"ММММ\")&\"!G7:G37\"),DAY(S2)))))","v":1.0754205273379003},{"$f":"SUMIFS(Март[Отклонение от нормы (Перерасход(+), экономия(-)), литр],Март[Дата],\">=\"&$S$2,Март[Дата],\"<=\"&$T$2)","v":-78.061000000000007},{"$f":"IF(Y4=\"Зима\",VLOOKUP(Z4,Расчет[[Номер гос.регистрации / Заводской номер]:[Итога норма а/м \"ЛЕТО\"]],8,FALSE),VLOOKUP(Z4,Расчет[[Номер гос.регистрации / Заводской номер]:[Итога норма а/м \"ЛЕТО\"]],9,FALSE))","v":51.546000000000006},{"$f":"IF(Y4=\"Зима\",VLOOKUP(Z4,Расчет[[Номер гос.регистрации / Заводской номер]:[Итога норма а/м \"ЛЕТО\"]],13,FALSE),VLOOKUP(Z4,Расчет[[Номер гос.регистрации / Заводской номер]:[Итога норма а/м \"ЛЕТО\"]],14,FALSE))","v":6.0500000000000007}]
["Отчет водителя ломовоза с манипулятором",null,null,null,null,null,null,null,null,null,null,null,null,null,null,null,null,"2-я пол.",{"$f":"T2+1","v":"2018-03-16"},{"$f":"INDEX(Март[Дата],COUNT(Март[Дата]))-T1","v":"2018-03-31"},{"$f":"ТС!E6","v":500},{"$f":"SUMIFS(Март[Выдано топливо, литр],Март[Дата],\">=\"&$S$3,Март[Дата],\"<=\"&$T$3)+IF(MONTH(T3)<>MONTH(S3),INDIRECT(TEXT(A7-1,\"ММММ\")&\"!F38\")-SUM(INDIRECT(TEXT(A7-1,\"ММММ\")&\"!V1:V2\")))+SUMIFS($U$7:$U$37,Март[Дата],\">=\"&$S$3,Март[Дата],\"<=\"&$T$3)+IF(MONTH(T3)<>MONTH(S3),INDIRECT(TEXT(A7-1,\"ММММ\")&\"!F38\")-SUM(INDIRECT(TEXT(A7-1,\"ММММ\")&\"!V1:V2\")))","v":751.46},{"$f":"IF(V3=0,0,(SUMIFS(N7:N37,A7:A37,\">=\"&S3,A7:A37,\"<=\"&T3)+SUMIFS(INDIRECT(TEXT(A7-1,\"ММММ\")&\"!N7:N37\"),INDIRECT(TEXT(A7-1,\"ММММ\")&\"!A7:A37\"),\">=\"&S3))/(V3-U3+IF(MONTH(T3)=MONTH(S3),G7,INDEX(INDIRECT(TEXT(A7-1,\"ММММ\")&\"!G7:G37\"),DAY(S3)))))","v":0.86685651930907826},{"$f":"SUMIFS(Март[Отклонение от нормы (Перерасход(+), экономия(-)), литр],Март[Дата],\">=\"&$S$3,Март[Дата],\"<=\"&$T$3)","v":100.05199999999999}]
[null,null,null,null,null,null,null,"за",2018,null,null,null,null,null,"т 056 вв 197",null,null,null,{"$f":"IF(INDEX(Март[Дата],COUNT(Март[Дата]))=T3,\"\",T3+1)","v":""},null,null,null,{"$f":"IFERROR(IF(S4=\"\",\"\",INDIRECT(TEXT(A7+40,\"ММММ\")&\"!W2\")),)","v":""},null,"Зима","Норма 1"]
[]
["Дата","ФИО водителя","Показание одометра машины на начало дня, км","Показание одометра машины на конец дня, км","Пройдено за день, км","Выдано топливо, литр","Остаток топлива в баке на начало дня, литр","Показание счетчика моточасов спецоборудования на начало дня, м/ч","Показание счетчика моточасов  спецоборудования на конец дня, м/ч","Работа спецоборудования за день, м/ч","Количество ходок","Расход топлива на работу спецоборудования, литр","Остаток топлива в баке на конец дня, литр","Расход топлива по норме, литр","Фактический расход топлива, литр","Отклонение от нормы (Перерасход(+), экономия(-)), литр",null,"Дата","Обнуление одометра, км","Пройдено за день, км","Выдано топливо, литр","Обнуление счетчика моточасов спецоборудования, м/ч","Работа спецоборудования за день, м/ч","Расход топлива по норме, литр","Фактический расход топлива, литр","Дата"]
[{"$f":"IFERROR(DATEVALUE((COUNT($A$6:A6)+1)&$P$1&$I$4),\"\")","v":"2018-03-01"},"Никляев В.А.",{"$f":"INDEX(Февраль!D7:D37,COUNT(Февраль!D7:D37))","v":212252},212292,{"$f":"IFERROR(Март[[#This Row],[Показание одометра машины на конец дня, км]]-Март[[#This Row],[Показание одометра машины на начало дня, км]]+T7,\"\")","v":40},{"$f":"IF(Март[[#This Row],[Дата]]=\"\",\"\",SUMPRODUCT([1]Март!$E$4:$E$153*([1]Март!$G$4:$G$153=$O$4)*([1]Март!$D$4:$D$153=Март[[#This Row],[Дата]])))","v":0},{"$f":"U2","v":500},{"$f":"INDEX(Февраль!I7:I37,COUNT(Февраль!I7:I37))","v":708},711,{"$f":"IFERROR(IF(W7=\"\",Март[[#This Row],[Показание счетчика моточасов  спецоборудования на конец дня, м/ч]],Март[[#This Row],[Показание счетчика моточасов  спецоборудования на конец дня, м/ч]]+1)-Март[[#This Row],[Показание счетчика моточасов спецоборудования на начало дня, м/ч]],\"\")","v":3},2,{"$f":"IF(Март[[#This Row],[Работа спецоборудования за день, м/ч]]=\"\",\"\",Март[[#This Row],[Работа спецоборудования за день, м/ч]]*$Z$2)","v":18.150000000000002},{"$f":"IFERROR(IF(VLOOKUP([Дата],S$2:U$3,3),IFERROR(IF(U7=\"\",Март[[#This Row],[Выдано топливо, литр]],Март[[#This Row],[Выдано топливо, литр]]+U7)+Март[[#This Row],[Остаток топлива в баке на начало дня, литр]]-Март[[#This Row],[Фактический расход топлива, литр]],\"\"),\"\"),\"\")","v":464},{"$f":"IFERROR(ROUND((Март[[#This Row],[Пройдено за день, км]]*0.01*$Y$2+Март[[#This Row],[Расход топлива на работу спецоборудования, литр]]),3)+X7,\"\")","v":38.768000000000001},{"$f":"IFERROR(IF(Март[[#Totals],[Выдано топливо, литр]]=0,0,(ROUND(Март[[#This Row],[Расход топлива по норме, литр]]/IF(DAY([Дата])<=18,$W$2,$W$3),0)))+Y7,\"\")","v":36},{"$f":"IFERROR(Март[[#This Row],[Фактический расход топлива, литр]]-Март[[#This Row],[Расход топлива по норме, литр]],\"\")","v":-2.7680000000000007},null,{"$f":"Март[[#This Row],[Дата]]","v":"2018-03-01"},null,null,null,null,null,null,null,{"$f":"Март[[#This Row],[Дата]]","v":"2018-03-01"}]
[{"$f":"IFERROR(DATEVALUE((COUNT($A$6:A7)+1)&$P$1&$I$4),\"\")","v":"2018-03-02"},null,{"$f":"IFERROR(IF(INDIRECT(TEXT(A7-1,\"ММММ\")&\"!A7:A37\")=\"\",\"\",IF(S7=\"\",D7,S7)),\"\")","v":212292},212292,{"$f":"IFERROR(Март[[#This Row],[Показание одометра машины на конец дня, км]]-Март[[#This Row],[Показание одометра машины на начало дня, км]]+T8,\"\")","v":0},{"$f":"IF(Март[[#This Row],[Дата]]=\"\",\"\",SUMPRODUCT([1]Март!$E$4:$E$153*([1]Март!$G$4:$G$153=$O$4)*([1]Март!$D$4:$D$153=Март[[#This Row],[Дата]])))","v":0},{"$f":"IF(Март[[#This Row],[Дата]]=\"\",\"\",M7)","v":464},{"$f":"IFERROR(IF(INDIRECT(TEXT(A7-1,\"ММММ\")&\"!A7:A37\")=\"\",\"\",IF(V7=\"\",I7,V7)),\"\")","v":711},711,{"$f":"IFERROR(IF(W8=\"\",Март[[#This Row],[Показание счетчика моточасов  спецоборудования на конец дня, м/ч]],Март[[#This Row],[Показание счетчика моточасов  спецоборудования на конец дня, м/ч]]+1)-Март[[#This Row],[Показание счетчика моточасов спецоборудования на начало дня, м/ч]],\"\")","v":0},0,{"$f":"IF(Март[[#This Row],[Работа спецоборудования за день, м/ч]]=\"\",\"\",Март[[#This Row],[Работа спецоборудования за день, м/ч]]*$Z$2)","v":0},{"$f":"IFERROR(IF(VLOOKUP([Дата],S$2:U$3,3),IFERROR(IF(U8=\"\",Март[[#This Row],[Выдано топливо, литр]],Март[[#This Row],[Выдано топливо, литр]]+U8)+Март[[#This Row],[Остаток топлива в баке на начало дня, литр]]-Март[[#This Row],[Фактический расход топлива, литр]],\"\"),\"\"),\"\")","v":464},{"$f":"IFERROR(ROUND((Март[[#This Row],[Пройдено за день, км]]*0.01*$Y$2+Март[[#This Row],[Расход топлива на работу спецоборудования, литр]]),3)+X8,\"\")","v":0},{"$f":"IFERROR(IF(Март[[#Totals],[Выдано топливо, литр]]=0,0,(ROUND(Март[[#This Row],[Расход топлива по норме, литр]]/IF(DAY([Дата])<=18,$W$2,$W$3),0)))+Y8,\"\")","v":0},{"$f":"IFERROR(Март[[#This Row],[Фактический расход топлива, литр]]-Март[[#This Row],[Расход топлива по норме, литр]],\"\")","v":0},null,{"$f":"Март[[#This Row],[Дата]]","v":"2018-03-02"},null,null,null,null,null,null,null,{"$f":"Март[[#This Row],[Дата]]","v":"2018-03-02"}]
[{"$f":"IFERROR(DATEVALUE((COUNT($A$6:A8)+1)&$P$1&$I$4),\"\")","v":"2018-03-03"},null,{"$f":"IFERROR(IF(INDIRECT(TEXT(A8-1,\"ММММ\")&\"!A7:A37\")=\"\",\"\",IF(S8=\"\",D8,S8)),\"\")","v":212292},212292,{"$f":"IFERROR(Март[[#This Row],[Показание одометра машины на конец дня, км]]-Март[[#This Row],[Показание одометра машины на начало дня, км]]+T9,\"\")","v":0},{"$f":"IF(Март[[#This Row],[Дата]]=\"\",\"\",SUMPRODUCT([1]Март!$E$4:$E$153*([1]Март!$G$4:$G$153=$O$4)*([1]Март!$D$4:$D$153=Март[[#This Row],[Дата]])))","v":0},{"$f":"IF(Март[[#This Row],[Дата]]=\"\",\"\",M8)","v":464},{"$f":"IFERROR(IF(INDIRECT(TEXT(A8-1,\"ММММ\")&\"!A7:A37\")=\"\",\"\",IF(V8=\"\",I8,V8)),\"\")","v":711},711,{"$f":"IFERROR(IF(W9=\"\",Март[[#This Row],[Показание счетчика моточасов  спецоборудования на конец дня, м/ч]],Март[[#This Row],[Показание счетчика моточасов  спецоборудования на конец дня, м/ч]]+1)-Март[[#This Row],[Показание счетчика моточасов спецоборудования на начало дня, м/ч]],\"\")","v":0},0,{"$f":"IF(Март[[#This Row],[Работа спецоборудования за день, м/ч]]=\"\",\"\",Март[[#This Row],[Работа спецоборудования за день, м/ч]]*$Z$2)","v":0},{"$f":"IFERROR(IF(VLOOKUP([Дата],S$2:U$3,3),IFERROR(IF(U9=\"\",Март[[#This Row],[Выдано топливо, литр]],Март[[#This Row],[Выдано топливо, литр]]+U9)+Март[[#This Row],[Остаток топлива в баке на начало дня, литр]]-Март[[#This Row],[Фактический расход топлива, литр]],\"\"),\"\"),\"\")","v":464},{"$f":"IFERROR(ROUND((Март[[#This Row],[Пройдено за день, км]]*0.01*$Y$2+Март[[#This Row],[Расход топлива на работу спецоборудования, литр]]),3)+X9,\"\")","v":0},{"$f":"IFERROR(IF(Март[[#Totals],[Выдано топливо, литр]]=0,0,(ROUND(Март[[#This Row],[Расход топлива по норме, литр]]/IF(DAY([Дата])<=18,$W$2,$W$3),0)))+Y9,\"\")","v":0},{"$f":"IFERROR(Март[[#This Row],[Фактический расход топлива, литр]]-Март[[#This Row],[Расход топлива по норме, литр]],\"\")","v":0},null,{"$f":"Март[[#This Row],[Дата]]","v":"2018-03-03"},null,null,null,null,null,null,null,{"$f":"Март[[#This Row],[Дата]]","v":"2018-03-03"}]
[{"$f":"IFERROR(DATEVALUE((COUNT($A$6:A9)+1)&$P$1&$I$4),\"\")","v":"2018-03-04"},null,212292,212292,{"$f":"IFERROR(Март[[#This Row],[Показание одометра машины на конец дня, км]]-Март[[#This Row],[Показание одометра машины на начало дня, км]]+T10,\"\")","v":0},{"$f":"IF(Март[[#This Row],[Дата]]=\"\",\"\",SUMPRODUCT([1]Март!$E$4:$E$153*([1]Март!$G$4:$G$153=$O$4)*([1]Март!$D$4:$D$153=Март[[#This Row],[Дата]])))","v":0},{"$f":"IF(Март[[#This Row],[Дата]]=\"\",\"\",M9)","v":464},711,711,{"$f":"IFERROR(IF(W10=\"\",Март[[#This Row],[Показание счетчика моточасов  спецоборудования на конец дня, м/ч]],Март[[#This Row],[Показание счетчика моточасов  спецоборудования на конец дня, м/ч]]+1)-Март[[#This Row],[Показание счетчика моточасов спецоборудования на начало дня, м/ч]],\"\")","v":0},0,{"$f":"IF(Март[[#This Row],[Работа спецоборудования за день, м/ч]]=\"\",\"\",Март[[#This Row],[Работа спецоборудования за день, м/ч]]*$Z$2)","v":0},{"$f":"IFERROR(IF(VLOOKUP([Дата],S$2:U$3,3),IFERROR(IF(U10=\"\",Март[[#This Row],[Выдано топливо, литр]],Март[[#This Row],[Выдано топливо, литр]]+U10)+Март[[#This Row],[Остаток топлива в баке на начало дня, литр]]-Март[[#This Row],[Фактический расход топлива, литр]],\"\"),\"\"),\"\")","v":464},{"$f":"IFERROR(ROUND((Март[[#This Row],[Пройдено за день, км]]*0.01*$Y$2+Март[[#This Row],[Расход топлива на работу спецоборудования, литр]]),3)+X10,\"\")","v":0},{"$f":"IFERROR(IF(Март[[#Totals],[Выдано топливо, литр]]=0,0,(ROUND(Март[[#This Row],[Расход топлива по норме, литр]]/IF(DAY([Дата])<=18,$W$2,$W$3),0)))+Y10,\"\")","v":0},{"$f":"IFERROR(Март[[#This Row],[Фактический расход топлива, литр]]-Март[[#This Row],[Расход топлива по норме, литр]],\"\")","v":0},null,{"$f":"Март[[#This Row],[Дата]]","v":"2018-03-04"},null,null,null,null,null,null,null,{"$f":"Март[[#This Row],[Дата]]","v":"2018-03-04"}]
[{"$f":"IFERROR(DATEVALUE((COUNT($A$6:A10)+1)&$P$1&$I$4),\"\")","v":"2018-03-05"},null,212292,212292,{"$f":"IFERROR(Март[[#This Row],[Показание одометра машины на конец дня, км]]-Март[[#This Row],[Показание одометра машины на начало дня, км]]+T11,\"\")","v":0},{"$f":"IF(Март[[#This Row],[Дата]]=\"\",\"\",SUMPRODUCT([1]Март!$E$4:$E$153*([1]Март!$G$4:$G$153=$O$4)*([1]Март!$D$4:$D$153=Март[[#This Row],[Дата]])))","v":0},{"$f":"IF(Март[[#This Row],[Дата]]=\"\",\"\",M10)","v":464},711,711,{"$f":"IFERROR(IF(W11=\"\",Март[[#This Row],[Показание счетчика моточасов  спецоборудования на конец дня, м/ч]],Март[[#This Row],[Показание счетчика моточасов  спецоборудования на конец дня, м/ч]]+1)-Март[[#This Row],[Показание счетчика моточасов спецоборудования на начало дня, м/ч]],\"\")","v":0},0,{"$f":"IF(Март[[#This Row],[Работа спецоборудования за день, м/ч]]=\"\",\"\",Март[[#This Row],[Работа спецоборудования за день, м/ч]]*$Z$2)","v":0},{"$f":"IFERROR(IF(VLOOKUP([Дата],S$2:U$3,3),IFERROR(IF(U11=\"\",Март[[#This Row],[Выдано топливо, литр]],Март[[#This Row],[Выдано топливо, литр]]+U11)+Март[[#This Row],[Остаток топлива в баке на начало дня, литр]]-Март[[#This Row],[Фактический расход топлива, литр]],\"\"),\"\"),\"\")","v":464},{"$f":"IFERROR(ROUND((Март[[#This Row],[Пройдено за день, км]]*0.01*$Y$2+Март[[#This Row],[Расход топлива на работу спецоборудования, литр]]),3)+X11,\"\")","v":0},{"$f":"IFERROR(IF(Март[[#Totals],[Выдано топливо, литр]]=0,0,(ROUND(Март[[#This Row],[Расход топлива по норме, литр]]/IF(DAY([Дата])<=18,$W$2,$W$3),0)))+Y11,\"\")","v":0},{"$f":"IFERROR(Март[[#This Row],[Фактический расход топлива, литр]]-Март[[#This Row],[Расход топлива по норме, литр]],\"\")","v":0},null,{"$f":"Март[[#This Row],[Дата]]","v":"2018-03-05"},null,null,null,null,null,null,null,{"$f":"Март[[#This Row],[Дата]]","v":"2018-03-05"}]
[{"$f":"IFERROR(DATEVALUE((COUNT($A$6:A11)+1)&$P$1&$I$4),\"\")","v":"2018-03-06"},"Никляев В.А.",212292,212372,{"$f":"IFERROR(Март[[#This Row],[Показание одометра машины на конец дня, км]]-Март[[#This Row],[Показание одометра машины на начало дня, км]]+T12,\"\")","v":80},{"$f":"IF(Март[[#This Row],[Дата]]=\"\",\"\",SUMPRODUCT([1]Март!$E$4:$E$153*([1]Март!$G$4:$G$153=$O$4)*([1]Март!$D$4:$D$153=Март[[#This Row],[Дата]])))","v":0},{"$f":"IF(Март[[#This Row],[Дата]]=\"\",\"\",M11)","v":464},711,714,{"$f":"IFERROR(IF(W12=\"\",Март[[#This Row],[Показание счетчика моточасов  спецоборудования на конец дня, м/ч]],Март[[#This Row],[Показание счетчика моточасов  спецоборудования на конец дня, м/ч]]+1)-Март[[#This Row],[Показание счетчика моточасов спецоборудования на начало дня, м/ч]],\"\")","v":3},2,{"$f":"IF(Март[[#This Row],[Работа спецоборудования за день, м/ч]]=\"\",\"\",Март[[#This Row],[Работа спецоборудования за день, м/ч]]*$Z$2)","v":18.150000000000002},{"$f":"IFERROR(IF(VLOOKUP([Дата],S$2:U$3,3),IFERROR(IF(U12=\"\",Март[[#This Row],[Выдано топливо, литр]],Март[[#This Row],[Выдано топливо, литр]]+U12)+Март[[#This Row],[Остаток топлива в баке на начало дня, литр]]-Март[[#This Row],[Фактический расход топлива, литр]],\"\"),\"\"),\"\")","v":409},{"$f":"IFERROR(ROUND((Март[[#This Row],[Пройдено за день, км]]*0.01*$Y$2+Март[[#This Row],[Расход топлива на работу спецоборудования, литр]]),3)+X12,\"\")","v":59.387},{"$f":"IFERROR(IF(Март[[#Totals],[Выдано топливо, литр]]=0,0,(ROUND(Март[[#This Row],[Расход топлива по норме, литр]]/IF(DAY([Дата])<=18,$W$2,$W$3),0)))+Y12,\"\")","v":55},{"$f":"IFERROR(Март[[#This Row],[Фактический расход топлива, литр]]-Март[[#This Row],[Расход топлива по норме, литр]],\"\")","v":-4.3870000000000005},null,{"$f":"Март[[#This Row],[Дата]]","v":"2018-03-06"},null,null,null,null,null,null,null,{"$f":"Март[[#This Row],[Дата]]","v":"2018-03-06"}]
[{"$f":"IFERROR(DATEVALUE((COUNT($A$6:A12)+1)&$P$1&$I$4),\"\")","v":"2018-03-07"},"Никляев В.А.",212372,212542,{"$f":"IFERROR(Март[[#This Row],[Показание одометра машины на конец дня, км]]-Март[[#This Row],[Показание одометра машины на начало дня, км]]+T13,\"\")","v":170},{"$f":"IF(Март[[#This Row],[Дата]]=\"\",\"\",SUMPRODUCT([1]Март!$E$4:$E$153*([1]Март!$G$4:$G$153=$O$4)*([1]Март!$D$4:$D$153=Март[[#This Row],[Дата]])))","v":0},{"$f":"IF(Март[[#This Row],[Дата]]=\"\",\"\",M12)","v":409},714,716,{"$f":"IFERROR(IF(W13=\"\",Март[[#This Row],[Показание счетчика моточасов  спецоборудования на конец дня, м/ч]],Март[[#This Row],[Показание счетчика моточасов  спецоборудования на конец дня, м/ч]]+1)-Март[[#This Row],[Показание счетчика моточасов спецоборудования на начало дня, м/ч]],\"\")","v":2},1,{"$f":"IF(Март[[#This Row],[Работа спецоборудования за день, м/ч]]=\"\",\"\",Март[[#This Row],[Работа спецоборудования за день, м/ч]]*$Z$2)","v":12.100000000000001},{"$f":"IFERROR(IF(VLOOKUP([Дата],S$2:U$3,3),IFERROR(IF(U13=\"\",Март[[#This Row],[Выдано топливо, литр]],Март[[#This Row],[Выдано топливо, литр]]+U13)+Март[[#This Row],[Остаток топлива в баке на начало дня, литр]]-Март[[#This Row],[Фактический расход топлива, литр]],\"\"),\"\"),\"\")","v":316},{"$f":"IFERROR(ROUND((Март[[#This Row],[Пройдено за день, км]]*0.01*$Y$2+Март[[#This Row],[Расход топлива на работу спецоборудования, литр]]),3)+X13,\"\")","v":99.727999999999994},{"$f":"IFERROR(IF(Март[[#Totals],[Выдано топливо, литр]]=0,0,(ROUND(Март[[#This Row],[Расход топлива по норме, литр]]/IF(DAY([Дата])<=18,$W$2,$W$3),0)))+Y13,\"\")","v":93},{"$f":"IFERROR(Март[[#This Row],[Фактический расход топлива, литр]]-Март[[#This Row],[Расход топлива по норме, литр]],\"\")","v":-6.7279999999999944},null,{"$f":"Март[[#This Row],[Дата]]","v":"2018-03-07"},null,null,null,null,null,null,null,{"$f":"Март[[#This Row],[Дата]]","v":"2018-03-07"}]
[{"$f":"IFERROR(DATEVALUE((COUNT($A$6:A13)+1)&$P$1&$I$4),\"\")","v":"2018-03-08"},"Никляев В.А.",212542,212650,{"$f":"IFERROR(Март[[#This Row],[Показание одометра машины на конец дня, км]]-Март[[#This Row],[Показание одометра машины на начало дня, км]]+T14,\"\")","v":108},{"$f":"IF(Март[[#This Row],[Дата]]=\"\",\"\",SUMPRODUCT([1]Март!$E$4:$E$153*([1]Март!$G$4:$G$153=$O$4)*([1]Март!$D$4:$D$153=Март[[#This Row],[Дата]])))","v":0},{"$f":"IF(Март[[#This Row],[Дата]]=\"\",\"\",M13)","v":316},716,719,{"$f":"IFERROR(IF(W14=\"\",Март[[#This Row],[Показание счетчика моточасов  спецоборудования на конец дня, м/ч]],Март[[#This Row],[Показание счетчика моточасов  спецоборудования на конец дня, м/ч]]+1)-Март[[#This Row],[Показание счетчика моточасов спецоборудования на начало дня, м/ч]],\"\")","v":3},2,{"$f":"IF(Март[[#This Row],[Работа спецоборудования за день, м/ч]]=\"\",\"\",Март[[#This Row],[Работа спецоборудования за день, м/ч]]*$Z$2)","v":18.150000000000002},{"$f":"IFERROR(IF(VLOOKUP([Дата],S$2:U$3,3),IFERROR(IF(U14=\"\",Март[[#This Row],[Выдано топливо, литр]],Март[[#This Row],[Выдано топливо, литр]]+U14)+Март[[#This Row],[Остаток топлива в баке на начало дня, литр]]-Март[[#This Row],[Фактический расход топлива, литр]],\"\"),\"\"),\"\")","v":247},{"$f":"IFERROR(ROUND((Март[[#This Row],[Пройдено за день, км]]*0.01*$Y$2+Март[[#This Row],[Расход топлива на работу спецоборудования, литр]]),3)+X14,\"\")","v":73.819999999999993},{"$f":"IFERROR(IF(Март[[#Totals],[Выдано топливо, литр]]=0,0,(ROUND(Март[[#This Row],[Расход топлива по норме, литр]]/IF(DAY([Дата])<=18,$W$2,$W$3),0)))+Y14,\"\")","v":69},{"$f":"IFERROR(Март[[#This Row],[Фактический расход топлива, литр]]-Март[[#This Row],[Расход топлива по норме, литр]],\"\")","v":-4.8199999999999932},null,{"$f":"Март[[#This Row],[Дата]]","v":"2018-03-08"},null,null,null,null,null,null,null,{"$f":"Март[[#This Row],[Дата]]","v":"2018-03-08"}]
[{"$f":"IFERROR(DATEVALUE((COUNT($A$6:A14)+1)&$P$1&$I$4),\"\")","v":"2018-03-09"},"Никляев В.А.",212650,212730,{"$f":"IFERROR(Март[[#This Row],[Показание одометра машины на конец дня, км]]-Март[[#This Row],[Показание одометра машины на начало дня, км]]+T15,\"\")","v":80},{"$f":"IF(Март[[#This Row],[Дата]]=\"\",\"\",SUMPRODUCT([1]Март!$E$4:$E$153*([1]Март!$G$4:$G$153=$O$4)*([1]Март!$D$4:$D$153=Март[[#This Row],[Дата]])))","v":270},{"$f":"IF(Март[[#This Row],[Дата]]=\"\",\"\",M14)","v":247},719,722,{"$f":"IFERROR(IF(W15=\"\",Март[[#This Row],[Показание счетчика моточасов  спецоборудования на конец дня, м/ч]],Март[[#This Row],[Показание счетчика моточасов  спецоборудования на конец дня, м/ч]]+1)-Март[[#This Row],[Показание счетчика моточасов спецоборудования на начало дня, м/ч]],\"\")","v":3},2,{"$f":"IF(Март[[#This Row],[Работа спецоборудования за день, м/ч]]=\"\",\"\",Март[[#This Row],[Работа спецоборудования за день, м/ч]]*$Z$2)","v":18.150000000000002},{"$f":"IFERROR(IF(VLOOKUP([Дата],S$2:U$3,3),IFERROR(IF(U15=\"\",Март[[#This Row],[Выдано топливо, литр]],Март[[#This Row],[Выдано топливо, литр]]+U15)+Март[[#This Row],[Остаток топлива в баке на начало дня, литр]]-Март[[#This Row],[Фактический расход топлива, литр]],\"\"),\"\"),\"\")","v":462},{"$f":"IFERROR(ROUND((Март[[#This Row],[Пройдено за день, км]]*0.01*$Y$2+Март[[#This Row],[Расход топлива на работу спецоборудования, литр]]),3)+X15,\"\")","v":59.387},{"$f":"IFERROR(IF(Март[[#Totals],[Выдано топливо, литр]]=0,0,(ROUND(Март[[#This Row],[Расход топлива по норме, литр]]/IF(DAY([Дата])<=18,$W$2,$W$3),0)))+Y15,\"\")","v":55},{"$f":"IFERROR(Март[[#This Row],[Фактический расход топлива, литр]]-Март[[#This Row],[Расход топлива по норме, литр]],\"\")","v":-4.3870000000000005},null,{"$f":"Март[[#This Row],[Дата]]","v":"2018-03-09"},null,null,null,null,null,null,null,{"$f":"Март[[#This Row],[Дата]]","v":"2018-03-09"}]
[{"$f":"IFERROR(DATEVALUE((COUNT($A$6:A15)+1)&$P$1&$I$4),\"\")","v":"2018-03-10"},"Никляев В.А.",212730,212802,{"$f":"IFERROR(Март[[#This Row],[Показание одометра машины на конец дня, км]]-Март[[#This Row],[Показание одометра машины на начало дня, км]]+T16,\"\")","v":72},{"$f":"IF(Март[[#This Row],[Дата]]=\"\",\"\",SUMPRODUCT([1]Март!$E$4:$E$153*([1]Март!$G$4:$G$153=$O$4)*([1]Март!$D$4:$D$153=Март[[#This Row],[Дата]])))","v":0},{"$f":"IF(Март[[#This Row],[Дата]]=\"\",\"\",M15)","v":462},722,724,{"$f":"IFERROR(IF(W16=\"\",Март[[#This Row],[Показание счетчика моточасов  спецоборудования на конец дня, м/ч]],Март[[#This Row],[Показание счетчика моточасов  спецоборудования на конец дня, м/ч]]+1)-Март[[#This Row],[Показание счетчика моточасов спецоборудования на начало дня, м/ч]],\"\")","v":2},2,{"$f":"IF(Март[[#This Row],[Работа спецоборудования за день, м/ч]]=\"\",\"\",Март[[#This Row],[Работа спецоборудования за день, м/ч]]*$Z$2)","v":12.100000000000001},{"$f":"IFERROR(IF(VLOOKUP([Дата],S$2:U$3,3),IFERROR(IF(U16=\"\",Март[[#This Row],[Выдано топливо, литр]],Март[[#This Row],[Выдано топливо, литр]]+U16)+Март[[#This Row],[Остаток топлива в баке на начало дня, литр]]-Март[[#This Row],[Фактический расход топлива, литр]],\"\"),\"\"),\"\")","v":416},{"$f":"IFERROR(ROUND((Март[[#This Row],[Пройдено за день, км]]*0.01*$Y$2+Март[[#This Row],[Расход топлива на работу спецоборудования, литр]]),3)+X16,\"\")","v":49.213000000000001},{"$f":"IFERROR(IF(Март[[#Totals],[Выдано топливо, литр]]=0,0,(ROUND(Март[[#This Row],[Расход топлива по норме, литр]]/IF(DAY([Дата])<=18,$W$2,$W$3),0)))+Y16,\"\")","v":46},{"$f":"IFERROR(Март[[#This Row],[Фактический расход топлива, литр]]-Март[[#This Row],[Расход топлива по норме, литр]],\"\")","v":-3.213000000000001},null,{"$f":"Март[[#This Row],[Дата]]","v":"2018-03-10"},null,null,null,null,null,null,null,{"$f":"Март[[#This Row],[Дата]]","v":"2018-03-10"}]
[{"$f":"IFERROR(DATEVALUE((COUNT($A$6:A16)+1)&$P$1&$I$4),\"\")","v":"2018-03-11"},"Никляев В.А.",212802,212934,{"$f":"IFERROR(Март[[#This Row],[Показание одометра машины на конец дня, км]]-Март[[#This Row],[Показание одометра машины на начало дня, км]]+T17,\"\")","v":132},{"$f":"IF(Март[[#This Row],[Дата]]=\"\",\"\",SUMPRODUCT([1]Март!$E$4:$E$153*([1]Март!$G$4:$G$153=$O$4)*([1]Март!$D$4:$D$153=Март[[#This Row],[Дата]])))","v":0},{"$f":"IF(Март[[#This Row],[Дата]]=\"\",\"\",M16)","v":416},724,727,{"$f":"IFERROR(IF(W17=\"\",Март[[#This Row],[Показание счетчика моточасов  спецоборудования на конец дня, м/ч]],Март[[#This Row],[Показание счетчика моточасов  спецоборудования на конец дня, м/ч]]+1)-Март[[#This Row],[Показание счетчика моточасов спецоборудования на начало дня, м/ч]],\"\")","v":3},2,{"$f":"IF(Март[[#This Row],[Работа спецоборудования за день, м/ч]]=\"\",\"\",Март[[#This Row],[Работа спецоборудования за день, м/ч]]*$Z$2)","v":18.150000000000002},{"$f":"IFERROR(IF(VLOOKUP([Дата],S$2:U$3,3),IFERROR(IF(U17=\"\",Март[[#This Row],[Выдано топливо, литр]],Март[[#This Row],[Выдано топливо, литр]]+U17)+Март[[#This Row],[Остаток топлива в баке на начало дня, литр]]-Март[[#This Row],[Фактический расход топлива, литр]],\"\"),\"\"),\"\")","v":336},{"$f":"IFERROR(ROUND((Март[[#This Row],[Пройдено за день, км]]*0.01*$Y$2+Март[[#This Row],[Расход топлива на работу спецоборудования, литр]]),3)+X17,\"\")","v":86.191000000000003},{"$f":"IFERROR(IF(Март[[#Totals],[Выдано топливо, литр]]=0,0,(ROUND(Март[[#This Row],[Расход топлива по норме, литр]]/IF(DAY([Дата])<=18,$W$2,$W$3),0)))+Y17,\"\")","v":80},{"$f":"IFERROR(Март[[#This Row],[Фактический расход топлива, литр]]-Март[[#This Row],[Расход топлива по норме, литр]],\"\")","v":-6.1910000000000025},null,{"$f":"Март[[#This Row],[Дата]]","v":"2018-03-11"},null,null,null,null,null,null,null,{"$f":"Март[[#This Row],[Дата]]","v":"2018-03-11"}]
[{"$f":"IFERROR(DATEVALUE((COUNT($A$6:A17)+1)&$P$1&$I$4),\"\")","v":"2018-03-12"},"Никляев В.А.",212934,213211,{"$f":"IFERROR(Март[[#This Row],[Показание одометра машины на конец дня, км]]-Март[[#This Row],[Показание одометра машины на начало дня, км]]+T18,\"\")","v":277},{"$f":"IF(Март[[#This Row],[Дата]]=\"\",\"\",SUMPRODUCT([1]Март!$E$4:$E$153*([1]Март!$G$4:$G$153=$O$4)*([1]Март!$D$4:$D$153=Март[[#This Row],[Дата]])))","v":0},{"$f":"IF(Март[[#This Row],[Дата]]=\"\",\"\",M17)","v":336},727,730,{"$f":"IFERROR(IF(W18=\"\",Март[[#This Row],[Показание счетчика моточасов  спецоборудования на конец дня, м/ч]],Март[[#This Row],[Показание счетчика моточасов  спецоборудования на конец дня, м/ч]]+1)-Март[[#This Row],[Показание счетчика моточасов спецоборудования на начало дня, м/ч]],\"\")","v":3},3,{"$f":"IF(Март[[#This Row],[Работа спецоборудования за день, м/ч]]=\"\",\"\",Март[[#This Row],[Работа спецоборудования за день, м/ч]]*$Z$2)","v":18.150000000000002},{"$f":"IFERROR(IF(VLOOKUP([Дата],S$2:U$3,3),IFERROR(IF(U18=\"\",Март[[#This Row],[Выдано топливо, литр]],Март[[#This Row],[Выдано топливо, литр]]+U18)+Март[[#This Row],[Остаток топлива в баке на начало дня, литр]]-Март[[#This Row],[Фактический расход топлива, литр]],\"\"),\"\"),\"\")","v":261},{"$f":"IFERROR(ROUND((Март[[#This Row],[Пройдено за день, км]]*0.01*$Y$2+Март[[#This Row],[Расход топлива на работу спецоборудования, литр]]),3)+X18,\"\")","v":160.93199999999999},{"$f":"IFERROR(IF(Март[[#Totals],[Выдано топливо, литр]]=0,0,(ROUND(Март[[#This Row],[Расход топлива по норме, литр]]/IF(DAY([Дата])<=18,$W$2,$W$3),0)))+Y18,\"\")","v":150.01},{"$f":"IFERROR(Март[[#This Row],[Фактический расход топлива, литр]]-Март[[#This Row],[Расход топлива по норме, литр]],\"\")","v":-10.921999999999997},null,{"$f":"Март[[#This Row],[Дата]]","v":"2018-03-12"},null,null,75.010000000000005,null,null,null,0.01,{"$f":"Март[[#This Row],[Дата]]","v":"2018-03-12"}]
[{"$f":"IFERROR(DATEVALUE((COUNT($A$6:A18)+1)&$P$1&$I$4),\"\")","v":"2018-03-13"},"Никляев В.А.",213211,213392,{"$f":"IFERROR(Март[[#This Row],[Показание одометра машины на конец дня, км]]-Март[[#This Row],[Показание одометра машины на начало дня, км]]+T19,\"\")","v":181},{"$f":"IF(Март[[#This Row],[Дата]]=\"\",\"\",SUMPRODUCT([1]Март!$E$4:$E$153*([1]Март!$G$4:$G$153=$O$4)*([1]Март!$D$4:$D$153=Март[[#This Row],[Дата]])))","v":250},{"$f":"IF(Март[[#This Row],[Дата]]=\"\",\"\",M18)","v":261},730,732,{"$f":"IFERROR(IF(W19=\"\",Март[[#This Row],[Показание счетчика моточасов  спецоборудования на конец дня, м/ч]],Март[[#This Row],[Показание счетчика моточасов  спецоборудования на конец дня, м/ч]]+1)-Март[[#This Row],[Показание счетчика моточасов спецоборудования на начало дня, м/ч]],\"\")","v":2},2,{"$f":"IF(Март[[#This Row],[Работа спецоборудования за день, м/ч]]=\"\",\"\",Март[[#This Row],[Работа спецоборудования за день, м/ч]]*$Z$2)","v":12.100000000000001},{"$f":"IFERROR(IF(VLOOKUP([Дата],S$2:U$3,3),IFERROR(IF(U19=\"\",Март[[#This Row],[Выдано топливо, литр]],Март[[#This Row],[Выдано топливо, литр]]+U19)+Март[[#This Row],[Остаток топлива в баке на начало дня, литр]]-Март[[#This Row],[Фактический расход топлива, литр]],\"\"),\"\"),\"\")","v":413},{"$f":"IFERROR(ROUND((Март[[#This Row],[Пройдено за день, км]]*0.01*$Y$2+Март[[#This Row],[Расход топлива на работу спецоборудования, литр]]),3)+X19,\"\")","v":105.398},{"$f":"IFERROR(IF(Март[[#Totals],[Выдано топливо, литр]]=0,0,(ROUND(Март[[#This Row],[Расход топлива по норме, литр]]/IF(DAY([Дата])<=18,$W$2,$W$3),0)))+Y19,\"\")","v":98},{"$f":"IFERROR(Март[[#This Row],[Фактический расход топлива, литр]]-Март[[#This Row],[Расход топлива по норме, литр]],\"\")","v":-7.3979999999999961},null,{"$f":"Март[[#This Row],[Дата]]","v":"2018-03-13"},null,null,null,null,null,null,null,{"$f":"Март[[#This Row],[Дата]]","v":"2018-03-13"}]
[{"$f":"IFERROR(DATEVALUE((COUNT($A$6:A19)+1)&$P$1&$I$4),\"\")","v":"2018-03-14"},"Никляев В.А.",213392,213730,{"$f":"IFERROR(Март[[#This Row],[Показание одометра машины на конец дня, км]]-Март[[#This Row],[Показание одометра машины на начало дня, км]]+T20,\"\")","v":338},{"$f":"IF(Март[[#This Row],[Дата]]=\"\",\"\",SUMPRODUCT([1]Март!$E$4:$E$153*([1]Март!$G$4:$G$153=$O$4)*([1]Март!$D$4:$D$153=Март[[#This Row],[Дата]])))","v":0},{"$f":"IF(Март[[#This Row],[Дата]]=\"\",\"\",M19)","v":413},732,735,{"$f":"IFERROR(IF(W20=\"\",Март[[#This Row],[Показание счетчика моточасов  спецоборудования на конец дня, м/ч]],Март[[#This Row],[Показание счетчика моточасов  спецоборудования на конец дня, м/ч]]+1)-Март[[#This Row],[Показание счетчика моточасов спецоборудования на начало дня, м/ч]],\"\")","v":3},2,{"$f":"IF(Март[[#This Row],[Работа спецоборудования за день, м/ч]]=\"\",\"\",Март[[#This Row],[Работа спецоборудования за день, м/ч]]*$Z$2)","v":18.150000000000002},{"$f":"IFERROR(IF(VLOOKUP([Дата],S$2:U$3,3),IFERROR(IF(U20=\"\",Март[[#This Row],[Выдано топливо, литр]],Март[[#This Row],[Выдано топливо, литр]]+U20)+Март[[#This Row],[Остаток топлива в баке на начало дня, литр]]-Март[[#This Row],[Фактический расход топлива, литр]],\"\"),\"\"),\"\")","v":234},{"$f":"IFERROR(ROUND((Март[[#This Row],[Пройдено за день, км]]*0.01*$Y$2+Март[[#This Row],[Расход топлива на работу спецоборудования, литр]]),3)+X20,\"\")","v":192.375},{"$f":"IFERROR(IF(Март[[#Totals],[Выдано топливо, литр]]=0,0,(ROUND(Март[[#This Row],[Расход топлива по норме, литр]]/IF(DAY([Дата])<=18,$W$2,$W$3),0)))+Y20,\"\")","v":179},{"$f":"IFERROR(Март[[#This Row],[Фактический расход топлива, литр]]-Март[[#This Row],[Расход топлива по норме, литр]],\"\")","v":-13.375},null,{"$f":"Март[[#This Row],[Дата]]","v":"2018-03-14"},null,null,null,null,null,null,null,{"$f":"Март[[#This Row],[Дата]]","v":"2018-03-14"}]
[{"$f":"IFERROR(DATEVALUE((COUNT($A$6:A20)+1)&$P$1&$I$4),\"\")","v":"2018-03-15"},"Никляев В.А.",213730,214071,{"$f":"IFERROR(Март[[#This Row],[Показание одометра машины на конец дня, км]]-Март[[#This Row],[Показание одометра машины на начало дня, км]]+T21,\"\")","v":341},{"$f":"IF(Март[[#This Row],[Дата]]=\"\",\"\",SUMPRODUCT([1]Март!$E$4:$E$153*([1]Март!$G$4:$G$153=$O$4)*([1]Март!$D$4:$D$153=Март[[#This Row],[Дата]])))","v":440},{"$f":"IF(Март[[#This Row],[Дата]]=\"\",\"\",M20)","v":234},735,737,{"$f":"IFERROR(IF(W21=\"\",Март[[#This Row],[Показание счетчика моточасов  спецоборудования на конец дня, м/ч]],Март[[#This Row],[Показание счетчика моточасов  спецоборудования на конец дня, м/ч]]+1)-Март[[#This Row],[Показание счетчика моточасов спецоборудования на начало дня, м/ч]],\"\")","v":2},2,{"$f":"IF(Март[[#This Row],[Работа спецоборудования за день, м/ч]]=\"\",\"\",Март[[#This Row],[Работа спецоборудования за день, м/ч]]*$Z$2)","v":12.100000000000001},{"$f":"IFERROR(IF(VLOOKUP([Дата],S$2:U$3,3),IFERROR(IF(U21=\"\",Март[[#This Row],[Выдано топливо, литр]],Март[[#This Row],[Выдано топливо, литр]]+U21)+Март[[#This Row],[Остаток топлива в баке на начало дня, литр]]-Март[[#This Row],[Фактический расход топлива, литр]],\"\"),\"\"),\"\")","v":500},{"$f":"IFERROR(ROUND((Март[[#This Row],[Пройдено за день, км]]*0.01*$Y$2+Март[[#This Row],[Расход топлива на работу спецоборудования, литр]]),3)+X21,\"\")","v":187.87200000000001},{"$f":"IFERROR(IF(Март[[#Totals],[Выдано топливо, литр]]=0,0,(ROUND(Март[[#This Row],[Расход топлива по норме, литр]]/IF(DAY([Дата])<=18,$W$2,$W$3),0)))+Y21,\"\")","v":174},{"$f":"IFERROR(Март[[#This Row],[Фактический расход топлива, литр]]-Март[[#This Row],[Расход топлива по норме, литр]],\"\")","v":-13.872000000000014},null,{"$f":"Март[[#This Row],[Дата]]","v":"2018-03-15"},null,null,null,null,null,null,-1,{"$f":"Март[[#This Row],[Дата]]","v":"2018-03-15"}]
[{"$f":"IFERROR(DATEVALUE((COUNT($A$6:A21)+1)&$P$1&$I$4),\"\")","v":"2018-03-16"},"Никляев В.А.",214071,214146,{"$f":"IFERROR(Март[[#This Row],[Показание одометра машины на конец дня, км]]-Март[[#This Row],[Показание одометра машины на начало дня, км]]+T22,\"\")","v":75},{"$f":"IF(Март[[#This Row],[Дата]]=\"\",\"\",SUMPRODUCT([1]Март!$E$4:$E$153*([1]Март!$G$4:$G$153=$O$4)*([1]Март!$D$4:$D$153=Март[[#This Row],[Дата]])))","v":0},{"$f":"IF(Март[[#This Row],[Дата]]=\"\",\"\",M21)","v":500},737,738,{"$f":"IFERROR(IF(W22=\"\",Март[[#This Row],[Показание счетчика моточасов  спецоборудования на конец дня, м/ч]],Март[[#This Row],[Показание счетчика моточасов  спецоборудования на конец дня, м/ч]]+1)-Март[[#This Row],[Показание счетчика моточасов спецоборудования на начало дня, м/ч]],\"\")","v":1},2,{"$f":"IF(Март[[#This Row],[Работа спецоборудования за день, м/ч]]=\"\",\"\",Март[[#This Row],[Работа спецоборудования за день, м/ч]]*$Z$2)","v":6.0500000000000007},{"$f":"IFERROR(IF(VLOOKUP([Дата],S$2:U$3,3),IFERROR(IF(U22=\"\",Март[[#This Row],[Выдано топливо, литр]],Март[[#This Row],[Выдано топливо, литр]]+U22)+Март[[#This Row],[Остаток топлива в баке на начало дня, литр]]-Март[[#This Row],[Фактический расход топлива, литр]],\"\"),\"\"),\"\")","v":448},{"$f":"IFERROR(ROUND((Март[[#This Row],[Пройдено за день, км]]*0.01*$Y$2+Март[[#This Row],[Расход топлива на работу спецоборудования, литр]]),3)+X22,\"\")","v":44.71},{"$f":"IFERROR(IF(Март[[#Totals],[Выдано топливо, литр]]=0,0,(ROUND(Март[[#This Row],[Расход топлива по норме, литр]]/IF(DAY([Дата])<=18,$W$2,$W$3),0)))+Y22,\"\")","v":52},{"$f":"IFERROR(Март[[#This Row],[Фактический расход топлива, литр]]-Март[[#This Row],[Расход топлива по норме, литр]],\"\")","v":7.2899999999999991},null,{"$f":"Март[[#This Row],[Дата]]","v":"2018-03-16"},null,null,null,null,null,null,10,{"$f":"Март[[#This Row],[Дата]]","v":"2018-03-16"}]
[{"$f":"IFERROR(DATEVALUE((COUNT($A$6:A22)+1)&$P$1&$I$4),\"\")","v":"2018-03-17"},"Никляев В.А.",214146,214185,{"$f":"IFERROR(Март[[#This Row],[Показание одометра машины на конец дня, км]]-Март[[#This Row],[Показание одометра машины на начало дня, км]]+T23,\"\")","v":39},{"$f":"IF(Март[[#This Row],[Дата]]=\"\",\"\",SUMPRODUCT([1]Март!$E$4:$E$153*([1]Март!$G$4:$G$153=$O$4)*([1]Март!$D$4:$D$153=Март[[#This Row],[Дата]])))","v":0},{"$f":"IF(Март[[#This Row],[Дата]]=\"\",\"\",M22)","v":448},738,739,{"$f":"IFERROR(IF(W23=\"\",Март[[#This Row],[Показание счетчика моточасов  спецоборудования на конец дня, м/ч]],Март[[#This Row],[Показание счетчика моточасов  спецоборудования на конец дня, м/ч]]+1)-Март[[#This Row],[Показание счетчика моточасов спецоборудования на начало дня, м/ч]],\"\")","v":1},2,{"$f":"IF(Март[[#This Row],[Работа спецоборудования за день, м/ч]]=\"\",\"\",Март[[#This Row],[Работа спецоборудования за день, м/ч]]*$Z$2)","v":6.0500000000000007},{"$f":"IFERROR(IF(VLOOKUP([Дата],S$2:U$3,3),IFERROR(IF(U23=\"\",Март[[#This Row],[Выдано топливо, литр]],Март[[#This Row],[Выдано топливо, литр]]+U23)+Март[[#This Row],[Остаток топлива в баке на начало дня, литр]]-Март[[#This Row],[Фактический расход топлива, литр]],\"\"),\"\"),\"\")","v":418},{"$f":"IFERROR(ROUND((Март[[#This Row],[Пройдено за день, км]]*0.01*$Y$2+Март[[#This Row],[Расход топлива на работу спецоборудования, литр]]),3)+X23,\"\")","v":26.152999999999999},{"$f":"IFERROR(IF(Март[[#Totals],[Выдано топливо, литр]]=0,0,(ROUND(Март[[#This Row],[Расход топлива по норме, литр]]/IF(DAY([Дата])<=18,$W$2,$W$3),0)))+Y23,\"\")","v":30},{"$f":"IFERROR(Март[[#This Row],[Фактический расход топлива, литр]]-Март[[#This Row],[Расход топлива по норме, литр]],\"\")","v":3.8470000000000013},null,{"$f":"Март[[#This Row],[Дата]]","v":"2018-03-17"},null,null,null,null,null,null,6,{"$f":"Март[[#This Row],[Дата]]","v":"2018-03-17"}]
[{"$f":"IFERROR(DATEVALUE((COUNT($A$6:A23)+1)&$P$1&$I$4),\"\")","v":"2018-03-18"},"Никляев В.А.",214185,214250,{"$f":"IFERROR(Март[[#This Row],[Показание одометра машины на конец дня, км]]-Март[[#This Row],[Показание одометра машины на начало дня, км]]+T24,\"\")","v":65},{"$f":"IF(Март[[#This Row],[Дата]]=\"\",\"\",SUMPRODUCT([1]Март!$E$4:$E$153*([1]Март!$G$4:$G$153=$O$4)*([1]Март!$D$4:$D$153=Март[[#This Row],[Дата]])))","v":0},{"$f":"IF(Март[[#This Row],[Дата]]=\"\",\"\",M23)","v":418},739,741,{"$f":"IFERROR(IF(W24=\"\",Март[[#This Row],[Показание счетчика моточасов  спецоборудования на конец дня, м/ч]],Март[[#This Row],[Показание счетчика моточасов  спецоборудования на конец дня, м/ч]]+1)-Март[[#This Row],[Показание счетчика моточасов спецоборудования на начало дня, м/ч]],\"\")","v":2},1,{"$f":"IF(Март[[#This Row],[Работа спецоборудования за день, м/ч]]=\"\",\"\",Март[[#This Row],[Работа спецоборудования за день, м/ч]]*$Z$2)","v":12.100000000000001},{"$f":"IFERROR(IF(VLOOKUP([Дата],S$2:U$3,3),IFERROR(IF(U24=\"\",Март[[#This Row],[Выдано топливо, литр]],Март[[#This Row],[Выдано топливо, литр]]+U24)+Март[[#This Row],[Остаток топлива в баке на начало дня, литр]]-Март[[#This Row],[Фактический расход топлива, литр]],\"\"),\"\"),\"\")","v":365},{"$f":"IFERROR(ROUND((Март[[#This Row],[Пройдено за день, км]]*0.01*$Y$2+Март[[#This Row],[Расход топлива на работу спецоборудования, литр]]),3)+X24,\"\")","v":45.604999999999997},{"$f":"IFERROR(IF(Март[[#Totals],[Выдано топливо, литр]]=0,0,(ROUND(Март[[#This Row],[Расход топлива по норме, литр]]/IF(DAY([Дата])<=18,$W$2,$W$3),0)))+Y24,\"\")","v":53},{"$f":"IFERROR(Март[[#This Row],[Фактический расход топлива, литр]]-Март[[#This Row],[Расход топлива по норме, литр]],\"\")","v":7.3950000000000031},null,{"$f":"Март[[#This Row],[Дата]]","v":"2018-03-18"},null,null,null,null,null,null,11,{"$f":"Март[[#This Row],[Дата]]","v":"2018-03-18"}]
[{"$f":"IFERROR(DATEVALUE((COUNT($A$6:A24)+1)&$P$1&$I$4),\"\")","v":"2018-03-19"},"Никляев В.А.",214250,214299,{"$f":"IFERROR(Март[[#This Row],[Показание одометра машины на конец дня, км]]-Март[[#This Row],[Показание одометра машины на начало дня, км]]+T25,\"\")","v":49},{"$f":"IF(Март[[#This Row],[Дата]]=\"\",\"\",SUMPRODUCT([1]Март!$E$4:$E$153*([1]Март!$G$4:$G$153=$O$4)*([1]Март!$D$4:$D$153=Март[[#This Row],[Дата]])))","v":0},{"$f":"IF(Март[[#This Row],[Дата]]=\"\",\"\",M24)","v":365},741,742,{"$f":"IFERROR(IF(W25=\"\",Март[[#This Row],[Показание счетчика моточасов  спецоборудования на конец дня, м/ч]],Март[[#This Row],[Показание счетчика моточасов  спецоборудования на конец дня, м/ч]]+1)-Март[[#This Row],[Показание счетчика моточасов спецоборудования на начало дня, м/ч]],\"\")","v":1},1,{"$f":"IF(Март[[#This Row],[Работа спецоборудования за день, м/ч]]=\"\",\"\",Март[[#This Row],[Работа спецоборудования за день, м/ч]]*$Z$2)","v":6.0500000000000007},{"$f":"IFERROR(IF(VLOOKUP([Дата],S$2:U$3,3),IFERROR(IF(U25=\"\",Март[[#This Row],[Выдано топливо, литр]],Март[[#This Row],[Выдано топливо, литр]]+U25)+Март[[#This Row],[Остаток топлива в баке на начало дня, литр]]-Март[[#This Row],[Фактический расход топлива, литр]],\"\"),\"\"),\"\")","v":329},{"$f":"IFERROR(ROUND((Март[[#This Row],[Пройдено за день, км]]*0.01*$Y$2+Март[[#This Row],[Расход топлива на работу спецоборудования, литр]]),3)+X25,\"\")","v":31.308},{"$f":"IFERROR(IF(Март[[#Totals],[Выдано топливо, литр]]=0,0,(ROUND(Март[[#This Row],[Расход топлива по норме, литр]]/IF(DAY([Дата])<=18,$W$2,$W$3),0)))+Y25,\"\")","v":36},{"$f":"IFERROR(Март[[#This Row],[Фактический расход топлива, литр]]-Март[[#This Row],[Расход топлива по норме, литр]],\"\")","v":4.6920000000000002},null,{"$f":"Март[[#This Row],[Дата]]","v":"2018-03-19"},null,null,null,null,null,null,null,{"$f":"Март[[#This Row],[Дата]]","v":"2018-03-19"}]
[{"$f":"IFERROR(DATEVALUE((COUNT($A$6:A25)+1)&$P$1&$I$4),\"\")","v":"2018-03-20"},"Никляев В.А.",214299,214467,{"$f":"IFERROR(Март[[#This Row],[Показание одометра машины на конец дня, км]]-Март[[#This Row],[Показание одометра машины на начало дня, км]]+T26,\"\")","v":168},{"$f":"IF(Март[[#This Row],[Дата]]=\"\",\"\",SUMPRODUCT([1]Март!$E$4:$E$153*([1]Март!$G$4:$G$153=$O$4)*([1]Март!$D$4:$D$153=Март[[#This Row],[Дата]])))","v":0},{"$f":"IF(Март[[#This Row],[Дата]]=\"\",\"\",M25)","v":329},742,743,{"$f":"IFERROR(IF(W26=\"\",Март[[#This Row],[Показание счетчика моточасов  спецоборудования на конец дня, м/ч]],Март[[#This Row],[Показание счетчика моточасов  спецоборудования на конец дня, м/ч]]+1)-Март[[#This Row],[Показание счетчика моточасов спецоборудования на начало дня, м/ч]],\"\")","v":1},1,{"$f":"IF(Март[[#This Row],[Работа спецоборудования за день, м/ч]]=\"\",\"\",Март[[#This Row],[Работа спецоборудования за день, м/ч]]*$Z$2)","v":6.0500000000000007},{"$f":"IFERROR(IF(VLOOKUP([Дата],S$2:U$3,3),IFERROR(IF(U26=\"\",Март[[#This Row],[Выдано топливо, литр]],Март[[#This Row],[Выдано топливо, литр]]+U26)+Март[[#This Row],[Остаток топлива в баке на начало дня, литр]]-Март[[#This Row],[Фактический расход топлива, литр]],\"\"),\"\"),\"\")","v":299},{"$f":"IFERROR(ROUND((Март[[#This Row],[Пройдено за день, км]]*0.01*$Y$2+Март[[#This Row],[Расход топлива на работу спецоборудования, литр]]),3)+X26,\"\")","v":92.647000000000006},{"$f":"IFERROR(IF(Март[[#Totals],[Выдано топливо, литр]]=0,0,(ROUND(Март[[#This Row],[Расход топлива по норме, литр]]/IF(DAY([Дата])<=18,$W$2,$W$3),0)))+Y26,\"\")","v":107.77},{"$f":"IFERROR(Март[[#This Row],[Фактический расход топлива, литр]]-Март[[#This Row],[Расход топлива по норме, литр]],\"\")","v":15.12299999999999},null,{"$f":"Март[[#This Row],[Дата]]","v":"2018-03-20"},null,null,77.77,null,null,null,0.77,{"$f":"Март[[#This Row],[Дата]]","v":"2018-03-20"}]
[{"$f":"IFERROR(DATEVALUE((COUNT($A$6:A26)+1)&$P$1&$I$4),\"\")","v":"2018-03-21"},"Никляев В.А.",214467,214554,{"$f":"IFERROR(Март[[#This Row],[Показание одометра машины на конец дня, км]]-Март[[#This Row],[Показание одометра машины на начало дня, км]]+T27,\"\")","v":87},{"$f":"IF(Март[[#This Row],[Дата]]=\"\",\"\",SUMPRODUCT([1]Март!$E$4:$E$153*([1]Март!$G$4:$G$153=$O$4)*([1]Март!$D$4:$D$153=Март[[#This Row],[Дата]])))","v":200},{"$f":"IF(Март[[#This Row],[Дата]]=\"\",\"\",M26)","v":299},743,746,{"$f":"IFERROR(IF(W27=\"\",Март[[#This Row],[Показание счетчика моточасов  спецоборудования на конец дня, м/ч]],Март[[#This Row],[Показание счетчика моточасов  спецоборудования на конец дня, м/ч]]+1)-Март[[#This Row],[Показание счетчика моточасов спецоборудования на начало дня, м/ч]],\"\")","v":3},3,{"$f":"IF(Март[[#This Row],[Работа спецоборудования за день, м/ч]]=\"\",\"\",Март[[#This Row],[Работа спецоборудования за день, м/ч]]*$Z$2)","v":18.150000000000002},{"$f":"IFERROR(IF(VLOOKUP([Дата],S$2:U$3,3),IFERROR(IF(U27=\"\",Март[[#This Row],[Выдано топливо, литр]],Март[[#This Row],[Выдано топливо, литр]]+U27)+Март[[#This Row],[Остаток топлива в баке на начало дня, литр]]-Март[[#This Row],[Фактический расход топлива, литр]],\"\"),\"\"),\"\")","v":426},{"$f":"IFERROR(ROUND((Март[[#This Row],[Пройдено за день, км]]*0.01*$Y$2+Март[[#This Row],[Расход топлива на работу спецоборудования, литр]]),3)+X27,\"\")","v":62.994999999999997},{"$f":"IFERROR(IF(Март[[#Totals],[Выдано топливо, литр]]=0,0,(ROUND(Март[[#This Row],[Расход топлива по норме, литр]]/IF(DAY([Дата])<=18,$W$2,$W$3),0)))+Y27,\"\")","v":73},{"$f":"IFERROR(Март[[#This Row],[Фактический расход топлива, литр]]-Март[[#This Row],[Расход топлива по норме, литр]],\"\")","v":10.005000000000003},null,{"$f":"Март[[#This Row],[Дата]]","v":"2018-03-21"},null,null,null,null,null,null,null,{"$f":"Март[[#This Row],[Дата]]","v":"2018-03-21"}]
[{"$f":"IFERROR(DATEVALUE((COUNT($A$6:A27)+1)&$P$1&$I$4),\"\")","v":"2018-03-22"},"Никляев В.А.",214554,214624,{"$f":"IFERROR(Март[[#This Row],[Показание одометра машины на конец дня, км]]-Март[[#This Row],[Показание одометра машины на начало дня, км]]+T28,\"\")","v":70},{"$f":"IF(Март[[#This Row],[Дата]]=\"\",\"\",SUMPRODUCT([1]Март!$E$4:$E$153*([1]Март!$G$4:$G$153=$O$4)*([1]Март!$D$4:$D$153=Март[[#This Row],[Дата]])))","v":0},{"$f":"IF(Март[[#This Row],[Дата]]=\"\",\"\",M27)","v":426},746,748,{"$f":"IFERROR(IF(W28=\"\",Март[[#This Row],[Показание счетчика моточасов  спецоборудования на конец дня, м/ч]],Март[[#This Row],[Показание счетчика моточасов  спецоборудования на конец дня, м/ч]]+1)-Март[[#This Row],[Показание счетчика моточасов спецоборудования на начало дня, м/ч]],\"\")","v":2},2,{"$f":"IF(Март[[#This Row],[Работа спецоборудования за день, м/ч]]=\"\",\"\",Март[[#This Row],[Работа спецоборудования за день, м/ч]]*$Z$2)","v":12.100000000000001},{"$f":"IFERROR(IF(VLOOKUP([Дата],S$2:U$3,3),IFERROR(IF(U28=\"\",Март[[#This Row],[Выдано топливо, литр]],Март[[#This Row],[Выдано топливо, литр]]+U28)+Март[[#This Row],[Остаток топлива в баке на начало дня, литр]]-Март[[#This Row],[Фактический расход топлива, литр]],\"\"),\"\"),\"\")","v":370},{"$f":"IFERROR(ROUND((Март[[#This Row],[Пройдено за день, км]]*0.01*$Y$2+Март[[#This Row],[Расход топлива на работу спецоборудования, литр]]),3)+X28,\"\")","v":48.182000000000002},{"$f":"IFERROR(IF(Март[[#Totals],[Выдано топливо, литр]]=0,0,(ROUND(Март[[#This Row],[Расход топлива по норме, литр]]/IF(DAY([Дата])<=18,$W$2,$W$3),0)))+Y28,\"\")","v":56},{"$f":"IFERROR(Март[[#This Row],[Фактический расход топлива, литр]]-Март[[#This Row],[Расход топлива по норме, литр]],\"\")","v":7.8179999999999978},null,{"$f":"Март[[#This Row],[Дата]]","v":"2018-03-22"},null,null,null,null,null,null,null,{"$f":"Март[[#This Row],[Дата]]","v":"2018-03-22"}]
[{"$f":"IFERROR(DATEVALUE((COUNT($A$6:A28)+1)&$P$1&$I$4),\"\")","v":"2018-03-23"},"Никляев В.А.",214624,214688,{"$f":"IFERROR(Март[[#This Row],[Показание одометра машины на конец дня, км]]-Март[[#This Row],[Показание одометра машины на начало дня, км]]+T29,\"\")","v":64},{"$f":"IF(Март[[#This Row],[Дата]]=\"\",\"\",SUMPRODUCT([1]Март!$E$4:$E$153*([1]Март!$G$4:$G$153=$O$4)*([1]Март!$D$4:$D$153=Март[[#This Row],[Дата]])))","v":0},{"$f":"IF(Март[[#This Row],[Дата]]=\"\",\"\",M28)","v":370},748,750,{"$f":"IFERROR(IF(W29=\"\",Март[[#This Row],[Показание счетчика моточасов  спецоборудования на конец дня, м/ч]],Март[[#This Row],[Показание счетчика моточасов  спецоборудования на конец дня, м/ч]]+1)-Март[[#This Row],[Показание счетчика моточасов спецоборудования на начало дня, м/ч]],\"\")","v":2},1,{"$f":"IF(Март[[#This Row],[Работа спецоборудования за день, м/ч]]=\"\",\"\",Март[[#This Row],[Работа спецоборудования за день, м/ч]]*$Z$2)","v":12.100000000000001},{"$f":"IFERROR(IF(VLOOKUP([Дата],S$2:U$3,3),IFERROR(IF(U29=\"\",Март[[#This Row],[Выдано топливо, литр]],Март[[#This Row],[Выдано топливо, литр]]+U29)+Март[[#This Row],[Остаток топлива в баке на начало дня, литр]]-Март[[#This Row],[Фактический расход топлива, литр]],\"\"),\"\"),\"\")","v":318},{"$f":"IFERROR(ROUND((Март[[#This Row],[Пройдено за день, км]]*0.01*$Y$2+Март[[#This Row],[Расход топлива на работу спецоборудования, литр]]),3)+X29,\"\")","v":45.088999999999999},{"$f":"IFERROR(IF(Март[[#Totals],[Выдано топливо, литр]]=0,0,(ROUND(Март[[#This Row],[Расход топлива по норме, литр]]/IF(DAY([Дата])<=18,$W$2,$W$3),0)))+Y29,\"\")","v":52},{"$f":"IFERROR(Март[[#This Row],[Фактический расход топлива, литр]]-Март[[#This Row],[Расход топлива по норме, литр]],\"\")","v":6.9110000000000014},null,{"$f":"Март[[#This Row],[Дата]]","v":"2018-03-23"},null,null,null,null,null,null,null,{"$f":"Март[[#This Row],[Дата]]","v":"2018-03-23"}]
[{"$f":"IFERROR(DATEVALUE((COUNT($A$6:A29)+1)&$P$1&$I$4),\"\")","v":"2018-03-24"},"Никляев В.А.",214688,214716,{"$f":"IFERROR(Март[[#This Row],[Показание одометра машины на конец дня, км]]-Март[[#This Row],[Показание одометра машины на начало дня, км]]+T30,\"\")","v":28},{"$f":"IF(Март[[#This Row],[Дата]]=\"\",\"\",SUMPRODUCT([1]Март!$E$4:$E$153*([1]Март!$G$4:$G$153=$O$4)*([1]Март!$D$4:$D$153=Март[[#This Row],[Дата]])))","v":0},{"$f":"IF(Март[[#This Row],[Дата]]=\"\",\"\",M29)","v":318},750,752,{"$f":"IFERROR(IF(W30=\"\",Март[[#This Row],[Показание счетчика моточасов  спецоборудования на конец дня, м/ч]],Март[[#This Row],[Показание счетчика моточасов  спецоборудования на конец дня, м/ч]]+1)-Март[[#This Row],[Показание счетчика моточасов спецоборудования на начало дня, м/ч]],\"\")","v":2},1,{"$f":"IF(Март[[#This Row],[Работа спецоборудования за день, м/ч]]=\"\",\"\",Март[[#This Row],[Работа спецоборудования за день, м/ч]]*$Z$2)","v":12.100000000000001},{"$f":"IFERROR(IF(VLOOKUP([Дата],S$2:U$3,3),IFERROR(IF(U30=\"\",Март[[#This Row],[Выдано топливо, литр]],Март[[#This Row],[Выдано топливо, литр]]+U30)+Март[[#This Row],[Остаток топлива в баке на начало дня, литр]]-Март[[#This Row],[Фактический расход топлива, литр]],\"\"),\"\"),\"\")","v":287},{"$f":"IFERROR(ROUND((Март[[#This Row],[Пройдено за день, км]]*0.01*$Y$2+Март[[#This Row],[Расход топлива на работу спецоборудования, литр]]),3)+X30,\"\")","v":26.533000000000001},{"$f":"IFERROR(IF(Март[[#Totals],[Выдано топливо, литр]]=0,0,(ROUND(Март[[#This Row],[Расход топлива по норме, литр]]/IF(DAY([Дата])<=18,$W$2,$W$3),0)))+Y30,\"\")","v":31},{"$f":"IFERROR(Март[[#This Row],[Фактический расход топлива, литр]]-Март[[#This Row],[Расход топлива по норме, литр]],\"\")","v":4.4669999999999987},null,{"$f":"Март[[#This Row],[Дата]]","v":"2018-03-24"},null,null,null,null,null,null,null,{"$f":"Март[[#This Row],[Дата]]","v":"2018-03-24"}]
[{"$f":"IFERROR(DATEVALUE((COUNT($A$6:A30)+1)&$P$1&$I$4),\"\")","v":"2018-03-25"},null,214716,214716,{"$f":"IFERROR(Март[[#This Row],[Показание одометра машины на конец дня, км]]-Март[[#This Row],[Показание одометра машины на начало дня, км]]+T31,\"\")","v":0},{"$f":"IF(Март[[#This Row],[Дата]]=\"\",\"\",SUMPRODUCT([1]Март!$E$4:$E$153*([1]Март!$G$4:$G$153=$O$4)*([1]Март!$D$4:$D$153=Март[[#This Row],[Дата]])))","v":0},{"$f":"IF(Март[[#This Row],[Дата]]=\"\",\"\",M30)","v":287},752,752,{"$f":"IFERROR(IF(W31=\"\",Март[[#This Row],[Показание счетчика моточасов  спецоборудования на конец дня, м/ч]],Март[[#This Row],[Показание счетчика моточасов  спецоборудования на конец дня, м/ч]]+1)-Март[[#This Row],[Показание счетчика моточасов спецоборудования на начало дня, м/ч]],\"\")","v":0},0,{"$f":"IF(Март[[#This Row],[Работа спецоборудования за день, м/ч]]=\"\",\"\",Март[[#This Row],[Работа спецоборудования за день, м/ч]]*$Z$2)","v":0},{"$f":"IFERROR(IF(VLOOKUP([Дата],S$2:U$3,3),IFERROR(IF(U31=\"\",Март[[#This Row],[Выдано топливо, литр]],Март[[#This Row],[Выдано топливо, литр]]+U31)+Март[[#This Row],[Остаток топлива в баке на начало дня, литр]]-Март[[#This Row],[Фактический расход топлива, литр]],\"\"),\"\"),\"\")","v":287},{"$f":"IFERROR(ROUND((Март[[#This Row],[Пройдено за день, км]]*0.01*$Y$2+Март[[#This Row],[Расход топлива на работу спецоборудования, литр]]),3)+X31,\"\")","v":0},{"$f":"IFERROR(IF(Март[[#Totals],[Выдано топливо, литр]]=0,0,(ROUND(Март[[#This Row],[Расход топлива по норме, литр]]/IF(DAY([Дата])<=18,$W$2,$W$3),0)))+Y31,\"\")","v":0},{"$f":"IFERROR(Март[[#This Row],[Фактический расход топлива, литр]]-Март[[#This Row],[Расход топлива по норме, литр]],\"\")","v":0},null,{"$f":"Март[[#This Row],[Дата]]","v":"2018-03-25"},null,null,null,null,null,null,null,{"$f":"Март[[#This Row],[Дата]]","v":"2018-03-25"}]
[{"$f":"IFERROR(DATEVALUE((COUNT($A$6:A31)+1)&$P$1&$I$4),\"\")","v":"2018-03-26"},null,214716,214716,{"$f":"IFERROR(Март[[#This Row],[Показание одометра машины на конец дня, км]]-Март[[#This Row],[Показание одометра машины на начало дня, км]]+T32,\"\")","v":0},{"$f":"IF(Март[[#This Row],[Дата]]=\"\",\"\",SUMPRODUCT([1]Март!$E$4:$E$153*([1]Март!$G$4:$G$153=$O$4)*([1]Март!$D$4:$D$153=Март[[#This Row],[Дата]])))","v":0},{"$f":"IF(Март[[#This Row],[Дата]]=\"\",\"\",M31)","v":287},752,752,{"$f":"IFERROR(IF(W32=\"\",Март[[#This Row],[Показание счетчика моточасов  спецоборудования на конец дня, м/ч]],Март[[#This Row],[Показание счетчика моточасов  спецоборудования на конец дня, м/ч]]+1)-Март[[#This Row],[Показание счетчика моточасов спецоборудования на начало дня, м/ч]],\"\")","v":0},0,{"$f":"IF(Март[[#This Row],[Работа спецоборудования за день, м/ч]]=\"\",\"\",Март[[#This Row],[Работа спецоборудования за день, м/ч]]*$Z$2)","v":0},{"$f":"IFERROR(IF(VLOOKUP([Дата],S$2:U$3,3),IFERROR(IF(U32=\"\",Март[[#This Row],[Выдано топливо, литр]],Март[[#This Row],[Выдано топливо, литр]]+U32)+Март[[#This Row],[Остаток топлива в баке на начало дня, литр]]-Март[[#This Row],[Фактический расход топлива, литр]],\"\"),\"\"),\"\")","v":287},{"$f":"IFERROR(ROUND((Март[[#This Row],[Пройдено за день, км]]*0.01*$Y$2+Март[[#This Row],[Расход топлива на работу спецоборудования, литр]]),3)+X32,\"\")","v":0},{"$f":"IFERROR(IF(Март[[#Totals],[Выдано топливо, литр]]=0,0,(ROUND(Март[[#This Row],[Расход топлива по норме, литр]]/IF(DAY([Дата])<=18,$W$2,$W$3),0)))+Y32,\"\")","v":0},{"$f":"IFERROR(Март[[#This Row],[Фактический расход топлива, литр]]-Март[[#This Row],[Расход топлива по норме, литр]],\"\")","v":0},null,{"$f":"Март[[#This Row],[Дата]]","v":"2018-03-26"},null,null,null,null,null,null,null,{"$f":"Март[[#This Row],[Дата]]","v":"2018-03-26"}]
[{"$f":"IFERROR(DATEVALUE((COUNT($A$6:A32)+1)&$P$1&$I$4),\"\")","v":"2018-03-27"},"Никляев В.А.",214716,214953,{"$f":"IFERROR(Март[[#This Row],[Показание одометра машины на конец дня, км]]-Март[[#This Row],[Показание одометра машины на начало дня, км]]+T33,\"\")","v":237},{"$f":"IF(Март[[#This Row],[Дата]]=\"\",\"\",SUMPRODUCT([1]Март!$E$4:$E$153*([1]Март!$G$4:$G$153=$O$4)*([1]Март!$D$4:$D$153=Март[[#This Row],[Дата]])))","v":280},{"$f":"IF(Март[[#This Row],[Дата]]=\"\",\"\",M32)","v":287},752,754,{"$f":"IFERROR(IF(W33=\"\",Март[[#This Row],[Показание счетчика моточасов  спецоборудования на конец дня, м/ч]],Март[[#This Row],[Показание счетчика моточасов  спецоборудования на конец дня, м/ч]]+1)-Март[[#This Row],[Показание счетчика моточасов спецоборудования на начало дня, м/ч]],\"\")","v":2},2,{"$f":"IF(Март[[#This Row],[Работа спецоборудования за день, м/ч]]=\"\",\"\",Март[[#This Row],[Работа спецоборудования за день, м/ч]]*$Z$2)","v":12.100000000000001},{"$f":"IFERROR(IF(VLOOKUP([Дата],S$2:U$3,3),IFERROR(IF(U33=\"\",Март[[#This Row],[Выдано топливо, литр]],Март[[#This Row],[Выдано топливо, литр]]+U33)+Март[[#This Row],[Остаток топлива в баке на начало дня, литр]]-Март[[#This Row],[Фактический расход топлива, литр]],\"\"),\"\"),\"\")","v":372},{"$f":"IFERROR(ROUND((Март[[#This Row],[Пройдено за день, км]]*0.01*$Y$2+Март[[#This Row],[Расход топлива на работу спецоборудования, литр]]),3)+X33,\"\")","v":134.26400000000001},{"$f":"IFERROR(IF(Март[[#Totals],[Выдано топливо, литр]]=0,0,(ROUND(Март[[#This Row],[Расход топлива по норме, литр]]/IF(DAY([Дата])<=18,$W$2,$W$3),0)))+Y33,\"\")","v":155},{"$f":"IFERROR(Март[[#This Row],[Фактический расход топлива, литр]]-Март[[#This Row],[Расход топлива по норме, литр]],\"\")","v":20.73599999999999},null,{"$f":"Март[[#This Row],[Дата]]","v":"2018-03-27"},null,null,-40,null,null,null,null,{"$f":"Март[[#This Row],[Дата]]","v":"2018-03-27"}]
[{"$f":"IFERROR(DATEVALUE((COUNT($A$6:A33)+1)&$P$1&$I$4),\"\")","v":"2018-03-28"},"Никляев В.А.",214953,214964,{"$f":"IFERROR(Март[[#This Row],[Показание одометра машины на конец дня, км]]-Март[[#This Row],[Показание одометра машины на начало дня, км]]+T34,\"\")","v":11},{"$f":"IF(Март[[#This Row],[Дата]]=\"\",\"\",SUMPRODUCT([1]Март!$E$4:$E$153*([1]Март!$G$4:$G$153=$O$4)*([1]Март!$D$4:$D$153=Март[[#This Row],[Дата]])))","v":0},{"$f":"IF(Март[[#This Row],[Дата]]=\"\",\"\",M33)","v":372},754,754,{"$f":"IFERROR(IF(W34=\"\",Март[[#This Row],[Показание счетчика моточасов  спецоборудования на конец дня, м/ч]],Март[[#This Row],[Показание счетчика моточасов  спецоборудования на конец дня, м/ч]]+1)-Март[[#This Row],[Показание счетчика моточасов спецоборудования на начало дня, м/ч]],\"\")","v":0},1,{"$f":"IF(Март[[#This Row],[Работа спецоборудования за день, м/ч]]=\"\",\"\",Март[[#This Row],[Работа спецоборудования за день, м/ч]]*$Z$2)","v":0},{"$f":"IFERROR(IF(VLOOKUP([Дата],S$2:U$3,3),IFERROR(IF(U34=\"\",Март[[#This Row],[Выдано топливо, литр]],Март[[#This Row],[Выдано топливо, литр]]+U34)+Март[[#This Row],[Остаток топлива в баке на начало дня, литр]]-Март[[#This Row],[Фактический расход топлива, литр]],\"\"),\"\"),\"\")","v":438},{"$f":"IFERROR(ROUND((Март[[#This Row],[Пройдено за день, км]]*0.01*$Y$2+Март[[#This Row],[Расход топлива на работу спецоборудования, литр]]),3)+X34,\"\")","v":5.67},{"$f":"IFERROR(IF(Март[[#Totals],[Выдано топливо, литр]]=0,0,(ROUND(Март[[#This Row],[Расход топлива по норме, литр]]/IF(DAY([Дата])<=18,$W$2,$W$3),0)))+Y34,\"\")","v":7.6899999999999995},{"$f":"IFERROR(Март[[#This Row],[Фактический расход топлива, литр]]-Март[[#This Row],[Расход топлива по норме, литр]],\"\")","v":2.0199999999999996},null,{"$f":"Март[[#This Row],[Дата]]","v":"2018-03-28"},null,null,73.69,null,null,null,0.69,{"$f":"Март[[#This Row],[Дата]]","v":"2018-03-28"}]
[{"$f":"IFERROR(DATEVALUE((COUNT($A$6:A34)+1)&$P$1&$I$4),\"\")","v":"2018-03-29"},"Никляев В.А.",214964,215032,{"$f":"IFERROR(Март[[#This Row],[Показание одометра машины на конец дня, км]]-Март[[#This Row],[Показание одометра машины на начало дня, км]]+T35,\"\")","v":68},{"$f":"IF(Март[[#This Row],[Дата]]=\"\",\"\",SUMPRODUCT([1]Март!$E$4:$E$153*([1]Март!$G$4:$G$153=$O$4)*([1]Март!$D$4:$D$153=Март[[#This Row],[Дата]])))","v":0},{"$f":"IF(Март[[#This Row],[Дата]]=\"\",\"\",M34)","v":438},754,756,{"$f":"IFERROR(IF(W35=\"\",Март[[#This Row],[Показание счетчика моточасов  спецоборудования на конец дня, м/ч]],Март[[#This Row],[Показание счетчика моточасов  спецоборудования на конец дня, м/ч]]+1)-Март[[#This Row],[Показание счетчика моточасов спецоборудования на начало дня, м/ч]],\"\")","v":2},1,{"$f":"IF(Март[[#This Row],[Работа спецоборудования за день, м/ч]]=\"\",\"\",Март[[#This Row],[Работа спецоборудования за день, м/ч]]*$Z$2)","v":12.100000000000001},{"$f":"IFERROR(IF(VLOOKUP([Дата],S$2:U$3,3),IFERROR(IF(U35=\"\",Март[[#This Row],[Выдано топливо, литр]],Март[[#This Row],[Выдано топливо, литр]]+U35)+Март[[#This Row],[Остаток топлива в баке на начало дня, литр]]-Март[[#This Row],[Фактический расход топлива, литр]],\"\"),\"\"),\"\")","v":384},{"$f":"IFERROR(ROUND((Март[[#This Row],[Пройдено за день, км]]*0.01*$Y$2+Март[[#This Row],[Расход топлива на работу спецоборудования, литр]]),3)+X35,\"\")","v":47.151000000000003},{"$f":"IFERROR(IF(Март[[#Totals],[Выдано топливо, литр]]=0,0,(ROUND(Март[[#This Row],[Расход топлива по норме, литр]]/IF(DAY([Дата])<=18,$W$2,$W$3),0)))+Y35,\"\")","v":54},{"$f":"IFERROR(Март[[#This Row],[Фактический расход топлива, литр]]-Март[[#This Row],[Расход топлива по норме, литр]],\"\")","v":6.8489999999999966},null,{"$f":"Март[[#This Row],[Дата]]","v":"2018-03-29"},null,null,null,null,null,null,null,{"$f":"Март[[#This Row],[Дата]]","v":"2018-03-29"}]
[{"$f":"IFERROR(DATEVALUE((COUNT($A$6:A35)+1)&$P$1&$I$4),\"\")","v":"2018-03-30"},"Никляев В.А.",215032,215100,{"$f":"IFERROR(Март[[#This Row],[Показание одометра машины на конец дня, км]]-Март[[#This Row],[Показание одометра машины на начало дня, км]]+T36,\"\")","v":68},{"$f":"IF(Март[[#This Row],[Дата]]=\"\",\"\",SUMPRODUCT([1]Март!$E$4:$E$153*([1]Март!$G$4:$G$153=$O$4)*([1]Март!$D$4:$D$153=Март[[#This Row],[Дата]])))","v":160},{"$f":"IF(Март[[#This Row],[Дата]]=\"\",\"\",M35)","v":384},756,757,{"$f":"IFERROR(IF(W36=\"\",Март[[#This Row],[Показание счетчика моточасов  спецоборудования на конец дня, м/ч]],Март[[#This Row],[Показание счетчика моточасов  спецоборудования на конец дня, м/ч]]+1)-Март[[#This Row],[Показание счетчика моточасов спецоборудования на начало дня, м/ч]],\"\")","v":1},1,{"$f":"IF(Март[[#This Row],[Работа спецоборудования за день, м/ч]]=\"\",\"\",Март[[#This Row],[Работа спецоборудования за день, м/ч]]*$Z$2)","v":6.0500000000000007},{"$f":"IFERROR(IF(VLOOKUP([Дата],S$2:U$3,3),IFERROR(IF(U36=\"\",Март[[#This Row],[Выдано топливо, литр]],Март[[#This Row],[Выдано топливо, литр]]+U36)+Март[[#This Row],[Остаток топлива в баке на начало дня, литр]]-Март[[#This Row],[Фактический расход топлива, литр]],\"\"),\"\"),\"\")","v":500},{"$f":"IFERROR(ROUND((Март[[#This Row],[Пройдено за день, км]]*0.01*$Y$2+Март[[#This Row],[Расход топлива на работу спецоборудования, литр]]),3)+X36,\"\")","v":41.100999999999999},{"$f":"IFERROR(IF(Март[[#Totals],[Выдано топливо, литр]]=0,0,(ROUND(Март[[#This Row],[Расход топлива по норме, литр]]/IF(DAY([Дата])<=18,$W$2,$W$3),0)))+Y36,\"\")","v":44},{"$f":"IFERROR(Март[[#This Row],[Фактический расход топлива, литр]]-Март[[#This Row],[Расход топлива по норме, литр]],\"\")","v":2.8990000000000009},null,{"$f":"Март[[#This Row],[Дата]]","v":"2018-03-30"},null,null,null,null,null,null,-3,{"$f":"Март[[#This Row],[Дата]]","v":"2018-03-30"}]
[{"$f":"IFERROR(DATEVALUE((COUNT($A$6:A36)+1)&$P$1&$I$4),\"\")","v":"2018-03-31"},null,215100,215100,{"$f":"IFERROR(Март[[#This Row],[Показание одометра машины на конец дня, км]]-Март[[#This Row],[Показание одометра машины на начало дня, км]]+T37,\"\")","v":0},{"$f":"IF(Март[[#This Row],[Дата]]=\"\",\"\",SUMPRODUCT([1]Март!$E$4:$E$153*([1]Март!$G$4:$G$153=$O$4)*([1]Март!$D$4:$D$153=Март[[#This Row],[Дата]])))","v":0},{"$f":"IF(Март[[#This Row],[Дата]]=\"\",\"\",M36)","v":500},757,757,{"$f":"IFERROR(IF(W37=\"\",Март[[#This Row],[Показание счетчика моточасов  спецоборудования на конец дня, м/ч]],Март[[#This Row],[Показание счетчика моточасов  спецоборудования на конец дня, м/ч]]+1)-Март[[#This Row],[Показание счетчика моточасов спецоборудования на начало дня, м/ч]],\"\")","v":0},null,{"$f":"IF(Март[[#This Row],[Работа спецоборудования за день, м/ч]]=\"\",\"\",Март[[#This Row],[Работа спецоборудования за день, м/ч]]*$Z$2)","v":0},{"$f":"IFERROR(IF(VLOOKUP([Дата],S$2:U$3,3),IFERROR(IF(U37=\"\",Март[[#This Row],[Выдано топливо, литр]],Март[[#This Row],[Выдано топливо, литр]]+U37)+Март[[#This Row],[Остаток топлива в баке на начало дня, литр]]-Март[[#This Row],[Фактический расход топлива, литр]],\"\"),\"\"),\"\")","v":500},{"$f":"IFERROR(ROUND((Март[[#This Row],[Пройдено за день, км]]*0.01*$Y$2+Март[[#This Row],[Расход топлива на работу спецоборудования, литр]]),3)+X37,\"\")","v":0},{"$f":"IFERROR(IF(Март[[#Totals],[Выдано топливо, литр]]=0,0,(ROUND(Март[[#This Row],[Расход топлива по норме, литр]]/IF(DAY([Дата])<=18,$W$2,$W$3),0)))+Y37,\"\")","v":0},{"$f":"IFERROR(Март[[#This Row],[Фактический расход топлива, литр]]-Март[[#This Row],[Расход топлива по норме, литр]],\"\")","v":0},null,{"$f":"Март[[#This Row],[Дата]]","v":"2018-03-31"},null,null,null,null,null,null,null,{"$f":"Март[[#This Row],[Дата]]","v":"2018-03-31"}]
["Итог",null,null,null,{"$f":"SUBTOTAL(109,[Пройдено за день, км])","v":2848},{"$f":"SUBTOTAL(109,[Выдано топливо, литр])","v":1600},null,null,null,{"$f":"SUBTOTAL(109,[Работа спецоборудования за день, м/ч])","v":49},{"$f":"SUBTOTAL(109,[Количество ходок])","v":41},{"$f":"SUBTOTAL(109,[Расход топлива на работу спецоборудования, литр])","v":296.4500000000001},null,{"$f":"SUBTOTAL(109,[Расход топлива по норме, литр])","v":1764.4789999999998},{"$f":"SUBTOTAL(109,[Фактический расход топлива, литр])","v":1786.47},{"$f":"SUBTOTAL(109,[Отклонение от нормы (Перерасход(+), экономия(-)), литр])","v":21.990999999999975},null,"1-я пол.",{"$f":"SUMIFS(S$7:S$37,INDIRECT(\"Март[Дата]\"),\">=\"&$S$2,INDIRECT(\"Март[Дата]\"),\"<=\"&$T$2)+IF(MONTH($T$2)<>MONTH($S$2),INDIRECT(TEXT($A$7-1,\"ММММ\")&\"!F38\")-SUM(INDIRECT(TEXT($A$7-1,\"ММММ\")&\"!V1:V2\")))","v":0},{"$f":"SUMIFS(T$7:T$37,INDIRECT(\"Март[Дата]\"),\">=\"&$S$2,INDIRECT(\"Март[Дата]\"),\"<=\"&$T$2)+IF(MONTH($T$2)<>MONTH($S$2),INDIRECT(TEXT($A$7-1,\"ММММ\")&\"!F38\")-SUM(INDIRECT(TEXT($A$7-1,\"ММММ\")&\"!V1:V2\")))","v":0},75.010000000000005,0,0,0,-0.99,"1-я пол."]
[null,null,null,null,null,null,null,null,null,null,{"$f":"SUMIFS(K7:K37,A7:A37,\">=\"&$S$2,A7:A37,\"<=\"&$T$2)","v":22},null,null,null,null,null,null,"2-я пол.",{"$f":"SUMIFS(S$7:S$37,INDIRECT(\"Март[Дата]\"),\">=\"&$S$3,INDIRECT(\"Март[Дата]\"),\"<=\"&$T$3)+IF(MONTH($T$3)<>MONTH($S$3),INDIRECT(TEXT($A$7-1,\"ММММ\")&\"!F38\")-SUM(INDIRECT(TEXT($A$7-1,\"ММММ\")&\"!V1:V2\")))","v":0},{"$f":"SUMIFS(T$7:T$37,INDIRECT(\"Март[Дата]\"),\">=\"&$S$3,INDIRECT(\"Март[Дата]\"),\"<=\"&$T$3)+IF(MONTH($T$3)<>MONTH($S$3),INDIRECT(TEXT($A$7-1,\"ММММ\")&\"!F38\")-SUM(INDIRECT(TEXT($A$7-1,\"ММММ\")&\"!V1:V2\")))","v":0},111.46,0,0,0,25.46,"2-я пол."]
[null,null,null,null,null,null,null,null,null,null,{"$f":"SUMIFS(K7:K37,A7:A37,\">=\"&$S$3,A7:A37,\"<=\"&$T$3)","v":19}]

{"sheet":"ТС","index":3,"n_rows":29,"n_cols":25,"rows_kept":29,"cut":false,"hidden":false,"merged":[[0,15,2,24],[2,6,2,7],[2,11,2,12]]}
[null,null,null,null,null,null,"Зима :","01.11 - 31.03",null,null,null,"Зима :","01.11 - 31.03",null,null,"Расчет максимальной нормы расхода ДТ (литр/100км)"]
[null,null,null,null,null,null,"Лето:","01.04 - 30.10",null,null,null,"Лето:","01.04 - 30.10"]
[null,null,null,null,null,null,"доп.коэфф-т к норме",null,null,null,null,"доп.коэфф-т к норме"]
["№ п/п","Номер гос.регистрации / Заводской номер","Километраж, км","Спецоборудование, м/ч","Топливо, л","Базовая норма расхода на 100 км","Зима","Лето","Итога норма а/м ЗИМА","Итога норма а/м ЛЕТО","Базовая норма расхода на 1 мото/час","\"Зима\"","\"Лето\"","Итога норма а/м \"ЗИМА\"","Итога норма а/м \"ЛЕТО\"","Норма на 100 км, литров","движение с манипулятором","Тоннаж","Литры","На движение с грузом","Тоннаж1","К-т загрузки","ИТОГ","25% за работу в городе с населением свыше 3 млн. человек","10 % за работу зимой"]
[1,"Норма 1",209024,620,500,46.86,10,-9.1,{"$f":"F5*(100+G5)%","v":51.546000000000006},{"$f":"F5*(100+H5)%","v":42.595739999999999},5.5,10,0,{"$f":"K5*(100+L5)%","v":6.0500000000000007},{"$f":"K5*(100+M5)%","v":5.5},32.200000000000003,{"$f":"R5*S5","v":2.9379999999999997},2.2599999999999998,1.3,{"$f":"U5*V5*S5","v":5.2},8,0.5,{"$f":"P5+Q5+T5","v":40.338000000000008},{"$f":"W5*25%+W5","v":50.422500000000014},{"$f":"W5*10%+X5","v":54.456300000000013}]
[2,"Норма 2",null,null,500,{"$f":"F5-F5*5%","v":44.516999999999996},10,-9.1,48.968699999999998,40.465952999999999,{"$f":"K5-K5*5%","v":5.2249999999999996},10,0,5.7475000000000005,5.2249999999999996,32.200000000000003,2.9379999999999997,2.2599999999999998,1.3,5.2,8,0.5,40.338000000000008,50.422500000000014,54.456300000000013]
[3,"Норма 3",null,null,500,{"$f":"F5-F5*10%","v":42.173999999999999},10,-9.1,46.391400000000004,38.336165999999999,{"$f":"K5-K5*10%","v":4.95},10,0,5.4450000000000003,4.95,32.200000000000003,2.9379999999999997,2.2599999999999998,1.3,5.2,8,0.5,40.338000000000008,50.422500000000014,54.456300000000013]
[]
[]
[]
[null,"Зима"]
[null,"Лето"]
[]
[null,"Январь"]
[null,"Февраль"]
[null,"Март"]
[null,"Апрель"]
[null,"Май"]
[null,"Июнь"]
[null,"Июль"]
[null,"Август"]
[null,"Сентябрь"]
[null,"Октябрь"]
[null,"Ноябрь"]
[null,"Декабрь"]
[]
[null,"Норма 1"]
[null,"Норма 2"]
[null,"Норма 3"]

{"sheet":"Сотрудники","index":4,"n_rows":5,"n_cols":2,"rows_kept":5,"cut":false,"hidden":false,"merged":[]}
[null,"Ф.И.О."]
[null,"Никляев В.А."]
[null,"Ильин А.Г."]
[null,"Малышев О.С."]
[null,"Кобалян М.В."]